{"text_format":"1","workbook":"xlsx","n_sheets":26,"sheets":["Accueil","Jeux","Papier","Cartons","Mouchoirs","Lego","Canard","Anglais","Bijoux","Météorite","Poissons","Dauphin","Excel","Ordinateur","Piège","Dionée","CP Mme VIALE","CP-CE1 Mme JEANNET","CE1 Mme GUILLOUX","CE1-CE2 Mme PINOT","CE2 Mme QUERAUD","CM1 M. MILLON","CM1-CM2 M. BECHADE","CM2 M. SOURY","CLIS Mme SANCHEZ","Statistiques"],"not_rendered":{"charts":0,"images":0,"macros":1,"external_links":0,"defined_names":0,"comments":0,"pivot_tables":0},"unopened":[],"bounds":{"document_bytes":16777216,"sheet_cells":100000,"rows_first":2000,"rows_last":500,"rows_between":2000,"halvings":0,"cell_chars":16384,"cell_head_chars":4096},"cells_cut":0,"cells_raw":0,"read":"whole","date_system":"1900"}

{"sheet":"Accueil","index":0,"n_rows":33,"n_cols":9,"rows_kept":33,"cut":false,"hidden":false,"merged":[[13,2,13,3],[14,2,14,3],[15,2,15,3],[22,0,22,1],[24,0,24,1],[16,2,16,3],[17,2,17,3],[18,2,18,3],[19,2,19,3],[20,2,20,3],[8,2,8,3],[9,2,9,3],[10,2,10,3],[11,2,11,3],[12,2,12,3],[4,0,4,2],[0,0,2,5],[5,2,5,3],[6,2,6,3],[7,2,7,3]]}
["Atelier Périscolaires\n2014-2015"]
[]
[]
[]
["Renseignements ateliers :"]
[null,"Nom de l'atelier","Nom des intervenants",null,null,null,null,null,"Me revoilà vers vous pour un problème que je trouve complexe."]
["Atelier","Jeux",null,null,null,null,null,null,"Peut-être même que j'en demande trop pour Excel :p"]
["Atelier","Papier"]
["Atelier","Cartons",null,null,null,null,null,null,"M'enfin, j'expose l'idée."]
["Atelier","Mouchoirs"]
["Atelier","Lego",null,null,null,null,null,null,"J'ai un classeur contenant :"]
["Atelier","Canard",null,null,null,null,null,null,"- Des feuilles d'ateliers"]
["Atelier","Anglais",null,null,null,null,null,null,"- Des feuilles de classes"]
["Atelier","Bijoux"]
["Atelier","Météorite",null,null,null,null,null,null,"Les cellules des feuilles de classes ont une liste de choix des ateliers sous chaque jour."]
["Atelier","Poissons",null,null,null,null,null,null,"Les cellules des feuilles d'ateliers attendent de recevoir l'ordre d'ajouter un enfant d'une classe ayant été ajouté à son atelier."]
["Atelier","Dauphin"]
["Atelier","Excel",null,null,null,null,null,null,"Exemple :"]
["Atelier","Ordinateur",null,null,null,null,null,null,"Classe de Mme JEANNET. Cellule D8 (qui concerne Manon)."]
["Atelier","Piège",null,null,null,null,null,null,"Cette cellule est une liste de choix (qui recense les ateliers)."]
["Atelier","Dionée",null,null,null,null,null,null,"Je clique, dans cette liste, sur \"Jeux\"."]
[null,null,null,null,null,null,null,null,"Je sais que Manon, tous les lundis de la période 1 (P = période), à fait l'atelier \"Jeux\"."]
["Nombre total d'élèves :",null,{"$f":"SUM('CP Mme VIALE'!B6:C6,'CP-CE1 Mme JEANNET'!A6:C6,'CE1 Mme GUILLOUX'!A6:C6,'CE1-CE2 Mme PINOT'!A6:C6,'CE2 Mme QUERAUD'!A6:C6,'CM1 M. MILLON'!A6:C6,'CM1-CM2 M. BECHADE'!A6:C6,'CLIS Mme SANCHEZ'!A6:C6,'CM2 M. SOURY'!A6:C6)","v":194}]
[null,null,null,null,null,null,null,null,"Maintenant, je veux savoir qui a fait l'atelier \"Jeux\"."]
["Dates des périodes :",null,null,null,null,null,null,null,"Je vais dans la feuille d'atelier \"Jeux\"."]
["P1","du","2014-09-02","au","2014-10-18",null,null,null,"Je souhaite voir dans cette feuille le NOM et le Prénoms des enfants ayant participer à l'atelier. Dans notre exemple : MARTIN en A40 et Manon B40."]
["P2","du","2014-11-02","au","2014-12-18"]
["P3","du","2015-01-04","au","2015-02-20",null,null,null,"Cela me parait difficile. Je sais ce que je souhaite mais peine à y arriver. Peut-être que quelqu'un pourrait m'aider :)"]
["P4","du","2015-03-08","au","2015-04-15"]
["P5","du","2015-05-02","au","2015-07-03"]
[]
[null,null,null,null,null,null,null,null,"'premiere cellule vide plag nommee"]
[null,null,null,null,null,null,null,null,"Range(\"MaPlage\").Cells.SpecialCells(xlCellTypeBlanks).Range(\"A1\").row"]

{"sheet":"Jeux","index":1,"n_rows":208,"n_cols":11,"rows_kept":208,"cut":false,"hidden":false,"merged":[[206,2,206,6],[207,2,207,6],[198,0,199,10],[202,2,202,6],[203,2,203,6],[204,2,204,6],[205,2,205,6],[165,0,166,10],[169,0,169,3],[169,4,169,5],[196,0,196,1],[197,0,197,1],[197,2,197,9],[132,0,133,10],[136,0,136,3],[136,4,136,5],[163,0,163,1],[164,0,164,1],[164,2,164,9],[99,0,100,10],[103,0,103,3],[103,4,103,5],[130,0,130,1],[131,0,131,1],[131,2,131,9],[66,0,67,10],[70,0,70,3],[70,4,70,5],[97,0,97,1],[98,0,98,1],[98,2,98,9],[33,0,34,10],[37,0,37,3],[64,0,64,1],[65,0,65,1],[65,2,65,9],[37,4,37,5]]}
[]
[]
[]
[]
[]
[]
[]
[]
[]
[]
[]
[]
[]
[]
[]
[]
[]
[]
[]
[]
[]
[]
[]
[]
[]
[]
[]
[]
[]
[]
[]
[]
[]
[{"$f":"Accueil!$B$7","v":"Jeux"}]
[]
[]
["Période :",{"$f":"Accueil!$A$26","v":"P1"},{"$f":"Accueil!$B$26","v":"du"},{"$f":"Accueil!$C$26","v":"2014-09-02"},{"$f":"Accueil!$D$26","v":"au"},{"$f":"Accueil!$E$26","v":"2014-10-18"}]
["Selectionnez la classe participant à l'atelier :"]
["NOM","Prénom","2014-09-02","2014-05-26","2014-05-27","2014-05-28","2014-05-29","2014-05-30","2014-05-31","2014-06-01","TOT"]
["MARTIN","Louanne",null,null,null,null,null,null,null,null,{"$f":"SUM(C40:J40)","v":0}]
["MARTIN","Samia",null,null,null,null,null,null,null,null,{"$f":"SUM(C41:J41)","v":0}]
[null,null,null,null,null,null,null,null,null,null,0]
[null,null,null,null,null,null,null,null,null,null,0]
[null,null,null,null,null,null,null,null,null,null,0]
[null,null,null,null,null,null,null,null,null,null,0]
[null,null,null,null,null,null,null,null,null,null,0]
[null,null,null,null,null,null,null,null,null,null,0]
[null,null,null,null,null,null,null,null,null,null,0]
[null,null,null,null,null,null,null,null,null,null,0]
[null,null,null,null,null,null,null,null,null,null,0]
[null,null,null,null,null,null,null,null,null,null,0]
[null,null,null,null,null,null,null,null,null,null,0]
[null,null,null,null,null,null,null,null,null,null,0]
[null,null,null,null,null,null,null,null,null,null,0]
[null,null,null,null,null,null,null,null,null,null,0]
[null,null,null,null,null,null,null,null,null,null,0]
[null,null,null,null,null,null,null,null,null,null,0]
[null,null,null,null,null,null,null,null,null,null,{"$f":"SUM(C58:J58)","v":0}]
[null,null,null,null,null,null,null,null,null,null,0]
[null,null,null,null,null,null,null,null,null,null,0]
[null,null,null,null,null,null,null,null,null,null,0]
[null,null,null,null,null,null,null,null,null,null,0]
[null,null,null,null,null,null,null,null,null,null,0]
[null,null,null,null,null,null,null,null,null,null,0]
["TOT Jour",null,{"$f":"SUM(C40:C64)","v":0},{"$f":"SUM(D40:D64)","v":0},0,0,0,0,0,0]
["TOT Période",null,{"$f":"SUM(C65:J65)","v":0}]
[{"$f":"Accueil!$B$7","v":"Jeux"}]
[]
[]
["Période :",{"$f":"Accueil!$A27","v":"P2"},{"$f":"Accueil!$B27","v":"du"},{"$f":"Accueil!$C27","v":"2014-11-02"},{"$f":"Accueil!$D27","v":"au"},{"$f":"Accueil!$E27","v":"2014-12-18"}]
["Selectionnez la classe participant à l'atelier :"]
["NOM","Prénom","2014-05-25","2014-05-26","2014-05-27","2014-05-28","2014-05-29","2014-05-30","2014-05-31","2014-06-01","TOT"]
[null,null,null,null,null,null,null,null,null,null,{"$f":"SUM(C73:J73)","v":0}]
[null,null,null,null,null,null,null,null,null,null,{"$f":"SUM(C74:J74)","v":0}]
[null,null,null,null,null,null,null,null,null,null,0]
[null,null,null,null,null,null,null,null,null,null,0]
[null,null,null,null,null,null,null,null,null,null,0]
[null,null,null,null,null,null,null,null,null,null,0]
[null,null,null,null,null,null,null,null,null,null,0]
[null,null,null,null,null,null,null,null,null,null,0]
[null,null,null,null,null,null,null,null,null,null,0]
[null,null,null,null,null,null,null,null,null,null,0]
[null,null,null,null,null,null,null,null,null,null,0]
[null,null,null,null,null,null,null,null,null,null,0]
[null,null,null,null,null,null,null,null,null,null,0]
[null,null,null,null,null,null,null,null,null,null,0]
[null,null,null,null,null,null,null,null,null,null,0]
[null,null,null,null,null,null,null,null,null,null,0]
[null,null,null,null,null,null,null,null,null,null,0]
[null,null,null,null,null,null,null,null,null,null,0]
[null,null,null,null,null,null,null,null,null,null,0]
[null,null,null,null,null,null,null,null,null,null,0]
[null,null,null,null,null,null,null,null,null,null,0]
[null,null,null,null,null,null,null,null,null,null,0]
[null,null,null,null,null,null,null,null,null,null,0]
[null,null,null,null,null,null,null,null,null,null,0]
[null,null,null,null,null,null,null,null,null,null,0]
["TOT Jour",null,{"$f":"SUM(C73:C97)","v":0},{"$f":"SUM(D73:D97)","v":0},0,0,0,0,0,0]
["TOT Période",null,{"$f":"SUM(C98:J98)","v":0}]
[{"$f":"Accueil!$B$7","v":"Jeux"}]
[]
[]
["Période :",{"$f":"Accueil!A28","v":"P3"},{"$f":"Accueil!$B28","v":"du"},{"$f":"Accueil!$C28","v":"2015-01-04"},{"$f":"Accueil!$D28","v":"au"},{"$f":"Accueil!$E28","v":"2015-02-20"}]
["Selectionnez la classe participant à l'atelier :"]
["NOM","Prénom","2014-05-25","2014-05-26","2014-05-27","2014-05-28","2014-05-29","2014-05-30","2014-05-31","2014-06-01","TOT"]
[null,null,null,null,null,null,null,null,null,null,{"$f":"SUM(C106:J106)","v":0}]
[null,null,null,null,null,null,null,null,null,null,{"$f":"SUM(C107:J107)","v":0}]
[null,null,null,null,null,null,null,null,null,null,0]
[null,null,null,null,null,null,null,null,null,null,0]
[null,null,null,null,null,null,null,null,null,null,0]
[null,null,null,null,null,null,null,null,null,null,0]
[null,null,null,null,null,null,null,null,null,null,0]
[null,null,null,null,null,null,null,null,null,null,0]
[null,null,null,null,null,null,null,null,null,null,0]
[null,null,null,null,null,null,null,null,null,null,0]
[null,null,null,null,null,null,null,null,null,null,0]
[null,null,null,null,null,null,null,null,null,null,0]
[null,null,null,null,null,null,null,null,null,null,0]
[null,null,null,null,null,null,null,null,null,null,0]
[null,null,null,null,null,null,null,null,null,null,0]
[null,null,null,null,null,null,null,null,null,null,0]
[null,null,null,null,null,null,null,null,null,null,0]
[null,null,null,null,null,null,null,null,null,null,0]
[null,null,null,null,null,null,null,null,null,null,0]
[null,null,null,null,null,null,null,null,null,null,0]
[null,null,null,null,null,null,null,null,null,null,0]
[null,null,null,null,null,null,null,null,null,null,0]
[null,null,null,null,null,null,null,null,null,null,0]
[null,null,null,null,null,null,null,null,null,null,0]
[null,null,null,null,null,null,null,null,null,null,0]
["TOT Jour",null,{"$f":"SUM(C106:C130)","v":0},{"$f":"SUM(D106:D130)","v":0},0,0,0,0,0,0]
["TOT Période",null,{"$f":"SUM(C131:J131)","v":0}]
[{"$f":"Accueil!$B$7","v":"Jeux"}]
[]
[]
["Période :",{"$f":"Accueil!A29","v":"P4"},{"$f":"Accueil!$B29","v":"du"},{"$f":"Accueil!$C29","v":"2015-03-08"},{"$f":"Accueil!$D29","v":"au"},{"$f":"Accueil!$E29","v":"2015-04-15"}]
["Selectionnez la classe participant à l'atelier :"]
["NOM","Prénom","2014-05-25","2014-05-26","2014-05-27","2014-05-28","2014-05-29","2014-05-30","2014-05-31","2014-06-01","TOT"]
[null,null,null,null,null,null,null,null,null,null,{"$f":"SUM(C139:J139)","v":0}]
[null,null,null,null,null,null,null,null,null,null,{"$f":"SUM(C140:J140)","v":0}]
[null,null,null,null,null,null,null,null,null,null,0]
[null,null,null,null,null,null,null,null,null,null,0]
[null,null,null,null,null,null,null,null,null,null,0]
[null,null,null,null,null,null,null,null,null,null,0]
[null,null,null,null,null,null,null,null,null,null,0]
[null,null,null,null,null,null,null,null,null,null,0]
[null,null,null,null,null,null,null,null,null,null,0]
[null,null,null,null,null,null,null,null,null,null,0]
[null,null,null,null,null,null,null,null,null,null,0]
[null,null,null,null,null,null,null,null,null,null,0]
[null,null,null,null,null,null,null,null,null,null,0]
[null,null,null,null,null,null,null,null,null,null,0]
[null,null,null,null,null,null,null,null,null,null,0]
[null,null,null,null,null,null,null,null,null,null,0]
[null,null,null,null,null,null,null,null,null,null,0]
[null,null,null,null,null,null,null,null,null,null,0]
[null,null,null,null,null,null,null,null,null,null,0]
[null,null,null,null,null,null,null,null,null,null,0]
[null,null,null,null,null,null,null,null,null,null,0]
[null,null,null,null,null,null,null,null,null,null,0]
[null,null,null,null,null,null,null,null,null,null,0]
[null,null,null,null,null,null,null,null,null,null,0]
[null,null,null,null,null,null,null,null,null,null,0]
["TOT Jour",null,{"$f":"SUM(C139:C163)","v":0},{"$f":"SUM(D139:D163)","v":0},0,0,0,0,0,0]
["TOT Période",null,{"$f":"SUM(C164:J164)","v":0}]
[{"$f":"Accueil!$B$7","v":"Jeux"}]
[]
[]
["Période :",{"$f":"Accueil!A30","v":"P5"},{"$f":"Accueil!$B30","v":"du"},{"$f":"Accueil!$C30","v":"2015-05-02"},{"$f":"Accueil!$D30","v":"au"},{"$f":"Accueil!$E30","v":"2015-07-03"}]
["Selectionnez la classe participant à l'atelier :"]
["NOM","Prénom","2014-05-25","2014-05-26","2014-05-27","2014-05-28","2014-05-29","2014-05-30","2014-05-31","2014-06-01","TOT"]
[null,null,null,null,null,null,null,null,null,null,{"$f":"SUM(C172:J172)","v":0}]
[null,null,null,null,null,null,null,null,null,null,{"$f":"SUM(C173:J173)","v":0}]
[null,null,null,null,null,null,null,null,null,null,0]
[null,null,null,null,null,null,null,null,null,null,0]
[null,null,null,null,null,null,null,null,null,null,0]
[null,null,null,null,null,null,null,null,null,null,0]
[null,null,null,null,null,null,null,null,null,null,0]
[null,null,null,null,null,null,null,null,null,null,0]
[null,null,null,null,null,null,null,null,null,null,0]
[null,null,null,null,null,null,null,null,null,null,0]
[null,null,null,null,null,null,null,null,null,null,0]
[null,null,null,null,null,null,null,null,null,null,0]
[null,null,null,null,null,null,null,null,null,null,0]
[null,null,null,null,null,null,null,null,null,null,0]
[null,null,null,null,null,null,null,null,null,null,0]
[null,null,null,null,null,null,null,null,null,null,0]
[null,null,null,null,null,null,null,null,null,null,0]
[null,null,null,null,null,null,null,null,null,null,0]
[null,null,null,null,null,null,null,null,null,null,0]
[null,null,null,null,null,null,null,null,null,null,0]
[null,null,null,null,null,null,null,null,null,null,0]
[null,null,null,null,null,null,null,null,null,null,0]
[null,null,null,null,null,null,null,null,null,null,0]
[null,null,null,null,null,null,null,null,null,null,0]
[null,null,null,null,null,null,null,null,null,null,0]
["TOT Jour",null,{"$f":"SUM(C172:C196)","v":0},{"$f":"SUM(D172:D196)","v":0},0,0,0,0,0,0]
["TOT Période",null,{"$f":"SUM(C197:J197)","v":0}]
["Statistiques"]
[]
[]
["Nombre d'heure de fréquentation :"]
[{"$f":"Accueil!$A26","v":"P1"},{"$f":"$C$66*1.5","v":0},"heures de présence pour cet atelier et pour cette période"]
[{"$f":"Accueil!$A27","v":"P2"},{"$f":"$C$99*1.5","v":0},"heures de présence pour cet atelier et pour cette période"]
[{"$f":"Accueil!$A28","v":"P3"},{"$f":"$C$132*1.5","v":0},"heures de présence pour cet atelier et pour cette période"]
[{"$f":"Accueil!$A29","v":"P4"},{"$f":"$C$165*1.5","v":0},"heures de présence pour cet atelier et pour cette période"]
[{"$f":"Accueil!$A30","v":"P5"},{"$f":"$C$198*1.5","v":0},"heures de présence pour cet atelier et pour cette période"]
["TOT",{"$f":"SUM($B$203:$B$207)","v":0},"heures de présence pour cet atelier et pour l'année"]

{"sheet":"Papier","index":2,"n_rows":208,"n_cols":11,"rows_kept":208,"cut":false,"hidden":false,"merged":[[33,0,34,10],[37,0,37,3],[37,4,37,5],[64,0,64,1],[65,0,65,1],[65,2,65,9],[66,0,67,10],[70,0,70,3],[70,4,70,5],[97,0,97,1],[98,0,98,1],[98,2,98,9],[99,0,100,10],[103,0,103,3],[103,4,103,5],[130,0,130,1],[131,0,131,1],[131,2,131,9],[132,0,133,10],[136,0,136,3],[136,4,136,5],[163,0,163,1],[164,0,164,1],[164,2,164,9],[165,0,166,10],[169,0,169,3],[169,4,169,5],[196,0,196,1],[197,0,197,1],[197,2,197,9],[206,2,206,6],[207,2,207,6],[198,0,199,10],[202,2,202,6],[203,2,203,6],[204,2,204,6],[205,2,205,6]]}
[]
[]
[]
[]
[]
[]
[]
[]
[]
[]
[]
[]
[]
[]
[]
[]
[]
[]
[]
[]
[]
[]
[]
[]
[]
[]
[]
[]
[]
[]
[]
[]
[]
[{"$f":"Accueil!$B8","v":"Papier"}]
[]
[]
["Période :",{"$f":"Accueil!$A$26","v":"P1"},{"$f":"Accueil!$B$26","v":"du"},{"$f":"Accueil!$C$26","v":"2014-09-02"},{"$f":"Accueil!$D$26","v":"au"},{"$f":"Accueil!$E$26","v":"2014-10-18"}]
["Selectionnez la classe participant à l'atelier :"]
["NOM","Prénom","2014-09-02","2014-05-26","2014-05-27","2014-05-28","2014-05-29","2014-05-30","2014-05-31","2014-06-01","TOT"]
["MARTIN","Marvin",null,null,null,null,null,null,null,null,{"$f":"SUM(C40:J40)","v":0}]
[null,null,null,null,null,null,null,null,null,null,{"$f":"SUM(C41:J41)","v":0}]
[null,null,null,null,null,null,null,null,null,null,0]
[null,null,null,null,null,null,null,null,null,null,0]
[null,null,null,null,null,null,null,null,null,null,0]
[null,null,null,null,null,null,null,null,null,null,0]
[null,null,null,null,null,null,null,null,null,null,0]
[null,null,null,null,null,null,null,null,null,null,0]
[null,null,null,null,null,null,null,null,null,null,0]
[null,null,null,null,null,null,null,null,null,null,0]
[null,null,null,null,null,null,null,null,null,null,0]
[null,null,null,null,null,null,null,null,null,null,0]
[null,null,null,null,null,null,null,null,null,null,0]
[null,null,null,null,null,null,null,null,null,null,0]
[null,null,null,null,null,null,null,null,null,null,0]
[null,null,null,null,null,null,null,null,null,null,0]
[null,null,null,null,null,null,null,null,null,null,0]
[null,null,null,null,null,null,null,null,null,null,0]
[null,null,null,null,null,null,null,null,null,null,0]
[null,null,null,null,null,null,null,null,null,null,0]
[null,null,null,null,null,null,null,null,null,null,0]
[null,null,null,null,null,null,null,null,null,null,0]
[null,null,null,null,null,null,null,null,null,null,0]
[null,null,null,null,null,null,null,null,null,null,0]
[null,null,null,null,null,null,null,null,null,null,0]
["TOT Jour",null,{"$f":"SUM(C40:C64)","v":0},{"$f":"SUM(D40:D64)","v":0},0,0,0,0,0,0]
["TOT Période",null,{"$f":"SUM(C65:J65)","v":0}]
[{"$f":"Accueil!$B8","v":"Papier"}]
[]
[]
["Période :",{"$f":"Accueil!$A27","v":"P2"},{"$f":"Accueil!$B27","v":"du"},{"$f":"Accueil!$C27","v":"2014-11-02"},{"$f":"Accueil!$D27","v":"au"},{"$f":"Accueil!$E27","v":"2014-12-18"}]
["Selectionnez la classe participant à l'atelier :"]
["NOM","Prénom","2014-05-25","2014-05-26","2014-05-27","2014-05-28","2014-05-29","2014-05-30","2014-05-31","2014-06-01","TOT"]
[null,null,null,null,null,null,null,null,null,null,{"$f":"SUM(C73:J73)","v":0}]
[null,null,null,null,null,null,null,null,null,null,{"$f":"SUM(C74:J74)","v":0}]
[null,null,null,null,null,null,null,null,null,null,0]
[null,null,null,null,null,null,null,null,null,null,0]
[null,null,null,null,null,null,null,null,null,null,0]
[null,null,null,null,null,null,null,null,null,null,0]
[null,null,null,null,null,null,null,null,null,null,0]
[null,null,null,null,null,null,null,null,null,null,0]
[null,null,null,null,null,null,null,null,null,null,0]
[null,null,null,null,null,null,null,null,null,null,0]
[null,null,null,null,null,null,null,null,null,null,0]
[null,null,null,null,null,null,null,null,null,null,0]
[null,null,null,null,null,null,null,null,null,null,0]
[null,null,null,null,null,null,null,null,null,null,0]
[null,null,null,null,null,null,null,null,null,null,0]
[null,null,null,null,null,null,null,null,null,null,0]
[null,null,null,null,null,null,null,null,null,null,0]
[null,null,null,null,null,null,null,null,null,null,0]
[null,null,null,null,null,null,null,null,null,null,0]
[null,null,null,null,null,null,null,null,null,null,0]
[null,null,null,null,null,null,null,null,null,null,0]
[null,null,null,null,null,null,null,null,null,null,0]
[null,null,null,null,null,null,null,null,null,null,0]
[null,null,null,null,null,null,null,null,null,null,0]
[null,null,null,null,null,null,null,null,null,null,0]
["TOT Jour",null,{"$f":"SUM(C73:C97)","v":0},{"$f":"SUM(D73:D97)","v":0},0,0,0,0,0,0]
["TOT Période",null,{"$f":"SUM(C98:J98)","v":0}]
[{"$f":"Accueil!$B8","v":"Papier"}]
[]
[]
["Période :",{"$f":"Accueil!A28","v":"P3"},{"$f":"Accueil!$B28","v":"du"},{"$f":"Accueil!$C28","v":"2015-01-04"},{"$f":"Accueil!$D28","v":"au"},{"$f":"Accueil!$E28","v":"2015-02-20"}]
["Selectionnez la classe participant à l'atelier :"]
["NOM","Prénom","2014-05-25","2014-05-26","2014-05-27","2014-05-28","2014-05-29","2014-05-30","2014-05-31","2014-06-01","TOT"]
["MARTIN","Alban",null,null,null,null,null,null,null,null,{"$f":"SUM(C106:J106)","v":0}]
[null,null,null,null,null,null,null,null,null,null,{"$f":"SUM(C107:J107)","v":0}]
[null,null,null,null,null,null,null,null,null,null,0]
[null,null,null,null,null,null,null,null,null,null,0]
[null,null,null,null,null,null,null,null,null,null,0]
[null,null,null,null,null,null,null,null,null,null,0]
[null,null,null,null,null,null,null,null,null,null,0]
[null,null,null,null,null,null,null,null,null,null,0]
[null,null,null,null,null,null,null,null,null,null,0]
[null,null,null,null,null,null,null,null,null,null,0]
[null,null,null,null,null,null,null,null,null,null,0]
[null,null,null,null,null,null,null,null,null,null,0]
[null,null,null,null,null,null,null,null,null,null,0]
[null,null,null,null,null,null,null,null,null,null,0]
[null,null,null,null,null,null,null,null,null,null,0]
[null,null,null,null,null,null,null,null,null,null,0]
[null,null,null,null,null,null,null,null,null,null,0]
[null,null,null,null,null,null,null,null,null,null,0]
[null,null,null,null,null,null,null,null,null,null,0]
[null,null,null,null,null,null,null,null,null,null,0]
[null,null,null,null,null,null,null,null,null,null,0]
[null,null,null,null,null,null,null,null,null,null,0]
[null,null,null,null,null,null,null,null,null,null,0]
[null,null,null,null,null,null,null,null,null,null,0]
[null,null,null,null,null,null,null,null,null,null,0]
["TOT Jour",null,{"$f":"SUM(C106:C130)","v":0},{"$f":"SUM(D106:D130)","v":0},0,0,0,0,0,0]
["TOT Période",null,{"$f":"SUM(C131:J131)","v":0}]
[{"$f":"Accueil!$B8","v":"Papier"}]
[]
[]
["Période :",{"$f":"Accueil!A29","v":"P4"},{"$f":"Accueil!$B29","v":"du"},{"$f":"Accueil!$C29","v":"2015-03-08"},{"$f":"Accueil!$D29","v":"au"},{"$f":"Accueil!$E29","v":"2015-04-15"}]
["Selectionnez la classe participant à l'atelier :"]
["NOM","Prénom","2014-05-25","2014-05-26","2014-05-27","2014-05-28","2014-05-29","2014-05-30","2014-05-31","2014-06-01","TOT"]
[null,null,null,null,null,null,null,null,null,null,{"$f":"SUM(C139:J139)","v":0}]
[null,null,null,null,null,null,null,null,null,null,{"$f":"SUM(C140:J140)","v":0}]
[null,null,null,null,null,null,null,null,null,null,0]
[null,null,null,null,null,null,null,null,null,null,0]
[null,null,null,null,null,null,null,null,null,null,0]
[null,null,null,null,null,null,null,null,null,null,0]
[null,null,null,null,null,null,null,null,null,null,0]
[null,null,null,null,null,null,null,null,null,null,0]
[null,null,null,null,null,null,null,null,null,null,0]
[null,null,null,null,null,null,null,null,null,null,0]
[null,null,null,null,null,null,null,null,null,null,0]
[null,null,null,null,null,null,null,null,null,null,0]
[null,null,null,null,null,null,null,null,null,null,0]
[null,null,null,null,null,null,null,null,null,null,0]
[null,null,null,null,null,null,null,null,null,null,0]
[null,null,null,null,null,null,null,null,null,null,0]
[null,null,null,null,null,null,null,null,null,null,0]
[null,null,null,null,null,null,null,null,null,null,0]
[null,null,null,null,null,null,null,null,null,null,0]
[null,null,null,null,null,null,null,null,null,null,0]
[null,null,null,null,null,null,null,null,null,null,0]
[null,null,null,null,null,null,null,null,null,null,0]
[null,null,null,null,null,null,null,null,null,null,0]
[null,null,null,null,null,null,null,null,null,null,0]
[null,null,null,null,null,null,null,null,null,null,0]
["TOT Jour",null,{"$f":"SUM(C139:C163)","v":0},{"$f":"SUM(D139:D163)","v":0},0,0,0,0,0,0]
["TOT Période",null,{"$f":"SUM(C164:J164)","v":0}]
[{"$f":"Accueil!$B8","v":"Papier"}]
[]
[]
["Période :",{"$f":"Accueil!A30","v":"P5"},{"$f":"Accueil!$B30","v":"du"},{"$f":"Accueil!$C30","v":"2015-05-02"},{"$f":"Accueil!$D30","v":"au"},{"$f":"Accueil!$E30","v":"2015-07-03"}]
["Selectionnez la classe participant à l'atelier :"]
["NOM","Prénom","2014-05-25","2014-05-26","2014-05-27","2014-05-28","2014-05-29","2014-05-30","2014-05-31","2014-06-01","TOT"]
[null,null,null,null,null,null,null,null,null,null,{"$f":"SUM(C172:J172)","v":0}]
[null,null,null,null,null,null,null,null,null,null,{"$f":"SUM(C173:J173)","v":0}]
[null,null,null,null,null,null,null,null,null,null,0]
[null,null,null,null,null,null,null,null,null,null,0]
[null,null,null,null,null,null,null,null,null,null,0]
[null,null,null,null,null,null,null,null,null,null,0]
[null,null,null,null,null,null,null,null,null,null,0]
[null,null,null,null,null,null,null,null,null,null,0]
[null,null,null,null,null,null,null,null,null,null,0]
[null,null,null,null,null,null,null,null,null,null,0]
[null,null,null,null,null,null,null,null,null,null,0]
[null,null,null,null,null,null,null,null,null,null,0]
[null,null,null,null,null,null,null,null,null,null,0]
[null,null,null,null,null,null,null,null,null,null,0]
[null,null,null,null,null,null,null,null,null,null,0]
[null,null,null,null,null,null,null,null,null,null,0]
[null,null,null,null,null,null,null,null,null,null,0]
[null,null,null,null,null,null,null,null,null,null,0]
[null,null,null,null,null,null,null,null,null,null,0]
[null,null,null,null,null,null,null,null,null,null,0]
[null,null,null,null,null,null,null,null,null,null,0]
[null,null,null,null,null,null,null,null,null,null,0]
[null,null,null,null,null,null,null,null,null,null,0]
[null,null,null,null,null,null,null,null,null,null,0]
[null,null,null,null,null,null,null,null,null,null,0]
["TOT Jour",null,{"$f":"SUM(C172:C196)","v":0},{"$f":"SUM(D172:D196)","v":0},0,0,0,0,0,0]
["TOT Période",null,{"$f":"SUM(C197:J197)","v":0}]
["Statistiques"]
[]
[]
["Nombre d'heure de fréquentation :"]
[{"$f":"Accueil!$A26","v":"P1"},{"$f":"$C$66*1.5","v":0},"heures de présence pour cet atelier et pour cette période"]
[{"$f":"Accueil!$A27","v":"P2"},{"$f":"$C$99*1.5","v":0},"heures de présence pour cet atelier et pour cette période"]
[{"$f":"Accueil!$A28","v":"P3"},{"$f":"$C$132*1.5","v":0},"heures de présence pour cet atelier et pour cette période"]
[{"$f":"Accueil!$A29","v":"P4"},{"$f":"$C$165*1.5","v":0},"heures de présence pour cet atelier et pour cette période"]
[{"$f":"Accueil!$A30","v":"P5"},{"$f":"$C$198*1.5","v":0},"heures de présence pour cet atelier et pour cette période"]
["TOT",{"$f":"SUM($B$203:$B$207)","v":0},"heures de présence pour cet atelier et pour l'année"]

{"sheet":"Cartons","index":3,"n_rows":208,"n_cols":11,"rows_kept":208,"cut":false,"hidden":false,"merged":[[33,0,34,10],[37,0,37,3],[37,4,37,5],[64,0,64,1],[65,0,65,1],[65,2,65,9],[66,0,67,10],[70,0,70,3],[70,4,70,5],[97,0,97,1],[98,0,98,1],[98,2,98,9],[99,0,100,10],[103,0,103,3],[103,4,103,5],[130,0,130,1],[131,0,131,1],[131,2,131,9],[132,0,133,10],[136,0,136,3],[136,4,136,5],[163,0,163,1],[164,0,164,1],[164,2,164,9],[165,0,166,10],[169,0,169,3],[169,4,169,5],[196,0,196,1],[197,0,197,1],[197,2,197,9],[207,2,207,6],[198,0,199,10],[202,2,202,6],[203,2,203,6],[204,2,204,6],[205,2,205,6],[206,2,206,6]]}
[]
[]
[]
[]
[]
[]
[]
[]
[]
[]
[]
[]
[]
[]
[]
[]
[]
[]
[]
[]
[]
[]
[]
[]
[]
[]
[]
[]
[]
[]
[]
[]
[]
[{"$f":"Accueil!$B9","v":"Cartons"}]
[]
[]
["Période :",{"$f":"Accueil!$A$26","v":"P1"},{"$f":"Accueil!$B$26","v":"du"},{"$f":"Accueil!$C$26","v":"2014-09-02"},{"$f":"Accueil!$D$26","v":"au"},{"$f":"Accueil!$E$26","v":"2014-10-18"}]
["Selectionnez la classe participant à l'atelier :"]
["NOM","Prénom","2014-09-02","2014-05-26","2014-05-27","2014-05-28","2014-05-29","2014-05-30","2014-05-31","2014-06-01","TOT"]
[null,null,null,null,null,null,null,null,null,null,{"$f":"SUM(C40:J40)","v":0}]
[null,null,null,null,null,null,null,null,null,null,{"$f":"SUM(C41:J41)","v":0}]
[null,null,null,null,null,null,null,null,null,null,0]
[null,null,null,null,null,null,null,null,null,null,0]
[null,null,null,null,null,null,null,null,null,null,0]
[null,null,null,null,null,null,null,null,null,null,0]
[null,null,null,null,null,null,null,null,null,null,0]
[null,null,null,null,null,null,null,null,null,null,0]
[null,null,null,null,null,null,null,null,null,null,0]
[null,null,null,null,null,null,null,null,null,null,0]
[null,null,null,null,null,null,null,null,null,null,0]
[null,null,null,null,null,null,null,null,null,null,0]
[null,null,null,null,null,null,null,null,null,null,0]
[null,null,null,null,null,null,null,null,null,null,0]
[null,null,null,null,null,null,null,null,null,null,0]
[null,null,null,null,null,null,null,null,null,null,0]
[null,null,null,null,null,null,null,null,null,null,0]
[null,null,null,null,null,null,null,null,null,null,0]
[null,null,null,null,null,null,null,null,null,null,0]
[null,null,null,null,null,null,null,null,null,null,0]
[null,null,null,null,null,null,null,null,null,null,0]
[null,null,null,null,null,null,null,null,null,null,0]
[null,null,null,null,null,null,null,null,null,null,0]
[null,null,null,null,null,null,null,null,null,null,0]
[null,null,null,null,null,null,null,null,null,null,0]
["TOT Jour",null,{"$f":"SUM(C40:C64)","v":0},{"$f":"SUM(D40:D64)","v":0},0,0,0,0,0,0]
["TOT Période",null,{"$f":"SUM(C65:J65)","v":0}]
[{"$f":"Accueil!$B9","v":"Cartons"}]
[]
[]
["Période :",{"$f":"Accueil!$A27","v":"P2"},{"$f":"Accueil!$B27","v":"du"},{"$f":"Accueil!$C27","v":"2014-11-02"},{"$f":"Accueil!$D27","v":"au"},{"$f":"Accueil!$E27","v":"2014-12-18"}]
["Selectionnez la classe participant à l'atelier :"]
["NOM","Prénom","2014-05-25","2014-05-26","2014-05-27","2014-05-28","2014-05-29","2014-05-30","2014-05-31","2014-06-01","TOT"]
[null,null,null,null,null,null,null,null,null,null,{"$f":"SUM(C73:J73)","v":0}]
[null,null,null,null,null,null,null,null,null,null,{"$f":"SUM(C74:J74)","v":0}]
[null,null,null,null,null,null,null,null,null,null,0]
[null,null,null,null,null,null,null,null,null,null,0]
[null,null,null,null,null,null,null,null,null,null,0]
[null,null,null,null,null,null,null,null,null,null,0]
[null,null,null,null,null,null,null,null,null,null,0]
[null,null,null,null,null,null,null,null,null,null,0]
[null,null,null,null,null,null,null,null,null,null,0]
[null,null,null,null,null,null,null,null,null,null,0]
[null,null,null,null,null,null,null,null,null,null,0]
[null,null,null,null,null,null,null,null,null,null,0]
[null,null,null,null,null,null,null,null,null,null,0]
[null,null,null,null,null,null,null,null,null,null,0]
[null,null,null,null,null,null,null,null,null,null,0]
[null,null,null,null,null,null,null,null,null,null,0]
[null,null,null,null,null,null,null,null,null,null,0]
[null,null,null,null,null,null,null,null,null,null,0]
[null,null,null,null,null,null,null,null,null,null,0]
[null,null,null,null,null,null,null,null,null,null,0]
[null,null,null,null,null,null,null,null,null,null,0]
[null,null,null,null,null,null,null,null,null,null,0]
[null,null,null,null,null,null,null,null,null,null,0]
[null,null,null,null,null,null,null,null,null,null,0]
[null,null,null,null,null,null,null,null,null,null,0]
["TOT Jour",null,{"$f":"SUM(C73:C97)","v":0},{"$f":"SUM(D73:D97)","v":0},0,0,0,0,0,0]
["TOT Période",null,{"$f":"SUM(C98:J98)","v":0}]
[{"$f":"Accueil!$B9","v":"Cartons"}]
[]
[]
["Période :",{"$f":"Accueil!A28","v":"P3"},{"$f":"Accueil!$B28","v":"du"},{"$f":"Accueil!$C28","v":"2015-01-04"},{"$f":"Accueil!$D28","v":"au"},{"$f":"Accueil!$E28","v":"2015-02-20"}]
["Selectionnez la classe participant à l'atelier :"]
["NOM","Prénom","2014-05-25","2014-05-26","2014-05-27","2014-05-28","2014-05-29","2014-05-30","2014-05-31","2014-06-01","TOT"]
[null,null,null,null,null,null,null,null,null,null,{"$f":"SUM(C106:J106)","v":0}]
[null,null,null,null,null,null,null,null,null,null,{"$f":"SUM(C107:J107)","v":0}]
[null,null,null,null,null,null,null,null,null,null,0]
[null,null,null,null,null,null,null,null,null,null,0]
[null,null,null,null,null,null,null,null,null,null,0]
[null,null,null,null,null,null,null,null,null,null,0]
[null,null,null,null,null,null,null,null,null,null,0]
[null,null,null,null,null,null,null,null,null,null,0]
[null,null,null,null,null,null,null,null,null,null,0]
[null,null,null,null,null,null,null,null,null,null,0]
[null,null,null,null,null,null,null,null,null,null,0]
[null,null,null,null,null,null,null,null,null,null,0]
[null,null,null,null,null,null,null,null,null,null,0]
[null,null,null,null,null,null,null,null,null,null,0]
[null,null,null,null,null,null,null,null,null,null,0]
[null,null,null,null,null,null,null,null,null,null,0]
[null,null,null,null,null,null,null,null,null,null,0]
[null,null,null,null,null,null,null,null,null,null,0]
[null,null,null,null,null,null,null,null,null,null,0]
[null,null,null,null,null,null,null,null,null,null,0]
[null,null,null,null,null,null,null,null,null,null,0]
[null,null,null,null,null,null,null,null,null,null,0]
[null,null,null,null,null,null,null,null,null,null,0]
[null,null,null,null,null,null,null,null,null,null,0]
[null,null,null,null,null,null,null,null,null,null,0]
["TOT Jour",null,{"$f":"SUM(C106:C130)","v":0},{"$f":"SUM(D106:D130)","v":0},0,0,0,0,0,0]
["TOT Période",null,{"$f":"SUM(C131:J131)","v":0}]
[{"$f":"Accueil!$B9","v":"Cartons"}]
[]
[]
["Période :",{"$f":"Accueil!A29","v":"P4"},{"$f":"Accueil!$B29","v":"du"},{"$f":"Accueil!$C29","v":"2015-03-08"},{"$f":"Accueil!$D29","v":"au"},{"$f":"Accueil!$E29","v":"2015-04-15"}]
["Selectionnez la classe participant à l'atelier :"]
["NOM","Prénom","2014-05-25","2014-05-26","2014-05-27","2014-05-28","2014-05-29","2014-05-30","2014-05-31","2014-06-01","TOT"]
[null,null,null,null,null,null,null,null,null,null,{"$f":"SUM(C139:J139)","v":0}]
[null,null,null,null,null,null,null,null,null,null,{"$f":"SUM(C140:J140)","v":0}]
[null,null,null,null,null,null,null,null,null,null,0]
[null,null,null,null,null,null,null,null,null,null,0]
[null,null,null,null,null,null,null,null,null,null,0]
[null,null,null,null,null,null,null,null,null,null,0]
[null,null,null,null,null,null,null,null,null,null,0]
[null,null,null,null,null,null,null,null,null,null,0]
[null,null,null,null,null,null,null,null,null,null,0]
[null,null,null,null,null,null,null,null,null,null,0]
[null,null,null,null,null,null,null,null,null,null,0]
[null,null,null,null,null,null,null,null,null,null,0]
[null,null,null,null,null,null,null,null,null,null,0]
[null,null,null,null,null,null,null,null,null,null,0]
[null,null,null,null,null,null,null,null,null,null,0]
[null,null,null,null,null,null,null,null,null,null,0]
[null,null,null,null,null,null,null,null,null,null,0]
[null,null,null,null,null,null,null,null,null,null,0]
[null,null,null,null,null,null,null,null,null,null,0]
[null,null,null,null,null,null,null,null,null,null,0]
[null,null,null,null,null,null,null,null,null,null,0]
[null,null,null,null,null,null,null,null,null,null,0]
[null,null,null,null,null,null,null,null,null,null,0]
[null,null,null,null,null,null,null,null,null,null,0]
[null,null,null,null,null,null,null,null,null,null,0]
["TOT Jour",null,{"$f":"SUM(C139:C163)","v":0},{"$f":"SUM(D139:D163)","v":0},0,0,0,0,0,0]
["TOT Période",null,{"$f":"SUM(C164:J164)","v":0}]
[{"$f":"Accueil!$B9","v":"Cartons"}]
[]
[]
["Période :",{"$f":"Accueil!A30","v":"P5"},{"$f":"Accueil!$B30","v":"du"},{"$f":"Accueil!$C30","v":"2015-05-02"},{"$f":"Accueil!$D30","v":"au"},{"$f":"Accueil!$E30","v":"2015-07-03"}]
["Selectionnez la classe participant à l'atelier :"]
["NOM","Prénom","2014-05-25","2014-05-26","2014-05-27","2014-05-28","2014-05-29","2014-05-30","2014-05-31","2014-06-01","TOT"]
[null,null,null,null,null,null,null,null,null,null,{"$f":"SUM(C172:J172)","v":0}]
[null,null,null,null,null,null,null,null,null,null,{"$f":"SUM(C173:J173)","v":0}]
[null,null,null,null,null,null,null,null,null,null,0]
[null,null,null,null,null,null,null,null,null,null,0]
[null,null,null,null,null,null,null,null,null,null,0]
[null,null,null,null,null,null,null,null,null,null,0]
[null,null,null,null,null,null,null,null,null,null,0]
[null,null,null,null,null,null,null,null,null,null,0]
[null,null,null,null,null,null,null,null,null,null,0]
[null,null,null,null,null,null,null,null,null,null,0]
[null,null,null,null,null,null,null,null,null,null,0]
[null,null,null,null,null,null,null,null,null,null,0]
[null,null,null,null,null,null,null,null,null,null,0]
[null,null,null,null,null,null,null,null,null,null,0]
[null,null,null,null,null,null,null,null,null,null,0]
[null,null,null,null,null,null,null,null,null,null,0]
[null,null,null,null,null,null,null,null,null,null,0]
[null,null,null,null,null,null,null,null,null,null,0]
[null,null,null,null,null,null,null,null,null,null,0]
[null,null,null,null,null,null,null,null,null,null,0]
[null,null,null,null,null,null,null,null,null,null,0]
[null,null,null,null,null,null,null,null,null,null,0]
[null,null,null,null,null,null,null,null,null,null,0]
[null,null,null,null,null,null,null,null,null,null,0]
[null,null,null,null,null,null,null,null,null,null,0]
["TOT Jour",null,{"$f":"SUM(C172:C196)","v":0},{"$f":"SUM(D172:D196)","v":0},0,0,0,0,0,0]
["TOT Période",null,{"$f":"SUM(C197:J197)","v":0}]
["Statistiques"]
[]
[]
["Nombre d'heure de fréquentation :"]
[{"$f":"Accueil!$A26","v":"P1"},{"$f":"$C$66*1.5","v":0},"heures de présence pour cet atelier et pour cette période"]
[{"$f":"Accueil!$A27","v":"P2"},{"$f":"$C$99*1.5","v":0},"heures de présence pour cet atelier et pour cette période"]
[{"$f":"Accueil!$A28","v":"P3"},{"$f":"$C$132*1.5","v":0},"heures de présence pour cet atelier et pour cette période"]
[{"$f":"Accueil!$A29","v":"P4"},{"$f":"$C$165*1.5","v":0},"heures de présence pour cet atelier et pour cette période"]
[{"$f":"Accueil!$A30","v":"P5"},{"$f":"$C$198*1.5","v":0},"heures de présence pour cet atelier et pour cette période"]
["TOT",{"$f":"SUM($B$203:$B$207)","v":0},"heures de présence pour cet atelier et pour l'année"]

{"sheet":"Mouchoirs","index":4,"n_rows":208,"n_cols":11,"rows_kept":208,"cut":false,"hidden":false,"merged":[[33,0,34,10],[37,0,37,3],[37,4,37,5],[64,0,64,1],[65,0,65,1],[65,2,65,9],[66,0,67,10],[70,0,70,3],[70,4,70,5],[97,0,97,1],[98,0,98,1],[98,2,98,9],[99,0,100,10],[103,0,103,3],[103,4,103,5],[130,0,130,1],[131,0,131,1],[131,2,131,9],[132,0,133,10],[136,0,136,3],[136,4,136,5],[163,0,163,1],[164,0,164,1],[164,2,164,9],[165,0,166,10],[169,0,169,3],[169,4,169,5],[196,0,196,1],[197,0,197,1],[197,2,197,9],[207,2,207,6],[198,0,199,10],[202,2,202,6],[203,2,203,6],[204,2,204,6],[205,2,205,6],[206,2,206,6]]}
[]
[]
[]
[]
[]
[]
[]
[]
[]
[]
[]
[]
[]
[]
[]
[]
[]
[]
[]
[]
[]
[]
[]
[]
[]
[]
[]
[]
[]
[]
[]
[]
[]
[{"$f":"Accueil!$B10","v":"Mouchoirs"}]
[]
[]
["Période :",{"$f":"Accueil!$A$26","v":"P1"},{"$f":"Accueil!$B$26","v":"du"},{"$f":"Accueil!$C$26","v":"2014-09-02"},{"$f":"Accueil!$D$26","v":"au"},{"$f":"Accueil!$E$26","v":"2014-10-18"}]
["Selectionnez la classe participant à l'atelier :"]
["NOM","Prénom","2014-09-02","2014-05-26","2014-05-27","2014-05-28","2014-05-29","2014-05-30","2014-05-31","2014-06-01","TOT"]
[null,null,null,null,null,null,null,null,null,null,{"$f":"SUM(C40:J40)","v":0}]
[null,null,null,null,null,null,null,null,null,null,{"$f":"SUM(C41:J41)","v":0}]
[null,null,null,null,null,null,null,null,null,null,0]
[null,null,null,null,null,null,null,null,null,null,0]
[null,null,null,null,null,null,null,null,null,null,0]
[null,null,null,null,null,null,null,null,null,null,0]
[null,null,null,null,null,null,null,null,null,null,0]
[null,null,null,null,null,null,null,null,null,null,0]
[null,null,null,null,null,null,null,null,null,null,0]
[null,null,null,null,null,null,null,null,null,null,0]
[null,null,null,null,null,null,null,null,null,null,0]
[null,null,null,null,null,null,null,null,null,null,0]
[null,null,null,null,null,null,null,null,null,null,0]
[null,null,null,null,null,null,null,null,null,null,0]
[null,null,null,null,null,null,null,null,null,null,0]
[null,null,null,null,null,null,null,null,null,null,0]
[null,null,null,null,null,null,null,null,null,null,0]
[null,null,null,null,null,null,null,null,null,null,0]
[null,null,null,null,null,null,null,null,null,null,0]
[null,null,null,null,null,null,null,null,null,null,0]
[null,null,null,null,null,null,null,null,null,null,0]
[null,null,null,null,null,null,null,null,null,null,0]
[null,null,null,null,null,null,null,null,null,null,0]
[null,null,null,null,null,null,null,null,null,null,0]
[null,null,null,null,null,null,null,null,null,null,0]
["TOT Jour",null,{"$f":"SUM(C40:C64)","v":0},{"$f":"SUM(D40:D64)","v":0},0,0,0,0,0,0]
["TOT Période",null,{"$f":"SUM(C65:J65)","v":0}]
[{"$f":"Accueil!$B10","v":"Mouchoirs"}]
[]
[]
["Période :",{"$f":"Accueil!$A27","v":"P2"},{"$f":"Accueil!$B27","v":"du"},{"$f":"Accueil!$C27","v":"2014-11-02"},{"$f":"Accueil!$D27","v":"au"},{"$f":"Accueil!$E27","v":"2014-12-18"}]
["Selectionnez la classe participant à l'atelier :"]
["NOM","Prénom","2014-05-25","2014-05-26","2014-05-27","2014-05-28","2014-05-29","2014-05-30","2014-05-31","2014-06-01","TOT"]
[null,null,null,null,null,null,null,null,null,null,{"$f":"SUM(C73:J73)","v":0}]
[null,null,null,null,null,null,null,null,null,null,{"$f":"SUM(C74:J74)","v":0}]
[null,null,null,null,null,null,null,null,null,null,0]
[null,null,null,null,null,null,null,null,null,null,0]
[null,null,null,null,null,null,null,null,null,null,0]
[null,null,null,null,null,null,null,null,null,null,0]
[null,null,null,null,null,null,null,null,null,null,0]
[null,null,null,null,null,null,null,null,null,null,0]
[null,null,null,null,null,null,null,null,null,null,0]
[null,null,null,null,null,null,null,null,null,null,0]
[null,null,null,null,null,null,null,null,null,null,0]
[null,null,null,null,null,null,null,null,null,null,0]
[null,null,null,null,null,null,null,null,null,null,0]
[null,null,null,null,null,null,null,null,null,null,0]
[null,null,null,null,null,null,null,null,null,null,0]
[null,null,null,null,null,null,null,null,null,null,0]
[null,null,null,null,null,null,null,null,null,null,0]
[null,null,null,null,null,null,null,null,null,null,0]
[null,null,null,null,null,null,null,null,null,null,0]
[null,null,null,null,null,null,null,null,null,null,0]
[null,null,null,null,null,null,null,null,null,null,0]
[null,null,null,null,null,null,null,null,null,null,0]
[null,null,null,null,null,null,null,null,null,null,0]
[null,null,null,null,null,null,null,null,null,null,0]
[null,null,null,null,null,null,null,null,null,null,0]
["TOT Jour",null,{"$f":"SUM(C73:C97)","v":0},{"$f":"SUM(D73:D97)","v":0},0,0,0,0,0,0]
["TOT Période",null,{"$f":"SUM(C98:J98)","v":0}]
[{"$f":"Accueil!$B10","v":"Mouchoirs"}]
[]
[]
["Période :",{"$f":"Accueil!A28","v":"P3"},{"$f":"Accueil!$B28","v":"du"},{"$f":"Accueil!$C28","v":"2015-01-04"},{"$f":"Accueil!$D28","v":"au"},{"$f":"Accueil!$E28","v":"2015-02-20"}]
["Selectionnez la classe participant à l'atelier :"]
["NOM","Prénom","2014-05-25","2014-05-26","2014-05-27","2014-05-28","2014-05-29","2014-05-30","2014-05-31","2014-06-01","TOT"]
[null,null,null,null,null,null,null,null,null,null,{"$f":"SUM(C106:J106)","v":0}]
[null,null,null,null,null,null,null,null,null,null,{"$f":"SUM(C107:J107)","v":0}]
[null,null,null,null,null,null,null,null,null,null,0]
[null,null,null,null,null,null,null,null,null,null,0]
[null,null,null,null,null,null,null,null,null,null,0]
[null,null,null,null,null,null,null,null,null,null,0]
[null,null,null,null,null,null,null,null,null,null,0]
[null,null,null,null,null,null,null,null,null,null,0]
[null,null,null,null,null,null,null,null,null,null,0]
[null,null,null,null,null,null,null,null,null,null,0]
[null,null,null,null,null,null,null,null,null,null,0]
[null,null,null,null,null,null,null,null,null,null,0]
[null,null,null,null,null,null,null,null,null,null,0]
[null,null,null,null,null,null,null,null,null,null,0]
[null,null,null,null,null,null,null,null,null,null,0]
[null,null,null,null,null,null,null,null,null,null,0]
[null,null,null,null,null,null,null,null,null,null,0]
[null,null,null,null,null,null,null,null,null,null,0]
[null,null,null,null,null,null,null,null,null,null,0]
[null,null,null,null,null,null,null,null,null,null,0]
[null,null,null,null,null,null,null,null,null,null,0]
[null,null,null,null,null,null,null,null,null,null,0]
[null,null,null,null,null,null,null,null,null,null,0]
[null,null,null,null,null,null,null,null,null,null,0]
[null,null,null,null,null,null,null,null,null,null,0]
["TOT Jour",null,{"$f":"SUM(C106:C130)","v":0},{"$f":"SUM(D106:D130)","v":0},0,0,0,0,0,0]
["TOT Période",null,{"$f":"SUM(C131:J131)","v":0}]
[{"$f":"Accueil!$B10","v":"Mouchoirs"}]
[]
[]
["Période :",{"$f":"Accueil!A29","v":"P4"},{"$f":"Accueil!$B29","v":"du"},{"$f":"Accueil!$C29","v":"2015-03-08"},{"$f":"Accueil!$D29","v":"au"},{"$f":"Accueil!$E29","v":"2015-04-15"}]
["Selectionnez la classe participant à l'atelier :"]
["NOM","Prénom","2014-05-25","2014-05-26","2014-05-27","2014-05-28","2014-05-29","2014-05-30","2014-05-31","2014-06-01","TOT"]
[null,null,null,null,null,null,null,null,null,null,{"$f":"SUM(C139:J139)","v":0}]
[null,null,null,null,null,null,null,null,null,null,{"$f":"SUM(C140:J140)","v":0}]
[null,null,null,null,null,null,null,null,null,null,0]
[null,null,null,null,null,null,null,null,null,null,0]
[null,null,null,null,null,null,null,null,null,null,0]
[null,null,null,null,null,null,null,null,null,null,0]
[null,null,null,null,null,null,null,null,null,null,0]
[null,null,null,null,null,null,null,null,null,null,0]
[null,null,null,null,null,null,null,null,null,null,0]
[null,null,null,null,null,null,null,null,null,null,0]
[null,null,null,null,null,null,null,null,null,null,0]
[null,null,null,null,null,null,null,null,null,null,0]
[null,null,null,null,null,null,null,null,null,null,0]
[null,null,null,null,null,null,null,null,null,null,0]
[null,null,null,null,null,null,null,null,null,null,0]
[null,null,null,null,null,null,null,null,null,null,0]
[null,null,null,null,null,null,null,null,null,null,0]
[null,null,null,null,null,null,null,null,null,null,0]
[null,null,null,null,null,null,null,null,null,null,0]
[null,null,null,null,null,null,null,null,null,null,0]
[null,null,null,null,null,null,null,null,null,null,0]
[null,null,null,null,null,null,null,null,null,null,0]
[null,null,null,null,null,null,null,null,null,null,0]
[null,null,null,null,null,null,null,null,null,null,0]
[null,null,null,null,null,null,null,null,null,null,0]
["TOT Jour",null,{"$f":"SUM(C139:C163)","v":0},{"$f":"SUM(D139:D163)","v":0},0,0,0,0,0,0]
["TOT Période",null,{"$f":"SUM(C164:J164)","v":0}]
[{"$f":"Accueil!$B10","v":"Mouchoirs"}]
[]
[]
["Période :",{"$f":"Accueil!A30","v":"P5"},{"$f":"Accueil!$B30","v":"du"},{"$f":"Accueil!$C30","v":"2015-05-02"},{"$f":"Accueil!$D30","v":"au"},{"$f":"Accueil!$E30","v":"2015-07-03"}]
["Selectionnez la classe participant à l'atelier :"]
["NOM","Prénom","2014-05-25","2014-05-26","2014-05-27","2014-05-28","2014-05-29","2014-05-30","2014-05-31","2014-06-01","TOT"]
[null,null,null,null,null,null,null,null,null,null,{"$f":"SUM(C172:J172)","v":0}]
[null,null,null,null,null,null,null,null,null,null,{"$f":"SUM(C173:J173)","v":0}]
[null,null,null,null,null,null,null,null,null,null,0]
[null,null,null,null,null,null,null,null,null,null,0]
[null,null,null,null,null,null,null,null,null,null,0]
[null,null,null,null,null,null,null,null,null,null,0]
[null,null,null,null,null,null,null,null,null,null,0]
[null,null,null,null,null,null,null,null,null,null,0]
[null,null,null,null,null,null,null,null,null,null,0]
[null,null,null,null,null,null,null,null,null,null,0]
[null,null,null,null,null,null,null,null,null,null,0]
[null,null,null,null,null,null,null,null,null,null,0]
[null,null,null,null,null,null,null,null,null,null,0]
[null,null,null,null,null,null,null,null,null,null,0]
[null,null,null,null,null,null,null,null,null,null,0]
[null,null,null,null,null,null,null,null,null,null,0]
[null,null,null,null,null,null,null,null,null,null,0]
[null,null,null,null,null,null,null,null,null,null,0]
[null,null,null,null,null,null,null,null,null,null,0]
[null,null,null,null,null,null,null,null,null,null,0]
[null,null,null,null,null,null,null,null,null,null,0]
[null,null,null,null,null,null,null,null,null,null,0]
[null,null,null,null,null,null,null,null,null,null,0]
[null,null,null,null,null,null,null,null,null,null,0]
[null,null,null,null,null,null,null,null,null,null,0]
["TOT Jour",null,{"$f":"SUM(C172:C196)","v":0},{"$f":"SUM(D172:D196)","v":0},0,0,0,0,0,0]
["TOT Période",null,{"$f":"SUM(C197:J197)","v":0}]
["Statistiques"]
[]
[]
["Nombre d'heure de fréquentation :"]
[{"$f":"Accueil!$A26","v":"P1"},{"$f":"$C$66*1.5","v":0},"heures de présence pour cet atelier et pour cette période"]
[{"$f":"Accueil!$A27","v":"P2"},{"$f":"$C$99*1.5","v":0},"heures de présence pour cet atelier et pour cette période"]
[{"$f":"Accueil!$A28","v":"P3"},{"$f":"$C$132*1.5","v":0},"heures de présence pour cet atelier et pour cette période"]
[{"$f":"Accueil!$A29","v":"P4"},{"$f":"$C$165*1.5","v":0},"heures de présence pour cet atelier et pour cette période"]
[{"$f":"Accueil!$A30","v":"P5"},{"$f":"$C$198*1.5","v":0},"heures de présence pour cet atelier et pour cette période"]
["TOT",{"$f":"SUM($B$203:$B$207)","v":0},"heures de présence pour cet atelier et pour l'année"]

{"sheet":"Lego","index":5,"n_rows":208,"n_cols":11,"rows_kept":208,"cut":false,"hidden":false,"merged":[[33,0,34,10],[37,0,37,3],[37,4,37,5],[64,0,64,1],[65,0,65,1],[65,2,65,9],[66,0,67,10],[70,0,70,3],[70,4,70,5],[97,0,97,1],[98,0,98,1],[98,2,98,9],[99,0,100,10],[103,0,103,3],[103,4,103,5],[130,0,130,1],[131,0,131,1],[131,2,131,9],[132,0,133,10],[136,0,136,3],[136,4,136,5],[163,0,163,1],[164,0,164,1],[164,2,164,9],[165,0,166,10],[169,0,169,3],[169,4,169,5],[196,0,196,1],[197,0,197,1],[197,2,197,9],[207,2,207,6],[198,0,199,10],[202,2,202,6],[203,2,203,6],[204,2,204,6],[205,2,205,6],[206,2,206,6]]}
[]
[]
[]
[]
[]
[]
[]
[]
[]
[]
[]
[]
[]
[]
[]
[]
[]
[]
[]
[]
[]
[]
[]
[]
[]
[]
[]
[]
[]
[]
[]
[]
[]
[{"$f":"Accueil!$B11","v":"Lego"}]
[]
[]
["Période :",{"$f":"Accueil!$A$26","v":"P1"},{"$f":"Accueil!$B$26","v":"du"},{"$f":"Accueil!$C$26","v":"2014-09-02"},{"$f":"Accueil!$D$26","v":"au"},{"$f":"Accueil!$E$26","v":"2014-10-18"}]
["Selectionnez la classe participant à l'atelier :"]
["NOM","Prénom","2014-09-02","2014-05-26","2014-05-27","2014-05-28","2014-05-29","2014-05-30","2014-05-31","2014-06-01","TOT"]
[null,null,null,null,null,null,null,null,null,null,{"$f":"SUM(C40:J40)","v":0}]
[null,null,null,null,null,null,null,null,null,null,{"$f":"SUM(C41:J41)","v":0}]
[null,null,null,null,null,null,null,null,null,null,0]
[null,null,null,null,null,null,null,null,null,null,0]
[null,null,null,null,null,null,null,null,null,null,0]
[null,null,null,null,null,null,null,null,null,null,0]
[null,null,null,null,null,null,null,null,null,null,0]
[null,null,null,null,null,null,null,null,null,null,0]
[null,null,null,null,null,null,null,null,null,null,0]
[null,null,null,null,null,null,null,null,null,null,0]
[null,null,null,null,null,null,null,null,null,null,0]
[null,null,null,null,null,null,null,null,null,null,0]
[null,null,null,null,null,null,null,null,null,null,0]
[null,null,null,null,null,null,null,null,null,null,0]
[null,null,null,null,null,null,null,null,null,null,0]
[null,null,null,null,null,null,null,null,null,null,0]
[null,null,null,null,null,null,null,null,null,null,0]
[null,null,null,null,null,null,null,null,null,null,0]
[null,null,null,null,null,null,null,null,null,null,0]
[null,null,null,null,null,null,null,null,null,null,0]
[null,null,null,null,null,null,null,null,null,null,0]
[null,null,null,null,null,null,null,null,null,null,0]
[null,null,null,null,null,null,null,null,null,null,0]
[null,null,null,null,null,null,null,null,null,null,0]
[null,null,null,null,null,null,null,null,null,null,0]
["TOT Jour",null,{"$f":"SUM(C40:C64)","v":0},{"$f":"SUM(D40:D64)","v":0},0,0,0,0,0,0]
["TOT Période",null,{"$f":"SUM(C65:J65)","v":0}]
[{"$f":"Accueil!$B11","v":"Lego"}]
[]
[]
["Période :",{"$f":"Accueil!$A27","v":"P2"},{"$f":"Accueil!$B27","v":"du"},{"$f":"Accueil!$C27","v":"2014-11-02"},{"$f":"Accueil!$D27","v":"au"},{"$f":"Accueil!$E27","v":"2014-12-18"}]
["Selectionnez la classe participant à l'atelier :"]
["NOM","Prénom","2014-05-25","2014-05-26","2014-05-27","2014-05-28","2014-05-29","2014-05-30","2014-05-31","2014-06-01","TOT"]
[null,null,null,null,null,null,null,null,null,null,{"$f":"SUM(C73:J73)","v":0}]
[null,null,null,null,null,null,null,null,null,null,{"$f":"SUM(C74:J74)","v":0}]
[null,null,null,null,null,null,null,null,null,null,0]
[null,null,null,null,null,null,null,null,null,null,0]
[null,null,null,null,null,null,null,null,null,null,0]
[null,null,null,null,null,null,null,null,null,null,0]
[null,null,null,null,null,null,null,null,null,null,0]
[null,null,null,null,null,null,null,null,null,null,0]
[null,null,null,null,null,null,null,null,null,null,0]
[null,null,null,null,null,null,null,null,null,null,0]
[null,null,null,null,null,null,null,null,null,null,0]
[null,null,null,null,null,null,null,null,null,null,0]
[null,null,null,null,null,null,null,null,null,null,0]
[null,null,null,null,null,null,null,null,null,null,0]
[null,null,null,null,null,null,null,null,null,null,0]
[null,null,null,null,null,null,null,null,null,null,0]
[null,null,null,null,null,null,null,null,null,null,0]
[null,null,null,null,null,null,null,null,null,null,0]
[null,null,null,null,null,null,null,null,null,null,0]
[null,null,null,null,null,null,null,null,null,null,0]
[null,null,null,null,null,null,null,null,null,null,0]
[null,null,null,null,null,null,null,null,null,null,0]
[null,null,null,null,null,null,null,null,null,null,0]
[null,null,null,null,null,null,null,null,null,null,0]
[null,null,null,null,null,null,null,null,null,null,0]
["TOT Jour",null,{"$f":"SUM(C73:C97)","v":0},{"$f":"SUM(D73:D97)","v":0},0,0,0,0,0,0]
["TOT Période",null,{"$f":"SUM(C98:J98)","v":0}]
[{"$f":"Accueil!$B11","v":"Lego"}]
[]
[]
["Période :",{"$f":"Accueil!A28","v":"P3"},{"$f":"Accueil!$B28","v":"du"},{"$f":"Accueil!$C28","v":"2015-01-04"},{"$f":"Accueil!$D28","v":"au"},{"$f":"Accueil!$E28","v":"2015-02-20"}]
["Selectionnez la classe participant à l'atelier :"]
["NOM","Prénom","2014-05-25","2014-05-26","2014-05-27","2014-05-28","2014-05-29","2014-05-30","2014-05-31","2014-06-01","TOT"]
[null,null,null,null,null,null,null,null,null,null,{"$f":"SUM(C106:J106)","v":0}]
[null,null,null,null,null,null,null,null,null,null,{"$f":"SUM(C107:J107)","v":0}]
[null,null,null,null,null,null,null,null,null,null,0]
[null,null,null,null,null,null,null,null,null,null,0]
[null,null,null,null,null,null,null,null,null,null,0]
[null,null,null,null,null,null,null,null,null,null,0]
[null,null,null,null,null,null,null,null,null,null,0]
[null,null,null,null,null,null,null,null,null,null,0]
[null,null,null,null,null,null,null,null,null,null,0]
[null,null,null,null,null,null,null,null,null,null,0]
[null,null,null,null,null,null,null,null,null,null,0]
[null,null,null,null,null,null,null,null,null,null,0]
[null,null,null,null,null,null,null,null,null,null,0]
[null,null,null,null,null,null,null,null,null,null,0]
[null,null,null,null,null,null,null,null,null,null,0]
[null,null,null,null,null,null,null,null,null,null,0]
[null,null,null,null,null,null,null,null,null,null,0]
[null,null,null,null,null,null,null,null,null,null,0]
[null,null,null,null,null,null,null,null,null,null,0]
[null,null,null,null,null,null,null,null,null,null,0]
[null,null,null,null,null,null,null,null,null,null,0]
[null,null,null,null,null,null,null,null,null,null,0]
[null,null,null,null,null,null,null,null,null,null,0]
[null,null,null,null,null,null,null,null,null,null,0]
[null,null,null,null,null,null,null,null,null,null,0]
["TOT Jour",null,{"$f":"SUM(C106:C130)","v":0},{"$f":"SUM(D106:D130)","v":0},0,0,0,0,0,0]
["TOT Période",null,{"$f":"SUM(C131:J131)","v":0}]
[{"$f":"Accueil!$B11","v":"Lego"}]
[]
[]
["Période :",{"$f":"Accueil!A29","v":"P4"},{"$f":"Accueil!$B29","v":"du"},{"$f":"Accueil!$C29","v":"2015-03-08"},{"$f":"Accueil!$D29","v":"au"},{"$f":"Accueil!$E29","v":"2015-04-15"}]
["Selectionnez la classe participant à l'atelier :"]
["NOM","Prénom","2014-05-25","2014-05-26","2014-05-27","2014-05-28","2014-05-29","2014-05-30","2014-05-31","2014-06-01","TOT"]
[null,null,null,null,null,null,null,null,null,null,{"$f":"SUM(C139:J139)","v":0}]
[null,null,null,null,null,null,null,null,null,null,{"$f":"SUM(C140:J140)","v":0}]
[null,null,null,null,null,null,null,null,null,null,0]
[null,null,null,null,null,null,null,null,null,null,0]
[null,null,null,null,null,null,null,null,null,null,0]
[null,null,null,null,null,null,null,null,null,null,0]
[null,null,null,null,null,null,null,null,null,null,0]
[null,null,null,null,null,null,null,null,null,null,0]
[null,null,null,null,null,null,null,null,null,null,0]
[null,null,null,null,null,null,null,null,null,null,0]
[null,null,null,null,null,null,null,null,null,null,0]
[null,null,null,null,null,null,null,null,null,null,0]
[null,null,null,null,null,null,null,null,null,null,0]
[null,null,null,null,null,null,null,null,null,null,0]
[null,null,null,null,null,null,null,null,null,null,0]
[null,null,null,null,null,null,null,null,null,null,0]
[null,null,null,null,null,null,null,null,null,null,0]
[null,null,null,null,null,null,null,null,null,null,0]
[null,null,null,null,null,null,null,null,null,null,0]
[null,null,null,null,null,null,null,null,null,null,0]
[null,null,null,null,null,null,null,null,null,null,0]
[null,null,null,null,null,null,null,null,null,null,0]
[null,null,null,null,null,null,null,null,null,null,0]
[null,null,null,null,null,null,null,null,null,null,0]
[null,null,null,null,null,null,null,null,null,null,0]
["TOT Jour",null,{"$f":"SUM(C139:C163)","v":0},{"$f":"SUM(D139:D163)","v":0},0,0,0,0,0,0]
["TOT Période",null,{"$f":"SUM(C164:J164)","v":0}]
[{"$f":"Accueil!$B11","v":"Lego"}]
[]
[]
["Période :",{"$f":"Accueil!A30","v":"P5"},{"$f":"Accueil!$B30","v":"du"},{"$f":"Accueil!$C30","v":"2015-05-02"},{"$f":"Accueil!$D30","v":"au"},{"$f":"Accueil!$E30","v":"2015-07-03"}]
["Selectionnez la classe participant à l'atelier :"]
["NOM","Prénom","2014-05-25","2014-05-26","2014-05-27","2014-05-28","2014-05-29","2014-05-30","2014-05-31","2014-06-01","TOT"]
[null,null,null,null,null,null,null,null,null,null,{"$f":"SUM(C172:J172)","v":0}]
[null,null,null,null,null,null,null,null,null,null,{"$f":"SUM(C173:J173)","v":0}]
[null,null,null,null,null,null,null,null,null,null,0]
[null,null,null,null,null,null,null,null,null,null,0]
[null,null,null,null,null,null,null,null,null,null,0]
[null,null,null,null,null,null,null,null,null,null,0]
[null,null,null,null,null,null,null,null,null,null,0]
[null,null,null,null,null,null,null,null,null,null,0]
[null,null,null,null,null,null,null,null,null,null,0]
[null,null,null,null,null,null,null,null,null,null,0]
[null,null,null,null,null,null,null,null,null,null,0]
[null,null,null,null,null,null,null,null,null,null,0]
[null,null,null,null,null,null,null,null,null,null,0]
[null,null,null,null,null,null,null,null,null,null,0]
[null,null,null,null,null,null,null,null,null,null,0]
[null,null,null,null,null,null,null,null,null,null,0]
[null,null,null,null,null,null,null,null,null,null,0]
[null,null,null,null,null,null,null,null,null,null,0]
[null,null,null,null,null,null,null,null,null,null,0]
[null,null,null,null,null,null,null,null,null,null,0]
[null,null,null,null,null,null,null,null,null,null,0]
[null,null,null,null,null,null,null,null,null,null,0]
[null,null,null,null,null,null,null,null,null,null,0]
[null,null,null,null,null,null,null,null,null,null,0]
[null,null,null,null,null,null,null,null,null,null,0]
["TOT Jour",null,{"$f":"SUM(C172:C196)","v":0},{"$f":"SUM(D172:D196)","v":0},0,0,0,0,0,0]
["TOT Période",null,{"$f":"SUM(C197:J197)","v":0}]
["Statistiques"]
[]
[]
["Nombre d'heure de fréquentation :"]
[{"$f":"Accueil!$A26","v":"P1"},{"$f":"$C$66*1.5","v":0},"heures de présence pour cet atelier et pour cette période"]
[{"$f":"Accueil!$A27","v":"P2"},{"$f":"$C$99*1.5","v":0},"heures de présence pour cet atelier et pour cette période"]
[{"$f":"Accueil!$A28","v":"P3"},{"$f":"$C$132*1.5","v":0},"heures de présence pour cet atelier et pour cette période"]
[{"$f":"Accueil!$A29","v":"P4"},{"$f":"$C$165*1.5","v":0},"heures de présence pour cet atelier et pour cette période"]
[{"$f":"Accueil!$A30","v":"P5"},{"$f":"$C$198*1.5","v":0},"heures de présence pour cet atelier et pour cette période"]
["TOT",{"$f":"SUM($B$203:$B$207)","v":0},"heures de présence pour cet atelier et pour l'année"]

{"sheet":"Canard","index":6,"n_rows":208,"n_cols":11,"rows_kept":208,"cut":false,"hidden":false,"merged":[[33,0,34,10],[37,0,37,3],[37,4,37,5],[64,0,64,1],[65,0,65,1],[65,2,65,9],[66,0,67,10],[70,0,70,3],[70,4,70,5],[97,0,97,1],[98,0,98,1],[98,2,98,9],[99,0,100,10],[103,0,103,3],[103,4,103,5],[130,0,130,1],[131,0,131,1],[131,2,131,9],[132,0,133,10],[136,0,136,3],[136,4,136,5],[163,0,163,1],[164,0,164,1],[164,2,164,9],[165,0,166,10],[169,0,169,3],[169,4,169,5],[196,0,196,1],[197,0,197,1],[197,2,197,9],[207,2,207,6],[198,0,199,10],[202,2,202,6],[203,2,203,6],[204,2,204,6],[205,2,205,6],[206,2,206,6]]}
[]
[]
[]
[]
[]
[]
[]
[]
[]
[]
[]
[]
[]
[]
[]
[]
[]
[]
[]
[]
[]
[]
[]
[]
[]
[]
[]
[]
[]
[]
[]
[]
[]
[{"$f":"Accueil!$B12","v":"Canard"}]
[]
[]
["Période :",{"$f":"Accueil!$A$26","v":"P1"},{"$f":"Accueil!$B$26","v":"du"},{"$f":"Accueil!$C$26","v":"2014-09-02"},{"$f":"Accueil!$D$26","v":"au"},{"$f":"Accueil!$E$26","v":"2014-10-18"}]
["Selectionnez la classe participant à l'atelier :"]
["NOM","Prénom","2014-09-02","2014-05-26","2014-05-27","2014-05-28","2014-05-29","2014-05-30","2014-05-31","2014-06-01","TOT"]
["MARTIN","Yanis",null,null,null,null,null,null,null,null,{"$f":"SUM(C40:J40)","v":0}]
[null,null,null,null,null,null,null,null,null,null,{"$f":"SUM(C41:J41)","v":0}]
[null,null,null,null,null,null,null,null,null,null,0]
[null,null,null,null,null,null,null,null,null,null,0]
[null,null,null,null,null,null,null,null,null,null,0]
[null,null,null,null,null,null,null,null,null,null,0]
[null,null,null,null,null,null,null,null,null,null,0]
[null,null,null,null,null,null,null,null,null,null,0]
[null,null,null,null,null,null,null,null,null,null,0]
[null,null,null,null,null,null,null,null,null,null,0]
[null,null,null,null,null,null,null,null,null,null,0]
[null,null,null,null,null,null,null,null,null,null,0]
[null,null,null,null,null,null,null,null,null,null,0]
[null,null,null,null,null,null,null,null,null,null,0]
[null,null,null,null,null,null,null,null,null,null,0]
[null,null,null,null,null,null,null,null,null,null,0]
[null,null,null,null,null,null,null,null,null,null,0]
[null,null,null,null,null,null,null,null,null,null,0]
[null,null,null,null,null,null,null,null,null,null,0]
[null,null,null,null,null,null,null,null,null,null,0]
[null,null,null,null,null,null,null,null,null,null,0]
[null,null,null,null,null,null,null,null,null,null,0]
[null,null,null,null,null,null,null,null,null,null,0]
[null,null,null,null,null,null,null,null,null,null,0]
[null,null,null,null,null,null,null,null,null,null,0]
["TOT Jour",null,{"$f":"SUM(C40:C64)","v":0},{"$f":"SUM(D40:D64)","v":0},0,0,0,0,0,0]
["TOT Période",null,{"$f":"SUM(C65:J65)","v":0}]
[{"$f":"Accueil!$B12","v":"Canard"}]
[]
[]
["Période :",{"$f":"Accueil!$A27","v":"P2"},{"$f":"Accueil!$B27","v":"du"},{"$f":"Accueil!$C27","v":"2014-11-02"},{"$f":"Accueil!$D27","v":"au"},{"$f":"Accueil!$E27","v":"2014-12-18"}]
["Selectionnez la classe participant à l'atelier :"]
["NOM","Prénom","2014-05-25","2014-05-26","2014-05-27","2014-05-28","2014-05-29","2014-05-30","2014-05-31","2014-06-01","TOT"]
[null,null,null,null,null,null,null,null,null,null,{"$f":"SUM(C73:J73)","v":0}]
[null,null,null,null,null,null,null,null,null,null,{"$f":"SUM(C74:J74)","v":0}]
[null,null,null,null,null,null,null,null,null,null,0]
[null,null,null,null,null,null,null,null,null,null,0]
[null,null,null,null,null,null,null,null,null,null,0]
[null,null,null,null,null,null,null,null,null,null,0]
[null,null,null,null,null,null,null,null,null,null,0]
[null,null,null,null,null,null,null,null,null,null,0]
[null,null,null,null,null,null,null,null,null,null,0]
[null,null,null,null,null,null,null,null,null,null,0]
[null,null,null,null,null,null,null,null,null,null,0]
[null,null,null,null,null,null,null,null,null,null,0]
[null,null,null,null,null,null,null,null,null,null,0]
[null,null,null,null,null,null,null,null,null,null,0]
[null,null,null,null,null,null,null,null,null,null,0]
[null,null,null,null,null,null,null,null,null,null,0]
[null,null,null,null,null,null,null,null,null,null,0]
[null,null,null,null,null,null,null,null,null,null,0]
[null,null,null,null,null,null,null,null,null,null,0]
[null,null,null,null,null,null,null,null,null,null,0]
[null,null,null,null,null,null,null,null,null,null,0]
[null,null,null,null,null,null,null,null,null,null,0]
[null,null,null,null,null,null,null,null,null,null,0]
[null,null,null,null,null,null,null,null,null,null,0]
[null,null,null,null,null,null,null,null,null,null,0]
["TOT Jour",null,{"$f":"SUM(C73:C97)","v":0},{"$f":"SUM(D73:D97)","v":0},0,0,0,0,0,0]
["TOT Période",null,{"$f":"SUM(C98:J98)","v":0}]
[{"$f":"Accueil!$B12","v":"Canard"}]
[]
[]
["Période :",{"$f":"Accueil!A28","v":"P3"},{"$f":"Accueil!$B28","v":"du"},{"$f":"Accueil!$C28","v":"2015-01-04"},{"$f":"Accueil!$D28","v":"au"},{"$f":"Accueil!$E28","v":"2015-02-20"}]
["Selectionnez la classe participant à l'atelier :"]
["NOM","Prénom","2014-05-25","2014-05-26","2014-05-27","2014-05-28","2014-05-29","2014-05-30","2014-05-31","2014-06-01","TOT"]
[null,null,null,null,null,null,null,null,null,null,{"$f":"SUM(C106:J106)","v":0}]
[null,null,null,null,null,null,null,null,null,null,{"$f":"SUM(C107:J107)","v":0}]
[null,null,null,null,null,null,null,null,null,null,0]
[null,null,null,null,null,null,null,null,null,null,0]
[null,null,null,null,null,null,null,null,null,null,0]
[null,null,null,null,null,null,null,null,null,null,0]
[null,null,null,null,null,null,null,null,null,null,0]
[null,null,null,null,null,null,null,null,null,null,0]
[null,null,null,null,null,null,null,null,null,null,0]
[null,null,null,null,null,null,null,null,null,null,0]
[null,null,null,null,null,null,null,null,null,null,0]
[null,null,null,null,null,null,null,null,null,null,0]
[null,null,null,null,null,null,null,null,null,null,0]
[null,null,null,null,null,null,null,null,null,null,0]
[null,null,null,null,null,null,null,null,null,null,0]
[null,null,null,null,null,null,null,null,null,null,0]
[null,null,null,null,null,null,null,null,null,null,0]
[null,null,null,null,null,null,null,null,null,null,0]
[null,null,null,null,null,null,null,null,null,null,0]
[null,null,null,null,null,null,null,null,null,null,0]
[null,null,null,null,null,null,null,null,null,null,0]
[null,null,null,null,null,null,null,null,null,null,0]
[null,null,null,null,null,null,null,null,null,null,0]
[null,null,null,null,null,null,null,null,null,null,0]
[null,null,null,null,null,null,null,null,null,null,0]
["TOT Jour",null,{"$f":"SUM(C106:C130)","v":0},{"$f":"SUM(D106:D130)","v":0},0,0,0,0,0,0]
["TOT Période",null,{"$f":"SUM(C131:J131)","v":0}]
[{"$f":"Accueil!$B12","v":"Canard"}]
[]
[]
["Période :",{"$f":"Accueil!A29","v":"P4"},{"$f":"Accueil!$B29","v":"du"},{"$f":"Accueil!$C29","v":"2015-03-08"},{"$f":"Accueil!$D29","v":"au"},{"$f":"Accueil!$E29","v":"2015-04-15"}]
["Selectionnez la classe participant à l'atelier :"]
["NOM","Prénom","2014-05-25","2014-05-26","2014-05-27","2014-05-28","2014-05-29","2014-05-30","2014-05-31","2014-06-01","TOT"]
[null,null,null,null,null,null,null,null,null,null,{"$f":"SUM(C139:J139)","v":0}]
[null,null,null,null,null,null,null,null,null,null,{"$f":"SUM(C140:J140)","v":0}]
[null,null,null,null,null,null,null,null,null,null,0]
[null,null,null,null,null,null,null,null,null,null,0]
[null,null,null,null,null,null,null,null,null,null,0]
[null,null,null,null,null,null,null,null,null,null,0]
[null,null,null,null,null,null,null,null,null,null,0]
[null,null,null,null,null,null,null,null,null,null,0]
[null,null,null,null,null,null,null,null,null,null,0]
[null,null,null,null,null,null,null,null,null,null,0]
[null,null,null,null,null,null,null,null,null,null,0]
[null,null,null,null,null,null,null,null,null,null,0]
[null,null,null,null,null,null,null,null,null,null,0]
[null,null,null,null,null,null,null,null,null,null,0]
[null,null,null,null,null,null,null,null,null,null,0]
[null,null,null,null,null,null,null,null,null,null,0]
[null,null,null,null,null,null,null,null,null,null,0]
[null,null,null,null,null,null,null,null,null,null,0]
[null,null,null,null,null,null,null,null,null,null,0]
[null,null,null,null,null,null,null,null,null,null,0]
[null,null,null,null,null,null,null,null,null,null,0]
[null,null,null,null,null,null,null,null,null,null,0]
[null,null,null,null,null,null,null,null,null,null,0]
[null,null,null,null,null,null,null,null,null,null,0]
[null,null,null,null,null,null,null,null,null,null,0]
["TOT Jour",null,{"$f":"SUM(C139:C163)","v":0},{"$f":"SUM(D139:D163)","v":0},0,0,0,0,0,0]
["TOT Période",null,{"$f":"SUM(C164:J164)","v":0}]
[{"$f":"Accueil!$B12","v":"Canard"}]
[]
[]
["Période :",{"$f":"Accueil!A30","v":"P5"},{"$f":"Accueil!$B30","v":"du"},{"$f":"Accueil!$C30","v":"2015-05-02"},{"$f":"Accueil!$D30","v":"au"},{"$f":"Accueil!$E30","v":"2015-07-03"}]
["Selectionnez la classe participant à l'atelier :"]
["NOM","Prénom","2014-05-25","2014-05-26","2014-05-27","2014-05-28","2014-05-29","2014-05-30","2014-05-31","2014-06-01","TOT"]
[null,null,null,null,null,null,null,null,null,null,{"$f":"SUM(C172:J172)","v":0}]
[null,null,null,null,null,null,null,null,null,null,{"$f":"SUM(C173:J173)","v":0}]
[null,null,null,null,null,null,null,null,null,null,0]
[null,null,null,null,null,null,null,null,null,null,0]
[null,null,null,null,null,null,null,null,null,null,0]
[null,null,null,null,null,null,null,null,null,null,0]
[null,null,null,null,null,null,null,null,null,null,0]
[null,null,null,null,null,null,null,null,null,null,0]
[null,null,null,null,null,null,null,null,null,null,0]
[null,null,null,null,null,null,null,null,null,null,0]
[null,null,null,null,null,null,null,null,null,null,0]
[null,null,null,null,null,null,null,null,null,null,0]
[null,null,null,null,null,null,null,null,null,null,0]
[null,null,null,null,null,null,null,null,null,null,0]
[null,null,null,null,null,null,null,null,null,null,0]
[null,null,null,null,null,null,null,null,null,null,0]
[null,null,null,null,null,null,null,null,null,null,0]
[null,null,null,null,null,null,null,null,null,null,0]
[null,null,null,null,null,null,null,null,null,null,0]
[null,null,null,null,null,null,null,null,null,null,0]
[null,null,null,null,null,null,null,null,null,null,0]
[null,null,null,null,null,null,null,null,null,null,0]
[null,null,null,null,null,null,null,null,null,null,0]
[null,null,null,null,null,null,null,null,null,null,0]
[null,null,null,null,null,null,null,null,null,null,0]
["TOT Jour",null,{"$f":"SUM(C172:C196)","v":0},{"$f":"SUM(D172:D196)","v":0},0,0,0,0,0,0]
["TOT Période",null,{"$f":"SUM(C197:J197)","v":0}]
["Statistiques"]
[]
[]
["Nombre d'heure de fréquentation :"]
[{"$f":"Accueil!$A26","v":"P1"},{"$f":"$C$66*1.5","v":0},"heures de présence pour cet atelier et pour cette période"]
[{"$f":"Accueil!$A27","v":"P2"},{"$f":"$C$99*1.5","v":0},"heures de présence pour cet atelier et pour cette période"]
[{"$f":"Accueil!$A28","v":"P3"},{"$f":"$C$132*1.5","v":0},"heures de présence pour cet atelier et pour cette période"]
[{"$f":"Accueil!$A29","v":"P4"},{"$f":"$C$165*1.5","v":0},"heures de présence pour cet atelier et pour cette période"]
[{"$f":"Accueil!$A30","v":"P5"},{"$f":"$C$198*1.5","v":0},"heures de présence pour cet atelier et pour cette période"]
["TOT",{"$f":"SUM($B$203:$B$207)","v":0},"heures de présence pour cet atelier et pour l'année"]

{"sheet":"Anglais","index":7,"n_rows":208,"n_cols":11,"rows_kept":208,"cut":false,"hidden":false,"merged":[[33,0,34,10],[37,0,37,3],[37,4,37,5],[64,0,64,1],[65,0,65,1],[65,2,65,9],[66,0,67,10],[70,0,70,3],[70,4,70,5],[97,0,97,1],[98,0,98,1],[98,2,98,9],[99,0,100,10],[103,0,103,3],[103,4,103,5],[130,0,130,1],[131,0,131,1],[131,2,131,9],[132,0,133,10],[136,0,136,3],[136,4,136,5],[163,0,163,1],[164,0,164,1],[164,2,164,9],[165,0,166,10],[169,0,169,3],[169,4,169,5],[196,0,196,1],[197,0,197,1],[197,2,197,9],[207,2,207,6],[198,0,199,10],[202,2,202,6],[203,2,203,6],[204,2,204,6],[205,2,205,6],[206,2,206,6]]}
[]
[]
[]
[]
[]
[]
[]
[]
[]
[]
[]
[]
[]
[]
[]
[]
[]
[]
[]
[]
[]
[]
[]
[]
[]
[]
[]
[]
[]
[]
[]
[]
[]
[{"$f":"Accueil!$B13","v":"Anglais"}]
[]
[]
["Période :",{"$f":"Accueil!$A$26","v":"P1"},{"$f":"Accueil!$B$26","v":"du"},{"$f":"Accueil!$C$26","v":"2014-09-02"},{"$f":"Accueil!$D$26","v":"au"},{"$f":"Accueil!$E$26","v":"2014-10-18"}]
["Selectionnez la classe participant à l'atelier :"]
["NOM","Prénom","2014-09-02","2014-05-26","2014-05-27","2014-05-28","2014-05-29","2014-05-30","2014-05-31","2014-06-01","TOT"]
["MARTIN","Amélie",null,null,null,null,null,null,null,null,{"$f":"SUM(C40:J40)","v":0}]
[null,null,null,null,null,null,null,null,null,null,{"$f":"SUM(C41:J41)","v":0}]
[null,null,null,null,null,null,null,null,null,null,0]
[null,null,null,null,null,null,null,null,null,null,0]
[null,null,null,null,null,null,null,null,null,null,0]
[null,null,null,null,null,null,null,null,null,null,0]
[null,null,null,null,null,null,null,null,null,null,0]
[null,null,null,null,null,null,null,null,null,null,0]
[null,null,null,null,null,null,null,null,null,null,0]
[null,null,null,null,null,null,null,null,null,null,0]
[null,null,null,null,null,null,null,null,null,null,0]
[null,null,null,null,null,null,null,null,null,null,0]
[null,null,null,null,null,null,null,null,null,null,0]
[null,null,null,null,null,null,null,null,null,null,0]
[null,null,null,null,null,null,null,null,null,null,0]
[null,null,null,null,null,null,null,null,null,null,0]
[null,null,null,null,null,null,null,null,null,null,0]
[null,null,null,null,null,null,null,null,null,null,0]
[null,null,null,null,null,null,null,null,null,null,0]
[null,null,null,null,null,null,null,null,null,null,0]
[null,null,null,null,null,null,null,null,null,null,0]
[null,null,null,null,null,null,null,null,null,null,0]
[null,null,null,null,null,null,null,null,null,null,0]
[null,null,null,null,null,null,null,null,null,null,0]
[null,null,null,null,null,null,null,null,null,null,0]
["TOT Jour",null,{"$f":"SUM(C40:C64)","v":0},{"$f":"SUM(D40:D64)","v":0},0,0,0,0,0,0]
["TOT Période",null,{"$f":"SUM(C65:J65)","v":0}]
[{"$f":"Accueil!$B13","v":"Anglais"}]
[]
[]
["Période :",{"$f":"Accueil!$A27","v":"P2"},{"$f":"Accueil!$B27","v":"du"},{"$f":"Accueil!$C27","v":"2014-11-02"},{"$f":"Accueil!$D27","v":"au"},{"$f":"Accueil!$E27","v":"2014-12-18"}]
["Selectionnez la classe participant à l'atelier :"]
["NOM","Prénom","2014-05-25","2014-05-26","2014-05-27","2014-05-28","2014-05-29","2014-05-30","2014-05-31","2014-06-01","TOT"]
[null,null,null,null,null,null,null,null,null,null,{"$f":"SUM(C73:J73)","v":0}]
[null,null,null,null,null,null,null,null,null,null,{"$f":"SUM(C74:J74)","v":0}]
[null,null,null,null,null,null,null,null,null,null,0]
[null,null,null,null,null,null,null,null,null,null,0]
[null,null,null,null,null,null,null,null,null,null,0]
[null,null,null,null,null,null,null,null,null,null,0]
[null,null,null,null,null,null,null,null,null,null,0]
[null,null,null,null,null,null,null,null,null,null,0]
[null,null,null,null,null,null,null,null,null,null,0]
[null,null,null,null,null,null,null,null,null,null,0]
[null,null,null,null,null,null,null,null,null,null,0]
[null,null,null,null,null,null,null,null,null,null,0]
[null,null,null,null,null,null,null,null,null,null,0]
[null,null,null,null,null,null,null,null,null,null,0]
[null,null,null,null,null,null,null,null,null,null,0]
[null,null,null,null,null,null,null,null,null,null,0]
[null,null,null,null,null,null,null,null,null,null,0]
[null,null,null,null,null,null,null,null,null,null,0]
[null,null,null,null,null,null,null,null,null,null,0]
[null,null,null,null,null,null,null,null,null,null,0]
[null,null,null,null,null,null,null,null,null,null,0]
[null,null,null,null,null,null,null,null,null,null,0]
[null,null,null,null,null,null,null,null,null,null,0]
[null,null,null,null,null,null,null,null,null,null,0]
[null,null,null,null,null,null,null,null,null,null,0]
["TOT Jour",null,{"$f":"SUM(C73:C97)","v":0},{"$f":"SUM(D73:D97)","v":0},0,0,0,0,0,0]
["TOT Période",null,{"$f":"SUM(C98:J98)","v":0}]
[{"$f":"Accueil!$B13","v":"Anglais"}]
[]
[]
["Période :",{"$f":"Accueil!A28","v":"P3"},{"$f":"Accueil!$B28","v":"du"},{"$f":"Accueil!$C28","v":"2015-01-04"},{"$f":"Accueil!$D28","v":"au"},{"$f":"Accueil!$E28","v":"2015-02-20"}]
["Selectionnez la classe participant à l'atelier :"]
["NOM","Prénom","2014-05-25","2014-05-26","2014-05-27","2014-05-28","2014-05-29","2014-05-30","2014-05-31","2014-06-01","TOT"]
[null,null,null,null,null,null,null,null,null,null,{"$f":"SUM(C106:J106)","v":0}]
[null,null,null,null,null,null,null,null,null,null,{"$f":"SUM(C107:J107)","v":0}]
[null,null,null,null,null,null,null,null,null,null,0]
[null,null,null,null,null,null,null,null,null,null,0]
[null,null,null,null,null,null,null,null,null,null,0]
[null,null,null,null,null,null,null,null,null,null,0]
[null,null,null,null,null,null,null,null,null,null,0]
[null,null,null,null,null,null,null,null,null,null,0]
[null,null,null,null,null,null,null,null,null,null,0]
[null,null,null,null,null,null,null,null,null,null,0]
[null,null,null,null,null,null,null,null,null,null,0]
[null,null,null,null,null,null,null,null,null,null,0]
[null,null,null,null,null,null,null,null,null,null,0]
[null,null,null,null,null,null,null,null,null,null,0]
[null,null,null,null,null,null,null,null,null,null,0]
[null,null,null,null,null,null,null,null,null,null,0]
[null,null,null,null,null,null,null,null,null,null,0]
[null,null,null,null,null,null,null,null,null,null,0]
[null,null,null,null,null,null,null,null,null,null,0]
[null,null,null,null,null,null,null,null,null,null,0]
[null,null,null,null,null,null,null,null,null,null,0]
[null,null,null,null,null,null,null,null,null,null,0]
[null,null,null,null,null,null,null,null,null,null,0]
[null,null,null,null,null,null,null,null,null,null,0]
[null,null,null,null,null,null,null,null,null,null,0]
["TOT Jour",null,{"$f":"SUM(C106:C130)","v":0},{"$f":"SUM(D106:D130)","v":0},0,0,0,0,0,0]
["TOT Période",null,{"$f":"SUM(C131:J131)","v":0}]
[{"$f":"Accueil!$B13","v":"Anglais"}]
[]
[]
["Période :",{"$f":"Accueil!A29","v":"P4"},{"$f":"Accueil!$B29","v":"du"},{"$f":"Accueil!$C29","v":"2015-03-08"},{"$f":"Accueil!$D29","v":"au"},{"$f":"Accueil!$E29","v":"2015-04-15"}]
["Selectionnez la classe participant à l'atelier :"]
["NOM","Prénom","2014-05-25","2014-05-26","2014-05-27","2014-05-28","2014-05-29","2014-05-30","2014-05-31","2014-06-01","TOT"]
[null,null,null,null,null,null,null,null,null,null,{"$f":"SUM(C139:J139)","v":0}]
[null,null,null,null,null,null,null,null,null,null,{"$f":"SUM(C140:J140)","v":0}]
[null,null,null,null,null,null,null,null,null,null,0]
[null,null,null,null,null,null,null,null,null,null,0]
[null,null,null,null,null,null,null,null,null,null,0]
[null,null,null,null,null,null,null,null,null,null,0]
[null,null,null,null,null,null,null,null,null,null,0]
[null,null,null,null,null,null,null,null,null,null,0]
[null,null,null,null,null,null,null,null,null,null,0]
[null,null,null,null,null,null,null,null,null,null,0]
[null,null,null,null,null,null,null,null,null,null,0]
[null,null,null,null,null,null,null,null,null,null,0]
[null,null,null,null,null,null,null,null,null,null,0]
[null,null,null,null,null,null,null,null,null,null,0]
[null,null,null,null,null,null,null,null,null,null,0]
[null,null,null,null,null,null,null,null,null,null,0]
[null,null,null,null,null,null,null,null,null,null,0]
[null,null,null,null,null,null,null,null,null,null,0]
[null,null,null,null,null,null,null,null,null,null,0]
[null,null,null,null,null,null,null,null,null,null,0]
[null,null,null,null,null,null,null,null,null,null,0]
[null,null,null,null,null,null,null,null,null,null,0]
[null,null,null,null,null,null,null,null,null,null,0]
[null,null,null,null,null,null,null,null,null,null,0]
[null,null,null,null,null,null,null,null,null,null,0]
["TOT Jour",null,{"$f":"SUM(C139:C163)","v":0},{"$f":"SUM(D139:D163)","v":0},0,0,0,0,0,0]
["TOT Période",null,{"$f":"SUM(C164:J164)","v":0}]
[{"$f":"Accueil!$B13","v":"Anglais"}]
[]
[]
["Période :",{"$f":"Accueil!A30","v":"P5"},{"$f":"Accueil!$B30","v":"du"},{"$f":"Accueil!$C30","v":"2015-05-02"},{"$f":"Accueil!$D30","v":"au"},{"$f":"Accueil!$E30","v":"2015-07-03"}]
["Selectionnez la classe participant à l'atelier :"]
["NOM","Prénom","2014-05-25","2014-05-26","2014-05-27","2014-05-28","2014-05-29","2014-05-30","2014-05-31","2014-06-01","TOT"]
[null,null,null,null,null,null,null,null,null,null,{"$f":"SUM(C172:J172)","v":0}]
[null,null,null,null,null,null,null,null,null,null,{"$f":"SUM(C173:J173)","v":0}]
[null,null,null,null,null,null,null,null,null,null,0]
[null,null,null,null,null,null,null,null,null,null,0]
[null,null,null,null,null,null,null,null,null,null,0]
[null,null,null,null,null,null,null,null,null,null,0]
[null,null,null,null,null,null,null,null,null,null,0]
[null,null,null,null,null,null,null,null,null,null,0]
[null,null,null,null,null,null,null,null,null,null,0]
[null,null,null,null,null,null,null,null,null,null,0]
[null,null,null,null,null,null,null,null,null,null,0]
[null,null,null,null,null,null,null,null,null,null,0]
[null,null,null,null,null,null,null,null,null,null,0]
[null,null,null,null,null,null,null,null,null,null,0]
[null,null,null,null,null,null,null,null,null,null,0]
[null,null,null,null,null,null,null,null,null,null,0]
[null,null,null,null,null,null,null,null,null,null,0]
[null,null,null,null,null,null,null,null,null,null,0]
[null,null,null,null,null,null,null,null,null,null,0]
[null,null,null,null,null,null,null,null,null,null,0]
[null,null,null,null,null,null,null,null,null,null,0]
[null,null,null,null,null,null,null,null,null,null,0]
[null,null,null,null,null,null,null,null,null,null,0]
[null,null,null,null,null,null,null,null,null,null,0]
[null,null,null,null,null,null,null,null,null,null,0]
["TOT Jour",null,{"$f":"SUM(C172:C196)","v":0},{"$f":"SUM(D172:D196)","v":0},0,0,0,0,0,0]
["TOT Période",null,{"$f":"SUM(C197:J197)","v":0}]
["Statistiques"]
[]
[]
["Nombre d'heure de fréquentation :"]
[{"$f":"Accueil!$A26","v":"P1"},{"$f":"$C$66*1.5","v":0},"heures de présence pour cet atelier et pour cette période"]
[{"$f":"Accueil!$A27","v":"P2"},{"$f":"$C$99*1.5","v":0},"heures de présence pour cet atelier et pour cette période"]
[{"$f":"Accueil!$A28","v":"P3"},{"$f":"$C$132*1.5","v":0},"heures de présence pour cet atelier et pour cette période"]
[{"$f":"Accueil!$A29","v":"P4"},{"$f":"$C$165*1.5","v":0},"heures de présence pour cet atelier et pour cette période"]
[{"$f":"Accueil!$A30","v":"P5"},{"$f":"$C$198*1.5","v":0},"heures de présence pour cet atelier et pour cette période"]
["TOT",{"$f":"SUM($B$203:$B$207)","v":0},"heures de présence pour cet atelier et pour l'année"]

{"sheet":"Bijoux","index":8,"n_rows":208,"n_cols":11,"rows_kept":208,"cut":false,"hidden":false,"merged":[[33,0,34,10],[37,0,37,3],[37,4,37,5],[64,0,64,1],[65,0,65,1],[65,2,65,9],[66,0,67,10],[70,0,70,3],[70,4,70,5],[97,0,97,1],[98,0,98,1],[98,2,98,9],[99,0,100,10],[103,0,103,3],[103,4,103,5],[130,0,130,1],[131,0,131,1],[131,2,131,9],[132,0,133,10],[136,0,136,3],[136,4,136,5],[163,0,163,1],[164,0,164,1],[164,2,164,9],[165,0,166,10],[169,0,169,3],[169,4,169,5],[196,0,196,1],[197,0,197,1],[197,2,197,9],[207,2,207,6],[198,0,199,10],[202,2,202,6],[203,2,203,6],[204,2,204,6],[205,2,205,6],[206,2,206,6]]}
[]
[]
[]
[]
[]
[]
[]
[]
[]
[]
[]
[]
[]
[]
[]
[]
[]
[]
[]
[]
[]
[]
[]
[]
[]
[]
[]
[]
[]
[]
[]
[]
[]
[{"$f":"Accueil!$B14","v":"Bijoux"}]
[]
[]
["Période :",{"$f":"Accueil!$A$26","v":"P1"},{"$f":"Accueil!$B$26","v":"du"},{"$f":"Accueil!$C$26","v":"2014-09-02"},{"$f":"Accueil!$D$26","v":"au"},{"$f":"Accueil!$E$26","v":"2014-10-18"}]
["Selectionnez la classe participant à l'atelier :"]
["NOM","Prénom","2014-09-02","2014-05-26","2014-05-27","2014-05-28","2014-05-29","2014-05-30","2014-05-31","2014-06-01","TOT"]
["MARTIN","Alban",null,null,null,null,null,null,null,null,{"$f":"SUM(C40:J40)","v":0}]
["MARTIN","Alyssa",null,null,null,null,null,null,null,null,{"$f":"SUM(C41:J41)","v":0}]
[null,null,null,null,null,null,null,null,null,null,0]
[null,null,null,null,null,null,null,null,null,null,0]
[null,null,null,null,null,null,null,null,null,null,0]
[null,null,null,null,null,null,null,null,null,null,0]
[null,null,null,null,null,null,null,null,null,null,0]
[null,null,null,null,null,null,null,null,null,null,0]
[null,null,null,null,null,null,null,null,null,null,0]
[null,null,null,null,null,null,null,null,null,null,0]
[null,null,null,null,null,null,null,null,null,null,0]
[null,null,null,null,null,null,null,null,null,null,0]
[null,null,null,null,null,null,null,null,null,null,0]
[null,null,null,null,null,null,null,null,null,null,0]
[null,null,null,null,null,null,null,null,null,null,0]
[null,null,null,null,null,null,null,null,null,null,0]
[null,null,null,null,null,null,null,null,null,null,0]
[null,null,null,null,null,null,null,null,null,null,0]
[null,null,null,null,null,null,null,null,null,null,0]
[null,null,null,null,null,null,null,null,null,null,0]
[null,null,null,null,null,null,null,null,null,null,0]
[null,null,null,null,null,null,null,null,null,null,0]
[null,null,null,null,null,null,null,null,null,null,0]
[null,null,null,null,null,null,null,null,null,null,0]
[null,null,null,null,null,null,null,null,null,null,0]
["TOT Jour",null,{"$f":"SUM(C40:C64)","v":0},{"$f":"SUM(D40:D64)","v":0},0,0,0,0,0,0]
["TOT Période",null,{"$f":"SUM(C65:J65)","v":0}]
[{"$f":"Accueil!$B14","v":"Bijoux"}]
[]
[]
["Période :",{"$f":"Accueil!$A27","v":"P2"},{"$f":"Accueil!$B27","v":"du"},{"$f":"Accueil!$C27","v":"2014-11-02"},{"$f":"Accueil!$D27","v":"au"},{"$f":"Accueil!$E27","v":"2014-12-18"}]
["Selectionnez la classe participant à l'atelier :"]
["NOM","Prénom","2014-05-25","2014-05-26","2014-05-27","2014-05-28","2014-05-29","2014-05-30","2014-05-31","2014-06-01","TOT"]
[null,null,null,null,null,null,null,null,null,null,{"$f":"SUM(C73:J73)","v":0}]
[null,null,null,null,null,null,null,null,null,null,{"$f":"SUM(C74:J74)","v":0}]
[null,null,null,null,null,null,null,null,null,null,0]
[null,null,null,null,null,null,null,null,null,null,0]
[null,null,null,null,null,null,null,null,null,null,0]
[null,null,null,null,null,null,null,null,null,null,0]
[null,null,null,null,null,null,null,null,null,null,0]
[null,null,null,null,null,null,null,null,null,null,0]
[null,null,null,null,null,null,null,null,null,null,0]
[null,null,null,null,null,null,null,null,null,null,0]
[null,null,null,null,null,null,null,null,null,null,0]
[null,null,null,null,null,null,null,null,null,null,0]
[null,null,null,null,null,null,null,null,null,null,0]
[null,null,null,null,null,null,null,null,null,null,0]
[null,null,null,null,null,null,null,null,null,null,0]
[null,null,null,null,null,null,null,null,null,null,0]
[null,null,null,null,null,null,null,null,null,null,0]
[null,null,null,null,null,null,null,null,null,null,0]
[null,null,null,null,null,null,null,null,null,null,0]
[null,null,null,null,null,null,null,null,null,null,0]
[null,null,null,null,null,null,null,null,null,null,0]
[null,null,null,null,null,null,null,null,null,null,0]
[null,null,null,null,null,null,null,null,null,null,0]
[null,null,null,null,null,null,null,null,null,null,0]
[null,null,null,null,null,null,null,null,null,null,0]
["TOT Jour",null,{"$f":"SUM(C73:C97)","v":0},{"$f":"SUM(D73:D97)","v":0},0,0,0,0,0,0]
["TOT Période",null,{"$f":"SUM(C98:J98)","v":0}]
[{"$f":"Accueil!$B14","v":"Bijoux"}]
[]
[]
["Période :",{"$f":"Accueil!A28","v":"P3"},{"$f":"Accueil!$B28","v":"du"},{"$f":"Accueil!$C28","v":"2015-01-04"},{"$f":"Accueil!$D28","v":"au"},{"$f":"Accueil!$E28","v":"2015-02-20"}]
["Selectionnez la classe participant à l'atelier :"]
["NOM","Prénom","2014-05-25","2014-05-26","2014-05-27","2014-05-28","2014-05-29","2014-05-30","2014-05-31","2014-06-01","TOT"]
[null,null,null,null,null,null,null,null,null,null,{"$f":"SUM(C106:J106)","v":0}]
[null,null,null,null,null,null,null,null,null,null,{"$f":"SUM(C107:J107)","v":0}]
[null,null,null,null,null,null,null,null,null,null,0]
[null,null,null,null,null,null,null,null,null,null,0]
[null,null,null,null,null,null,null,null,null,null,0]
[null,null,null,null,null,null,null,null,null,null,0]
[null,null,null,null,null,null,null,null,null,null,0]
[null,null,null,null,null,null,null,null,null,null,0]
[null,null,null,null,null,null,null,null,null,null,0]
[null,null,null,null,null,null,null,null,null,null,0]
[null,null,null,null,null,null,null,null,null,null,0]
[null,null,null,null,null,null,null,null,null,null,0]
[null,null,null,null,null,null,null,null,null,null,0]
[null,null,null,null,null,null,null,null,null,null,0]
[null,null,null,null,null,null,null,null,null,null,0]
[null,null,null,null,null,null,null,null,null,null,0]
[null,null,null,null,null,null,null,null,null,null,0]
[null,null,null,null,null,null,null,null,null,null,0]
[null,null,null,null,null,null,null,null,null,null,0]
[null,null,null,null,null,null,null,null,null,null,0]
[null,null,null,null,null,null,null,null,null,null,0]
[null,null,null,null,null,null,null,null,null,null,0]
[null,null,null,null,null,null,null,null,null,null,0]
[null,null,null,null,null,null,null,null,null,null,0]
[null,null,null,null,null,null,null,null,null,null,0]
["TOT Jour",null,{"$f":"SUM(C106:C130)","v":0},{"$f":"SUM(D106:D130)","v":0},0,0,0,0,0,0]
["TOT Période",null,{"$f":"SUM(C131:J131)","v":0}]
[{"$f":"Accueil!$B14","v":"Bijoux"}]
[]
[]
["Période :",{"$f":"Accueil!A29","v":"P4"},{"$f":"Accueil!$B29","v":"du"},{"$f":"Accueil!$C29","v":"2015-03-08"},{"$f":"Accueil!$D29","v":"au"},{"$f":"Accueil!$E29","v":"2015-04-15"}]
["Selectionnez la classe participant à l'atelier :"]
["NOM","Prénom","2014-05-25","2014-05-26","2014-05-27","2014-05-28","2014-05-29","2014-05-30","2014-05-31","2014-06-01","TOT"]
[null,null,null,null,null,null,null,null,null,null,{"$f":"SUM(C139:J139)","v":0}]
[null,null,null,null,null,null,null,null,null,null,{"$f":"SUM(C140:J140)","v":0}]
[null,null,null,null,null,null,null,null,null,null,0]
[null,null,null,null,null,null,null,null,null,null,0]
[null,null,null,null,null,null,null,null,null,null,0]
[null,null,null,null,null,null,null,null,null,null,0]
[null,null,null,null,null,null,null,null,null,null,0]
[null,null,null,null,null,null,null,null,null,null,0]
[null,null,null,null,null,null,null,null,null,null,0]
[null,null,null,null,null,null,null,null,null,null,0]
[null,null,null,null,null,null,null,null,null,null,0]
[null,null,null,null,null,null,null,null,null,null,0]
[null,null,null,null,null,null,null,null,null,null,0]
[null,null,null,null,null,null,null,null,null,null,0]
[null,null,null,null,null,null,null,null,null,null,0]
[null,null,null,null,null,null,null,null,null,null,0]
[null,null,null,null,null,null,null,null,null,null,0]
[null,null,null,null,null,null,null,null,null,null,0]
[null,null,null,null,null,null,null,null,null,null,0]
[null,null,null,null,null,null,null,null,null,null,0]
[null,null,null,null,null,null,null,null,null,null,0]
[null,null,null,null,null,null,null,null,null,null,0]
[null,null,null,null,null,null,null,null,null,null,0]
[null,null,null,null,null,null,null,null,null,null,0]
[null,null,null,null,null,null,null,null,null,null,0]
["TOT Jour",null,{"$f":"SUM(C139:C163)","v":0},{"$f":"SUM(D139:D163)","v":0},0,0,0,0,0,0]
["TOT Période",null,{"$f":"SUM(C164:J164)","v":0}]
[{"$f":"Accueil!$B14","v":"Bijoux"}]
[]
[]
["Période :",{"$f":"Accueil!A30","v":"P5"},{"$f":"Accueil!$B30","v":"du"},{"$f":"Accueil!$C30","v":"2015-05-02"},{"$f":"Accueil!$D30","v":"au"},{"$f":"Accueil!$E30","v":"2015-07-03"}]
["Selectionnez la classe participant à l'atelier :"]
["NOM","Prénom","2014-05-25","2014-05-26","2014-05-27","2014-05-28","2014-05-29","2014-05-30","2014-05-31","2014-06-01","TOT"]
[null,null,null,null,null,null,null,null,null,null,{"$f":"SUM(C172:J172)","v":0}]
[null,null,null,null,null,null,null,null,null,null,{"$f":"SUM(C173:J173)","v":0}]
[null,null,null,null,null,null,null,null,null,null,0]
[null,null,null,null,null,null,null,null,null,null,0]
[null,null,null,null,null,null,null,null,null,null,0]
[null,null,null,null,null,null,null,null,null,null,0]
[null,null,null,null,null,null,null,null,null,null,0]
[null,null,null,null,null,null,null,null,null,null,0]
[null,null,null,null,null,null,null,null,null,null,0]
[null,null,null,null,null,null,null,null,null,null,0]
[null,null,null,null,null,null,null,null,null,null,0]
[null,null,null,null,null,null,null,null,null,null,0]
[null,null,null,null,null,null,null,null,null,null,0]
[null,null,null,null,null,null,null,null,null,null,0]
[null,null,null,null,null,null,null,null,null,null,0]
[null,null,null,null,null,null,null,null,null,null,0]
[null,null,null,null,null,null,null,null,null,null,0]
[null,null,null,null,null,null,null,null,null,null,0]
[null,null,null,null,null,null,null,null,null,null,0]
[null,null,null,null,null,null,null,null,null,null,0]
[null,null,null,null,null,null,null,null,null,null,0]
[null,null,null,null,null,null,null,null,null,null,0]
[null,null,null,null,null,null,null,null,null,null,0]
[null,null,null,null,null,null,null,null,null,null,0]
[null,null,null,null,null,null,null,null,null,null,0]
["TOT Jour",null,{"$f":"SUM(C172:C196)","v":0},{"$f":"SUM(D172:D196)","v":0},0,0,0,0,0,0]
["TOT Période",null,{"$f":"SUM(C197:J197)","v":0}]
["Statistiques"]
[]
[]
["Nombre d'heure de fréquentation :"]
[{"$f":"Accueil!$A26","v":"P1"},{"$f":"$C$66*1.5","v":0},"heures de présence pour cet atelier et pour cette période"]
[{"$f":"Accueil!$A27","v":"P2"},{"$f":"$C$99*1.5","v":0},"heures de présence pour cet atelier et pour cette période"]
[{"$f":"Accueil!$A28","v":"P3"},{"$f":"$C$132*1.5","v":0},"heures de présence pour cet atelier et pour cette période"]
[{"$f":"Accueil!$A29","v":"P4"},{"$f":"$C$165*1.5","v":0},"heures de présence pour cet atelier et pour cette période"]
[{"$f":"Accueil!$A30","v":"P5"},{"$f":"$C$198*1.5","v":0},"heures de présence pour cet atelier et pour cette période"]
["TOT",{"$f":"SUM($B$203:$B$207)","v":0},"heures de présence pour cet atelier et pour l'année"]

{"sheet":"Météorite","index":9,"n_rows":208,"n_cols":11,"rows_kept":208,"cut":false,"hidden":false,"merged":[[33,0,34,10],[37,0,37,3],[37,4,37,5],[64,0,64,1],[65,0,65,1],[65,2,65,9],[66,0,67,10],[70,0,70,3],[70,4,70,5],[97,0,97,1],[98,0,98,1],[98,2,98,9],[99,0,100,10],[103,0,103,3],[103,4,103,5],[130,0,130,1],[131,0,131,1],[131,2,131,9],[132,0,133,10],[136,0,136,3],[136,4,136,5],[163,0,163,1],[164,0,164,1],[164,2,164,9],[165,0,166,10],[169,0,169,3],[169,4,169,5],[196,0,196,1],[197,0,197,1],[197,2,197,9],[207,2,207,6],[198,0,199,10],[202,2,202,6],[203,2,203,6],[204,2,204,6],[205,2,205,6],[206,2,206,6]]}
[]
[]
[]
[]
[]
[]
[]
[]
[]
[]
[]
[]
[]
[]
[]
[]
[]
[]
[]
[]
[]
[]
[]
[]
[]
[]
[]
[]
[]
[]
[]
[]
[]
[{"$f":"Accueil!$B15","v":"Météorite"}]
[]
[]
["Période :",{"$f":"Accueil!$A$26","v":"P1"},{"$f":"Accueil!$B$26","v":"du"},{"$f":"Accueil!$C$26","v":"2014-09-02"},{"$f":"Accueil!$D$26","v":"au"},{"$f":"Accueil!$E$26","v":"2014-10-18"}]
["Selectionnez la classe participant à l'atelier :"]
["NOM","Prénom","2014-09-02","2014-05-26","2014-05-27","2014-05-28","2014-05-29","2014-05-30","2014-05-31","2014-06-01","TOT"]
[null,null,null,null,null,null,null,null,null,null,{"$f":"SUM(C40:J40)","v":0}]
[null,null,null,null,null,null,null,null,null,null,{"$f":"SUM(C41:J41)","v":0}]
[null,null,null,null,null,null,null,null,null,null,0]
[null,null,null,null,null,null,null,null,null,null,0]
[null,null,null,null,null,null,null,null,null,null,0]
[null,null,null,null,null,null,null,null,null,null,0]
[null,null,null,null,null,null,null,null,null,null,0]
[null,null,null,null,null,null,null,null,null,null,0]
[null,null,null,null,null,null,null,null,null,null,0]
[null,null,null,null,null,null,null,null,null,null,0]
[null,null,null,null,null,null,null,null,null,null,0]
[null,null,null,null,null,null,null,null,null,null,0]
[null,null,null,null,null,null,null,null,null,null,0]
[null,null,null,null,null,null,null,null,null,null,0]
[null,null,null,null,null,null,null,null,null,null,0]
[null,null,null,null,null,null,null,null,null,null,0]
[null,null,null,null,null,null,null,null,null,null,0]
[null,null,null,null,null,null,null,null,null,null,0]
[null,null,null,null,null,null,null,null,null,null,0]
[null,null,null,null,null,null,null,null,null,null,0]
[null,null,null,null,null,null,null,null,null,null,0]
[null,null,null,null,null,null,null,null,null,null,0]
[null,null,null,null,null,null,null,null,null,null,0]
[null,null,null,null,null,null,null,null,null,null,0]
[null,null,null,null,null,null,null,null,null,null,0]
["TOT Jour",null,{"$f":"SUM(C40:C64)","v":0},{"$f":"SUM(D40:D64)","v":0},0,0,0,0,0,0]
["TOT Période",null,{"$f":"SUM(C65:J65)","v":0}]
[{"$f":"Accueil!$B15","v":"Météorite"}]
[]
[]
["Période :",{"$f":"Accueil!$A27","v":"P2"},{"$f":"Accueil!$B27","v":"du"},{"$f":"Accueil!$C27","v":"2014-11-02"},{"$f":"Accueil!$D27","v":"au"},{"$f":"Accueil!$E27","v":"2014-12-18"}]
["Selectionnez la classe participant à l'atelier :"]
["NOM","Prénom","2014-05-25","2014-05-26","2014-05-27","2014-05-28","2014-05-29","2014-05-30","2014-05-31","2014-06-01","TOT"]
[null,null,null,null,null,null,null,null,null,null,{"$f":"SUM(C73:J73)","v":0}]
[null,null,null,null,null,null,null,null,null,null,{"$f":"SUM(C74:J74)","v":0}]
[null,null,null,null,null,null,null,null,null,null,0]
[null,null,null,null,null,null,null,null,null,null,0]
[null,null,null,null,null,null,null,null,null,null,0]
[null,null,null,null,null,null,null,null,null,null,0]
[null,null,null,null,null,null,null,null,null,null,0]
[null,null,null,null,null,null,null,null,null,null,0]
[null,null,null,null,null,null,null,null,null,null,0]
[null,null,null,null,null,null,null,null,null,null,0]
[null,null,null,null,null,null,null,null,null,null,0]
[null,null,null,null,null,null,null,null,null,null,0]
[null,null,null,null,null,null,null,null,null,null,0]
[null,null,null,null,null,null,null,null,null,null,0]
[null,null,null,null,null,null,null,null,null,null,0]
[null,null,null,null,null,null,null,null,null,null,0]
[null,null,null,null,null,null,null,null,null,null,0]
[null,null,null,null,null,null,null,null,null,null,0]
[null,null,null,null,null,null,null,null,null,null,0]
[null,null,null,null,null,null,null,null,null,null,0]
[null,null,null,null,null,null,null,null,null,null,0]
[null,null,null,null,null,null,null,null,null,null,0]
[null,null,null,null,null,null,null,null,null,null,0]
[null,null,null,null,null,null,null,null,null,null,0]
[null,null,null,null,null,null,null,null,null,null,0]
["TOT Jour",null,{"$f":"SUM(C73:C97)","v":0},{"$f":"SUM(D73:D97)","v":0},0,0,0,0,0,0]
["TOT Période",null,{"$f":"SUM(C98:J98)","v":0}]
[{"$f":"Accueil!$B15","v":"Météorite"}]
[]
[]
["Période :",{"$f":"Accueil!A28","v":"P3"},{"$f":"Accueil!$B28","v":"du"},{"$f":"Accueil!$C28","v":"2015-01-04"},{"$f":"Accueil!$D28","v":"au"},{"$f":"Accueil!$E28","v":"2015-02-20"}]
["Selectionnez la classe participant à l'atelier :"]
["NOM","Prénom","2014-05-25","2014-05-26","2014-05-27","2014-05-28","2014-05-29","2014-05-30","2014-05-31","2014-06-01","TOT"]
[null,null,null,null,null,null,null,null,null,null,{"$f":"SUM(C106:J106)","v":0}]
[null,null,null,null,null,null,null,null,null,null,{"$f":"SUM(C107:J107)","v":0}]
[null,null,null,null,null,null,null,null,null,null,0]
[null,null,null,null,null,null,null,null,null,null,0]
[null,null,null,null,null,null,null,null,null,null,0]
[null,null,null,null,null,null,null,null,null,null,0]
[null,null,null,null,null,null,null,null,null,null,0]
[null,null,null,null,null,null,null,null,null,null,0]
[null,null,null,null,null,null,null,null,null,null,0]
[null,null,null,null,null,null,null,null,null,null,0]
[null,null,null,null,null,null,null,null,null,null,0]
[null,null,null,null,null,null,null,null,null,null,0]
[null,null,null,null,null,null,null,null,null,null,0]
[null,null,null,null,null,null,null,null,null,null,0]
[null,null,null,null,null,null,null,null,null,null,0]
[null,null,null,null,null,null,null,null,null,null,0]
[null,null,null,null,null,null,null,null,null,null,0]
[null,null,null,null,null,null,null,null,null,null,0]
[null,null,null,null,null,null,null,null,null,null,0]
[null,null,null,null,null,null,null,null,null,null,0]
[null,null,null,null,null,null,null,null,null,null,0]
[null,null,null,null,null,null,null,null,null,null,0]
[null,null,null,null,null,null,null,null,null,null,0]
[null,null,null,null,null,null,null,null,null,null,0]
[null,null,null,null,null,null,null,null,null,null,0]
["TOT Jour",null,{"$f":"SUM(C106:C130)","v":0},{"$f":"SUM(D106:D130)","v":0},0,0,0,0,0,0]
["TOT Période",null,{"$f":"SUM(C131:J131)","v":0}]
[{"$f":"Accueil!$B15","v":"Météorite"}]
[]
[]
["Période :",{"$f":"Accueil!A29","v":"P4"},{"$f":"Accueil!$B29","v":"du"},{"$f":"Accueil!$C29","v":"2015-03-08"},{"$f":"Accueil!$D29","v":"au"},{"$f":"Accueil!$E29","v":"2015-04-15"}]
["Selectionnez la classe participant à l'atelier :"]
["NOM","Prénom","2014-05-25","2014-05-26","2014-05-27","2014-05-28","2014-05-29","2014-05-30","2014-05-31","2014-06-01","TOT"]
[null,null,null,null,null,null,null,null,null,null,{"$f":"SUM(C139:J139)","v":0}]
[null,null,null,null,null,null,null,null,null,null,{"$f":"SUM(C140:J140)","v":0}]
[null,null,null,null,null,null,null,null,null,null,0]
[null,null,null,null,null,null,null,null,null,null,0]
[null,null,null,null,null,null,null,null,null,null,0]
[null,null,null,null,null,null,null,null,null,null,0]
[null,null,null,null,null,null,null,null,null,null,0]
[null,null,null,null,null,null,null,null,null,null,0]
[null,null,null,null,null,null,null,null,null,null,0]
[null,null,null,null,null,null,null,null,null,null,0]
[null,null,null,null,null,null,null,null,null,null,0]
[null,null,null,null,null,null,null,null,null,null,0]
[null,null,null,null,null,null,null,null,null,null,0]
[null,null,null,null,null,null,null,null,null,null,0]
[null,null,null,null,null,null,null,null,null,null,0]
[null,null,null,null,null,null,null,null,null,null,0]
[null,null,null,null,null,null,null,null,null,null,0]
[null,null,null,null,null,null,null,null,null,null,0]
[null,null,null,null,null,null,null,null,null,null,0]
[null,null,null,null,null,null,null,null,null,null,0]
[null,null,null,null,null,null,null,null,null,null,0]
[null,null,null,null,null,null,null,null,null,null,0]
[null,null,null,null,null,null,null,null,null,null,0]
[null,null,null,null,null,null,null,null,null,null,0]
[null,null,null,null,null,null,null,null,null,null,0]
["TOT Jour",null,{"$f":"SUM(C139:C163)","v":0},{"$f":"SUM(D139:D163)","v":0},0,0,0,0,0,0]
["TOT Période",null,{"$f":"SUM(C164:J164)","v":0}]
[{"$f":"Accueil!$B15","v":"Météorite"}]
[]
[]
["Période :",{"$f":"Accueil!A30","v":"P5"},{"$f":"Accueil!$B30","v":"du"},{"$f":"Accueil!$C30","v":"2015-05-02"},{"$f":"Accueil!$D30","v":"au"},{"$f":"Accueil!$E30","v":"2015-07-03"}]
["Selectionnez la classe participant à l'atelier :"]
["NOM","Prénom","2014-05-25","2014-05-26","2014-05-27","2014-05-28","2014-05-29","2014-05-30","2014-05-31","2014-06-01","TOT"]
[null,null,null,null,null,null,null,null,null,null,{"$f":"SUM(C172:J172)","v":0}]
[null,null,null,null,null,null,null,null,null,null,{"$f":"SUM(C173:J173)","v":0}]
[null,null,null,null,null,null,null,null,null,null,0]
[null,null,null,null,null,null,null,null,null,null,0]
[null,null,null,null,null,null,null,null,null,null,0]
[null,null,null,null,null,null,null,null,null,null,0]
[null,null,null,null,null,null,null,null,null,null,0]
[null,null,null,null,null,null,null,null,null,null,0]
[null,null,null,null,null,null,null,null,null,null,0]
[null,null,null,null,null,null,null,null,null,null,0]
[null,null,null,null,null,null,null,null,null,null,0]
[null,null,null,null,null,null,null,null,null,null,0]
[null,null,null,null,null,null,null,null,null,null,0]
[null,null,null,null,null,null,null,null,null,null,0]
[null,null,null,null,null,null,null,null,null,null,0]
[null,null,null,null,null,null,null,null,null,null,0]
[null,null,null,null,null,null,null,null,null,null,0]
[null,null,null,null,null,null,null,null,null,null,0]
[null,null,null,null,null,null,null,null,null,null,0]
[null,null,null,null,null,null,null,null,null,null,0]
[null,null,null,null,null,null,null,null,null,null,0]
[null,null,null,null,null,null,null,null,null,null,0]
[null,null,null,null,null,null,null,null,null,null,0]
[null,null,null,null,null,null,null,null,null,null,0]
[null,null,null,null,null,null,null,null,null,null,0]
["TOT Jour",null,{"$f":"SUM(C172:C196)","v":0},{"$f":"SUM(D172:D196)","v":0},0,0,0,0,0,0]
["TOT Période",null,{"$f":"SUM(C197:J197)","v":0}]
["Statistiques"]
[]
[]
["Nombre d'heure de fréquentation :"]
[{"$f":"Accueil!$A26","v":"P1"},{"$f":"$C$66*1.5","v":0},"heures de présence pour cet atelier et pour cette période"]
[{"$f":"Accueil!$A27","v":"P2"},{"$f":"$C$99*1.5","v":0},"heures de présence pour cet atelier et pour cette période"]
[{"$f":"Accueil!$A28","v":"P3"},{"$f":"$C$132*1.5","v":0},"heures de présence pour cet atelier et pour cette période"]
[{"$f":"Accueil!$A29","v":"P4"},{"$f":"$C$165*1.5","v":0},"heures de présence pour cet atelier et pour cette période"]
[{"$f":"Accueil!$A30","v":"P5"},{"$f":"$C$198*1.5","v":0},"heures de présence pour cet atelier et pour cette période"]
["TOT",{"$f":"SUM($B$203:$B$207)","v":0},"heures de présence pour cet atelier et pour l'année"]

{"sheet":"Poissons","index":10,"n_rows":208,"n_cols":11,"rows_kept":208,"cut":false,"hidden":false,"merged":[[33,0,34,10],[37,0,37,3],[37,4,37,5],[64,0,64,1],[65,0,65,1],[65,2,65,9],[66,0,67,10],[70,0,70,3],[70,4,70,5],[97,0,97,1],[98,0,98,1],[98,2,98,9],[99,0,100,10],[103,0,103,3],[103,4,103,5],[130,0,130,1],[131,0,131,1],[131,2,131,9],[132,0,133,10],[136,0,136,3],[136,4,136,5],[163,0,163,1],[164,0,164,1],[164,2,164,9],[165,0,166,10],[169,0,169,3],[169,4,169,5],[196,0,196,1],[197,0,197,1],[197,2,197,9],[207,2,207,6],[198,0,199,10],[202,2,202,6],[203,2,203,6],[204,2,204,6],[205,2,205,6],[206,2,206,6]]}
[]
[]
[]
[]
[]
[]
[]
[]
[]
[]
[]
[]
[]
[]
[]
[]
[]
[]
[]
[]
[]
[]
[]
[]
[]
[]
[]
[]
[]
[]
[]
[]
[]
[{"$f":"Accueil!$B16","v":"Poissons"}]
[]
[]
["Période :",{"$f":"Accueil!$A$26","v":"P1"},{"$f":"Accueil!$B$26","v":"du"},{"$f":"Accueil!$C$26","v":"2014-09-02"},{"$f":"Accueil!$D$26","v":"au"},{"$f":"Accueil!$E$26","v":"2014-10-18"}]
["Selectionnez la classe participant à l'atelier :"]
["NOM","Prénom","2014-09-02","2014-05-26","2014-05-27","2014-05-28","2014-05-29","2014-05-30","2014-05-31","2014-06-01","TOT"]
["MARTIN","Nathan",null,null,null,null,null,null,null,null,{"$f":"SUM(C40:J40)","v":0}]
[null,null,null,null,null,null,null,null,null,null,{"$f":"SUM(C41:J41)","v":0}]
[null,null,null,null,null,null,null,null,null,null,0]
[null,null,null,null,null,null,null,null,null,null,0]
[null,null,null,null,null,null,null,null,null,null,0]
[null,null,null,null,null,null,null,null,null,null,0]
[null,null,null,null,null,null,null,null,null,null,0]
[null,null,null,null,null,null,null,null,null,null,0]
[null,null,null,null,null,null,null,null,null,null,0]
[null,null,null,null,null,null,null,null,null,null,0]
[null,null,null,null,null,null,null,null,null,null,0]
[null,null,null,null,null,null,null,null,null,null,0]
[null,null,null,null,null,null,null,null,null,null,0]
[null,null,null,null,null,null,null,null,null,null,0]
[null,null,null,null,null,null,null,null,null,null,0]
[null,null,null,null,null,null,null,null,null,null,0]
[null,null,null,null,null,null,null,null,null,null,0]
[null,null,null,null,null,null,null,null,null,null,0]
[null,null,null,null,null,null,null,null,null,null,0]
[null,null,null,null,null,null,null,null,null,null,0]
[null,null,null,null,null,null,null,null,null,null,0]
[null,null,null,null,null,null,null,null,null,null,0]
[null,null,null,null,null,null,null,null,null,null,0]
[null,null,null,null,null,null,null,null,null,null,0]
[null,null,null,null,null,null,null,null,null,null,0]
["TOT Jour",null,{"$f":"SUM(C40:C64)","v":0},{"$f":"SUM(D40:D64)","v":0},0,0,0,0,0,0]
["TOT Période",null,{"$f":"SUM(C65:J65)","v":0}]
[{"$f":"Accueil!$B16","v":"Poissons"}]
[]
[]
["Période :",{"$f":"Accueil!$A27","v":"P2"},{"$f":"Accueil!$B27","v":"du"},{"$f":"Accueil!$C27","v":"2014-11-02"},{"$f":"Accueil!$D27","v":"au"},{"$f":"Accueil!$E27","v":"2014-12-18"}]
["Selectionnez la classe participant à l'atelier :"]
["NOM","Prénom","2014-05-25","2014-05-26","2014-05-27","2014-05-28","2014-05-29","2014-05-30","2014-05-31","2014-06-01","TOT"]
[null,null,null,null,null,null,null,null,null,null,{"$f":"SUM(C73:J73)","v":0}]
[null,null,null,null,null,null,null,null,null,null,{"$f":"SUM(C74:J74)","v":0}]
[null,null,null,null,null,null,null,null,null,null,0]
[null,null,null,null,null,null,null,null,null,null,0]
[null,null,null,null,null,null,null,null,null,null,0]
[null,null,null,null,null,null,null,null,null,null,0]
[null,null,null,null,null,null,null,null,null,null,0]
[null,null,null,null,null,null,null,null,null,null,0]
[null,null,null,null,null,null,null,null,null,null,0]
[null,null,null,null,null,null,null,null,null,null,0]
[null,null,null,null,null,null,null,null,null,null,0]
[null,null,null,null,null,null,null,null,null,null,0]
[null,null,null,null,null,null,null,null,null,null,0]
[null,null,null,null,null,null,null,null,null,null,0]
[null,null,null,null,null,null,null,null,null,null,0]
[null,null,null,null,null,null,null,null,null,null,0]
[null,null,null,null,null,null,null,null,null,null,0]
[null,null,null,null,null,null,null,null,null,null,0]
[null,null,null,null,null,null,null,null,null,null,0]
[null,null,null,null,null,null,null,null,null,null,0]
[null,null,null,null,null,null,null,null,null,null,0]
[null,null,null,null,null,null,null,null,null,null,0]
[null,null,null,null,null,null,null,null,null,null,0]
[null,null,null,null,null,null,null,null,null,null,0]
[null,null,null,null,null,null,null,null,null,null,0]
["TOT Jour",null,{"$f":"SUM(C73:C97)","v":0},{"$f":"SUM(D73:D97)","v":0},0,0,0,0,0,0]
["TOT Période",null,{"$f":"SUM(C98:J98)","v":0}]
[{"$f":"Accueil!$B16","v":"Poissons"}]
[]
[]
["Période :",{"$f":"Accueil!A28","v":"P3"},{"$f":"Accueil!$B28","v":"du"},{"$f":"Accueil!$C28","v":"2015-01-04"},{"$f":"Accueil!$D28","v":"au"},{"$f":"Accueil!$E28","v":"2015-02-20"}]
["Selectionnez la classe participant à l'atelier :"]
["NOM","Prénom","2014-05-25","2014-05-26","2014-05-27","2014-05-28","2014-05-29","2014-05-30","2014-05-31","2014-06-01","TOT"]
[null,null,null,null,null,null,null,null,null,null,{"$f":"SUM(C106:J106)","v":0}]
[null,null,null,null,null,null,null,null,null,null,{"$f":"SUM(C107:J107)","v":0}]
[null,null,null,null,null,null,null,null,null,null,0]
[null,null,null,null,null,null,null,null,null,null,0]
[null,null,null,null,null,null,null,null,null,null,0]
[null,null,null,null,null,null,null,null,null,null,0]
[null,null,null,null,null,null,null,null,null,null,0]
[null,null,null,null,null,null,null,null,null,null,0]
[null,null,null,null,null,null,null,null,null,null,0]
[null,null,null,null,null,null,null,null,null,null,0]
[null,null,null,null,null,null,null,null,null,null,0]
[null,null,null,null,null,null,null,null,null,null,0]
[null,null,null,null,null,null,null,null,null,null,0]
[null,null,null,null,null,null,null,null,null,null,0]
[null,null,null,null,null,null,null,null,null,null,0]
[null,null,null,null,null,null,null,null,null,null,0]
[null,null,null,null,null,null,null,null,null,null,0]
[null,null,null,null,null,null,null,null,null,null,0]
[null,null,null,null,null,null,null,null,null,null,0]
[null,null,null,null,null,null,null,null,null,null,0]
[null,null,null,null,null,null,null,null,null,null,0]
[null,null,null,null,null,null,null,null,null,null,0]
[null,null,null,null,null,null,null,null,null,null,0]
[null,null,null,null,null,null,null,null,null,null,0]
[null,null,null,null,null,null,null,null,null,null,0]
["TOT Jour",null,{"$f":"SUM(C106:C130)","v":0},{"$f":"SUM(D106:D130)","v":0},0,0,0,0,0,0]
["TOT Période",null,{"$f":"SUM(C131:J131)","v":0}]
[{"$f":"Accueil!$B16","v":"Poissons"}]
[]
[]
["Période :",{"$f":"Accueil!A29","v":"P4"},{"$f":"Accueil!$B29","v":"du"},{"$f":"Accueil!$C29","v":"2015-03-08"},{"$f":"Accueil!$D29","v":"au"},{"$f":"Accueil!$E29","v":"2015-04-15"}]
["Selectionnez la classe participant à l'atelier :"]
["NOM","Prénom","2014-05-25","2014-05-26","2014-05-27","2014-05-28","2014-05-29","2014-05-30","2014-05-31","2014-06-01","TOT"]
[null,null,null,null,null,null,null,null,null,null,{"$f":"SUM(C139:J139)","v":0}]
[null,null,null,null,null,null,null,null,null,null,{"$f":"SUM(C140:J140)","v":0}]
[null,null,null,null,null,null,null,null,null,null,0]
[null,null,null,null,null,null,null,null,null,null,0]
[null,null,null,null,null,null,null,null,null,null,0]
[null,null,null,null,null,null,null,null,null,null,0]
[null,null,null,null,null,null,null,null,null,null,0]
[null,null,null,null,null,null,null,null,null,null,0]
[null,null,null,null,null,null,null,null,null,null,0]
[null,null,null,null,null,null,null,null,null,null,0]
[null,null,null,null,null,null,null,null,null,null,0]
[null,null,null,null,null,null,null,null,null,null,0]
[null,null,null,null,null,null,null,null,null,null,0]
[null,null,null,null,null,null,null,null,null,null,0]
[null,null,null,null,null,null,null,null,null,null,0]
[null,null,null,null,null,null,null,null,null,null,0]
[null,null,null,null,null,null,null,null,null,null,0]
[null,null,null,null,null,null,null,null,null,null,0]
[null,null,null,null,null,null,null,null,null,null,0]
[null,null,null,null,null,null,null,null,null,null,0]
[null,null,null,null,null,null,null,null,null,null,0]
[null,null,null,null,null,null,null,null,null,null,0]
[null,null,null,null,null,null,null,null,null,null,0]
[null,null,null,null,null,null,null,null,null,null,0]
[null,null,null,null,null,null,null,null,null,null,0]
["TOT Jour",null,{"$f":"SUM(C139:C163)","v":0},{"$f":"SUM(D139:D163)","v":0},0,0,0,0,0,0]
["TOT Période",null,{"$f":"SUM(C164:J164)","v":0}]
[{"$f":"Accueil!$B16","v":"Poissons"}]
[]
[]
["Période :",{"$f":"Accueil!A30","v":"P5"},{"$f":"Accueil!$B30","v":"du"},{"$f":"Accueil!$C30","v":"2015-05-02"},{"$f":"Accueil!$D30","v":"au"},{"$f":"Accueil!$E30","v":"2015-07-03"}]
["Selectionnez la classe participant à l'atelier :"]
["NOM","Prénom","2014-05-25","2014-05-26","2014-05-27","2014-05-28","2014-05-29","2014-05-30","2014-05-31","2014-06-01","TOT"]
[null,null,null,null,null,null,null,null,null,null,{"$f":"SUM(C172:J172)","v":0}]
[null,null,null,null,null,null,null,null,null,null,{"$f":"SUM(C173:J173)","v":0}]
[null,null,null,null,null,null,null,null,null,null,0]
[null,null,null,null,null,null,null,null,null,null,0]
[null,null,null,null,null,null,null,null,null,null,0]
[null,null,null,null,null,null,null,null,null,null,0]
[null,null,null,null,null,null,null,null,null,null,0]
[null,null,null,null,null,null,null,null,null,null,0]
[null,null,null,null,null,null,null,null,null,null,0]
[null,null,null,null,null,null,null,null,null,null,0]
[null,null,null,null,null,null,null,null,null,null,0]
[null,null,null,null,null,null,null,null,null,null,0]
[null,null,null,null,null,null,null,null,null,null,0]
[null,null,null,null,null,null,null,null,null,null,0]
[null,null,null,null,null,null,null,null,null,null,0]
[null,null,null,null,null,null,null,null,null,null,0]
[null,null,null,null,null,null,null,null,null,null,0]
[null,null,null,null,null,null,null,null,null,null,0]
[null,null,null,null,null,null,null,null,null,null,0]
[null,null,null,null,null,null,null,null,null,null,0]
[null,null,null,null,null,null,null,null,null,null,0]
[null,null,null,null,null,null,null,null,null,null,0]
[null,null,null,null,null,null,null,null,null,null,0]
[null,null,null,null,null,null,null,null,null,null,0]
[null,null,null,null,null,null,null,null,null,null,0]
["TOT Jour",null,{"$f":"SUM(C172:C196)","v":0},{"$f":"SUM(D172:D196)","v":0},0,0,0,0,0,0]
["TOT Période",null,{"$f":"SUM(C197:J197)","v":0}]
["Statistiques"]
[]
[]
["Nombre d'heure de fréquentation :"]
[{"$f":"Accueil!$A26","v":"P1"},{"$f":"$C$66*1.5","v":0},"heures de présence pour cet atelier et pour cette période"]
[{"$f":"Accueil!$A27","v":"P2"},{"$f":"$C$99*1.5","v":0},"heures de présence pour cet atelier et pour cette période"]
[{"$f":"Accueil!$A28","v":"P3"},{"$f":"$C$132*1.5","v":0},"heures de présence pour cet atelier et pour cette période"]
[{"$f":"Accueil!$A29","v":"P4"},{"$f":"$C$165*1.5","v":0},"heures de présence pour cet atelier et pour cette période"]
[{"$f":"Accueil!$A30","v":"P5"},{"$f":"$C$198*1.5","v":0},"heures de présence pour cet atelier et pour cette période"]
["TOT",{"$f":"SUM($B$203:$B$207)","v":0},"heures de présence pour cet atelier et pour l'année"]

{"sheet":"Dauphin","index":11,"n_rows":208,"n_cols":11,"rows_kept":208,"cut":false,"hidden":false,"merged":[[33,0,34,10],[37,0,37,3],[37,4,37,5],[64,0,64,1],[65,0,65,1],[65,2,65,9],[66,0,67,10],[70,0,70,3],[70,4,70,5],[97,0,97,1],[98,0,98,1],[98,2,98,9],[99,0,100,10],[103,0,103,3],[103,4,103,5],[130,0,130,1],[131,0,131,1],[131,2,131,9],[132,0,133,10],[136,0,136,3],[136,4,136,5],[163,0,163,1],[164,0,164,1],[164,2,164,9],[165,0,166,10],[169,0,169,3],[169,4,169,5],[196,0,196,1],[197,0,197,1],[197,2,197,9],[207,2,207,6],[198,0,199,10],[202,2,202,6],[203,2,203,6],[204,2,204,6],[205,2,205,6],[206,2,206,6]]}
[]
[]
[]
[]
[]
[]
[]
[]
[]
[]
[]
[]
[]
[]
[]
[]
[]
[]
[]
[]
[]
[]
[]
[]
[]
[]
[]
[]
[]
[]
[]
[]
[]
[{"$f":"Accueil!$B17","v":"Dauphin"}]
[]
[]
["Période :",{"$f":"Accueil!$A$26","v":"P1"},{"$f":"Accueil!$B$26","v":"du"},{"$f":"Accueil!$C$26","v":"2014-09-02"},{"$f":"Accueil!$D$26","v":"au"},{"$f":"Accueil!$E$26","v":"2014-10-18"}]
["Selectionnez la classe participant à l'atelier :"]
["NOM","Prénom","2014-09-02","2014-05-26","2014-05-27","2014-05-28","2014-05-29","2014-05-30","2014-05-31","2014-06-01","TOT"]
[null,null,null,null,null,null,null,null,null,null,{"$f":"SUM(C40:J40)","v":0}]
[null,null,null,null,null,null,null,null,null,null,{"$f":"SUM(C41:J41)","v":0}]
[null,null,null,null,null,null,null,null,null,null,0]
[null,null,null,null,null,null,null,null,null,null,0]
[null,null,null,null,null,null,null,null,null,null,0]
[null,null,null,null,null,null,null,null,null,null,0]
[null,null,null,null,null,null,null,null,null,null,0]
[null,null,null,null,null,null,null,null,null,null,0]
[null,null,null,null,null,null,null,null,null,null,0]
[null,null,null,null,null,null,null,null,null,null,0]
[null,null,null,null,null,null,null,null,null,null,0]
[null,null,null,null,null,null,null,null,null,null,0]
[null,null,null,null,null,null,null,null,null,null,0]
[null,null,null,null,null,null,null,null,null,null,0]
[null,null,null,null,null,null,null,null,null,null,0]
[null,null,null,null,null,null,null,null,null,null,0]
[null,null,null,null,null,null,null,null,null,null,0]
[null,null,null,null,null,null,null,null,null,null,0]
[null,null,null,null,null,null,null,null,null,null,0]
[null,null,null,null,null,null,null,null,null,null,0]
[null,null,null,null,null,null,null,null,null,null,0]
[null,null,null,null,null,null,null,null,null,null,0]
[null,null,null,null,null,null,null,null,null,null,0]
[null,null,null,null,null,null,null,null,null,null,0]
[null,null,null,null,null,null,null,null,null,null,0]
["TOT Jour",null,{"$f":"SUM(C40:C64)","v":0},{"$f":"SUM(D40:D64)","v":0},0,0,0,0,0,0]
["TOT Période",null,{"$f":"SUM(C65:J65)","v":0}]
[{"$f":"Accueil!$B17","v":"Dauphin"}]
[]
[]
["Période :",{"$f":"Accueil!$A27","v":"P2"},{"$f":"Accueil!$B27","v":"du"},{"$f":"Accueil!$C27","v":"2014-11-02"},{"$f":"Accueil!$D27","v":"au"},{"$f":"Accueil!$E27","v":"2014-12-18"}]
["Selectionnez la classe participant à l'atelier :"]
["NOM","Prénom","2014-05-25","2014-05-26","2014-05-27","2014-05-28","2014-05-29","2014-05-30","2014-05-31","2014-06-01","TOT"]
[null,null,null,null,null,null,null,null,null,null,{"$f":"SUM(C73:J73)","v":0}]
[null,null,null,null,null,null,null,null,null,null,{"$f":"SUM(C74:J74)","v":0}]
[null,null,null,null,null,null,null,null,null,null,0]
[null,null,null,null,null,null,null,null,null,null,0]
[null,null,null,null,null,null,null,null,null,null,0]
[null,null,null,null,null,null,null,null,null,null,0]
[null,null,null,null,null,null,null,null,null,null,0]
[null,null,null,null,null,null,null,null,null,null,0]
[null,null,null,null,null,null,null,null,null,null,0]
[null,null,null,null,null,null,null,null,null,null,0]
[null,null,null,null,null,null,null,null,null,null,0]
[null,null,null,null,null,null,null,null,null,null,0]
[null,null,null,null,null,null,null,null,null,null,0]
[null,null,null,null,null,null,null,null,null,null,0]
[null,null,null,null,null,null,null,null,null,null,0]
[null,null,null,null,null,null,null,null,null,null,0]
[null,null,null,null,null,null,null,null,null,null,0]
[null,null,null,null,null,null,null,null,null,null,0]
[null,null,null,null,null,null,null,null,null,null,0]
[null,null,null,null,null,null,null,null,null,null,0]
[null,null,null,null,null,null,null,null,null,null,0]
[null,null,null,null,null,null,null,null,null,null,0]
[null,null,null,null,null,null,null,null,null,null,0]
[null,null,null,null,null,null,null,null,null,null,0]
[null,null,null,null,null,null,null,null,null,null,0]
["TOT Jour",null,{"$f":"SUM(C73:C97)","v":0},{"$f":"SUM(D73:D97)","v":0},0,0,0,0,0,0]
["TOT Période",null,{"$f":"SUM(C98:J98)","v":0}]
[{"$f":"Accueil!$B17","v":"Dauphin"}]
[]
[]
["Période :",{"$f":"Accueil!A28","v":"P3"},{"$f":"Accueil!$B28","v":"du"},{"$f":"Accueil!$C28","v":"2015-01-04"},{"$f":"Accueil!$D28","v":"au"},{"$f":"Accueil!$E28","v":"2015-02-20"}]
["Selectionnez la classe participant à l'atelier :"]
["NOM","Prénom","2014-05-25","2014-05-26","2014-05-27","2014-05-28","2014-05-29","2014-05-30","2014-05-31","2014-06-01","TOT"]
[null,null,null,null,null,null,null,null,null,null,{"$f":"SUM(C106:J106)","v":0}]
[null,null,null,null,null,null,null,null,null,null,{"$f":"SUM(C107:J107)","v":0}]
[null,null,null,null,null,null,null,null,null,null,0]
[null,null,null,null,null,null,null,null,null,null,0]
[null,null,null,null,null,null,null,null,null,null,0]
[null,null,null,null,null,null,null,null,null,null,0]
[null,null,null,null,null,null,null,null,null,null,0]
[null,null,null,null,null,null,null,null,null,null,0]
[null,null,null,null,null,null,null,null,null,null,0]
[null,null,null,null,null,null,null,null,null,null,0]
[null,null,null,null,null,null,null,null,null,null,0]
[null,null,null,null,null,null,null,null,null,null,0]
[null,null,null,null,null,null,null,null,null,null,0]
[null,null,null,null,null,null,null,null,null,null,0]
[null,null,null,null,null,null,null,null,null,null,0]
[null,null,null,null,null,null,null,null,null,null,0]
[null,null,null,null,null,null,null,null,null,null,0]
[null,null,null,null,null,null,null,null,null,null,0]
[null,null,null,null,null,null,null,null,null,null,0]
[null,null,null,null,null,null,null,null,null,null,0]
[null,null,null,null,null,null,null,null,null,null,0]
[null,null,null,null,null,null,null,null,null,null,0]
[null,null,null,null,null,null,null,null,null,null,0]
[null,null,null,null,null,null,null,null,null,null,0]
[null,null,null,null,null,null,null,null,null,null,0]
["TOT Jour",null,{"$f":"SUM(C106:C130)","v":0},{"$f":"SUM(D106:D130)","v":0},0,0,0,0,0,0]
["TOT Période",null,{"$f":"SUM(C131:J131)","v":0}]
[{"$f":"Accueil!$B17","v":"Dauphin"}]
[]
[]
["Période :",{"$f":"Accueil!A29","v":"P4"},{"$f":"Accueil!$B29","v":"du"},{"$f":"Accueil!$C29","v":"2015-03-08"},{"$f":"Accueil!$D29","v":"au"},{"$f":"Accueil!$E29","v":"2015-04-15"}]
["Selectionnez la classe participant à l'atelier :"]
["NOM","Prénom","2014-05-25","2014-05-26","2014-05-27","2014-05-28","2014-05-29","2014-05-30","2014-05-31","2014-06-01","TOT"]
[null,null,null,null,null,null,null,null,null,null,{"$f":"SUM(C139:J139)","v":0}]
[null,null,null,null,null,null,null,null,null,null,{"$f":"SUM(C140:J140)","v":0}]
[null,null,null,null,null,null,null,null,null,null,0]
[null,null,null,null,null,null,null,null,null,null,0]
[null,null,null,null,null,null,null,null,null,null,0]
[null,null,null,null,null,null,null,null,null,null,0]
[null,null,null,null,null,null,null,null,null,null,0]
[null,null,null,null,null,null,null,null,null,null,0]
[null,null,null,null,null,null,null,null,null,null,0]
[null,null,null,null,null,null,null,null,null,null,0]
[null,null,null,null,null,null,null,null,null,null,0]
[null,null,null,null,null,null,null,null,null,null,0]
[null,null,null,null,null,null,null,null,null,null,0]
[null,null,null,null,null,null,null,null,null,null,0]
[null,null,null,null,null,null,null,null,null,null,0]
[null,null,null,null,null,null,null,null,null,null,0]
[null,null,null,null,null,null,null,null,null,null,0]
[null,null,null,null,null,null,null,null,null,null,0]
[null,null,null,null,null,null,null,null,null,null,0]
[null,null,null,null,null,null,null,null,null,null,0]
[null,null,null,null,null,null,null,null,null,null,0]
[null,null,null,null,null,null,null,null,null,null,0]
[null,null,null,null,null,null,null,null,null,null,0]
[null,null,null,null,null,null,null,null,null,null,0]
[null,null,null,null,null,null,null,null,null,null,0]
["TOT Jour",null,{"$f":"SUM(C139:C163)","v":0},{"$f":"SUM(D139:D163)","v":0},0,0,0,0,0,0]
["TOT Période",null,{"$f":"SUM(C164:J164)","v":0}]
[{"$f":"Accueil!$B17","v":"Dauphin"}]
[]
[]
["Période :",{"$f":"Accueil!A30","v":"P5"},{"$f":"Accueil!$B30","v":"du"},{"$f":"Accueil!$C30","v":"2015-05-02"},{"$f":"Accueil!$D30","v":"au"},{"$f":"Accueil!$E30","v":"2015-07-03"}]
["Selectionnez la classe participant à l'atelier :"]
["NOM","Prénom","2014-05-25","2014-05-26","2014-05-27","2014-05-28","2014-05-29","2014-05-30","2014-05-31","2014-06-01","TOT"]
[null,null,null,null,null,null,null,null,null,null,{"$f":"SUM(C172:J172)","v":0}]
[null,null,null,null,null,null,null,null,null,null,{"$f":"SUM(C173:J173)","v":0}]
[null,null,null,null,null,null,null,null,null,null,0]
[null,null,null,null,null,null,null,null,null,null,0]
[null,null,null,null,null,null,null,null,null,null,0]
[null,null,null,null,null,null,null,null,null,null,0]
[null,null,null,null,null,null,null,null,null,null,0]
[null,null,null,null,null,null,null,null,null,null,0]
[null,null,null,null,null,null,null,null,null,null,0]
[null,null,null,null,null,null,null,null,null,null,0]
[null,null,null,null,null,null,null,null,null,null,0]
[null,null,null,null,null,null,null,null,null,null,0]
[null,null,null,null,null,null,null,null,null,null,0]
[null,null,null,null,null,null,null,null,null,null,0]
[null,null,null,null,null,null,null,null,null,null,0]
[null,null,null,null,null,null,null,null,null,null,0]
[null,null,null,null,null,null,null,null,null,null,0]
[null,null,null,null,null,null,null,null,null,null,0]
[null,null,null,null,null,null,null,null,null,null,0]
[null,null,null,null,null,null,null,null,null,null,0]
[null,null,null,null,null,null,null,null,null,null,0]
[null,null,null,null,null,null,null,null,null,null,0]
[null,null,null,null,null,null,null,null,null,null,0]
[null,null,null,null,null,null,null,null,null,null,0]
[null,null,null,null,null,null,null,null,null,null,0]
["TOT Jour",null,{"$f":"SUM(C172:C196)","v":0},{"$f":"SUM(D172:D196)","v":0},0,0,0,0,0,0]
["TOT Période",null,{"$f":"SUM(C197:J197)","v":0}]
["Statistiques"]
[]
[]
["Nombre d'heure de fréquentation :"]
[{"$f":"Accueil!$A26","v":"P1"},{"$f":"$C$66*1.5","v":0},"heures de présence pour cet atelier et pour cette période"]
[{"$f":"Accueil!$A27","v":"P2"},{"$f":"$C$99*1.5","v":0},"heures de présence pour cet atelier et pour cette période"]
[{"$f":"Accueil!$A28","v":"P3"},{"$f":"$C$132*1.5","v":0},"heures de présence pour cet atelier et pour cette période"]
[{"$f":"Accueil!$A29","v":"P4"},{"$f":"$C$165*1.5","v":0},"heures de présence pour cet atelier et pour cette période"]
[{"$f":"Accueil!$A30","v":"P5"},{"$f":"$C$198*1.5","v":0},"heures de présence pour cet atelier et pour cette période"]
["TOT",{"$f":"SUM($B$203:$B$207)","v":0},"heures de présence pour cet atelier et pour l'année"]

{"sheet":"Excel","index":12,"n_rows":208,"n_cols":11,"rows_kept":208,"cut":false,"hidden":false,"merged":[[33,0,34,10],[37,0,37,3],[37,4,37,5],[64,0,64,1],[65,0,65,1],[65,2,65,9],[66,0,67,10],[70,0,70,3],[70,4,70,5],[97,0,97,1],[98,0,98,1],[98,2,98,9],[99,0,100,10],[103,0,103,3],[103,4,103,5],[130,0,130,1],[131,0,131,1],[131,2,131,9],[132,0,133,10],[136,0,136,3],[136,4,136,5],[163,0,163,1],[164,0,164,1],[164,2,164,9],[165,0,166,10],[169,0,169,3],[169,4,169,5],[196,0,196,1],[197,0,197,1],[197,2,197,9],[207,2,207,6],[198,0,199,10],[202,2,202,6],[203,2,203,6],[204,2,204,6],[205,2,205,6],[206,2,206,6]]}
[]
[]
[]
[]
[]
[]
[]
[]
[]
[]
[]
[]
[]
[]
[]
[]
[]
[]
[]
[]
[]
[]
[]
[]
[]
[]
[]
[]
[]
[]
[]
[]
[]
[{"$f":"Accueil!$B18","v":"Excel"}]
[]
[]
["Période :",{"$f":"Accueil!$A$26","v":"P1"},{"$f":"Accueil!$B$26","v":"du"},{"$f":"Accueil!$C$26","v":"2014-09-02"},{"$f":"Accueil!$D$26","v":"au"},{"$f":"Accueil!$E$26","v":"2014-10-18"}]
["Selectionnez la classe participant à l'atelier :"]
["NOM","Prénom","2014-09-02","2014-05-26","2014-05-27","2014-05-28","2014-05-29","2014-05-30","2014-05-31","2014-06-01","TOT"]
[null,null,null,null,null,null,null,null,null,null,{"$f":"SUM(C40:J40)","v":0}]
[null,null,null,null,null,null,null,null,null,null,{"$f":"SUM(C41:J41)","v":0}]
[null,null,null,null,null,null,null,null,null,null,0]
[null,null,null,null,null,null,null,null,null,null,0]
[null,null,null,null,null,null,null,null,null,null,0]
[null,null,null,null,null,null,null,null,null,null,0]
[null,null,null,null,null,null,null,null,null,null,0]
[null,null,null,null,null,null,null,null,null,null,0]
[null,null,null,null,null,null,null,null,null,null,0]
[null,null,null,null,null,null,null,null,null,null,0]
[null,null,null,null,null,null,null,null,null,null,0]
[null,null,null,null,null,null,null,null,null,null,0]
[null,null,null,null,null,null,null,null,null,null,0]
[null,null,null,null,null,null,null,null,null,null,0]
[null,null,null,null,null,null,null,null,null,null,0]
[null,null,null,null,null,null,null,null,null,null,0]
[null,null,null,null,null,null,null,null,null,null,0]
[null,null,null,null,null,null,null,null,null,null,0]
[null,null,null,null,null,null,null,null,null,null,0]
[null,null,null,null,null,null,null,null,null,null,0]
[null,null,null,null,null,null,null,null,null,null,0]
[null,null,null,null,null,null,null,null,null,null,0]
[null,null,null,null,null,null,null,null,null,null,0]
[null,null,null,null,null,null,null,null,null,null,0]
[null,null,null,null,null,null,null,null,null,null,0]
["TOT Jour",null,{"$f":"SUM(C40:C64)","v":0},{"$f":"SUM(D40:D64)","v":0},0,0,0,0,0,0]
["TOT Période",null,{"$f":"SUM(C65:J65)","v":0}]
[{"$f":"Accueil!$B18","v":"Excel"}]
[]
[]
["Période :",{"$f":"Accueil!$A27","v":"P2"},{"$f":"Accueil!$B27","v":"du"},{"$f":"Accueil!$C27","v":"2014-11-02"},{"$f":"Accueil!$D27","v":"au"},{"$f":"Accueil!$E27","v":"2014-12-18"}]
["Selectionnez la classe participant à l'atelier :"]
["NOM","Prénom","2014-05-25","2014-05-26","2014-05-27","2014-05-28","2014-05-29","2014-05-30","2014-05-31","2014-06-01","TOT"]
[null,null,null,null,null,null,null,null,null,null,{"$f":"SUM(C73:J73)","v":0}]
[null,null,null,null,null,null,null,null,null,null,{"$f":"SUM(C74:J74)","v":0}]
[null,null,null,null,null,null,null,null,null,null,0]
[null,null,null,null,null,null,null,null,null,null,0]
[null,null,null,null,null,null,null,null,null,null,0]
[null,null,null,null,null,null,null,null,null,null,0]
[null,null,null,null,null,null,null,null,null,null,0]
[null,null,null,null,null,null,null,null,null,null,0]
[null,null,null,null,null,null,null,null,null,null,0]
[null,null,null,null,null,null,null,null,null,null,0]
[null,null,null,null,null,null,null,null,null,null,0]
[null,null,null,null,null,null,null,null,null,null,0]
[null,null,null,null,null,null,null,null,null,null,0]
[null,null,null,null,null,null,null,null,null,null,0]
[null,null,null,null,null,null,null,null,null,null,0]
[null,null,null,null,null,null,null,null,null,null,0]
[null,null,null,null,null,null,null,null,null,null,0]
[null,null,null,null,null,null,null,null,null,null,0]
[null,null,null,null,null,null,null,null,null,null,0]
[null,null,null,null,null,null,null,null,null,null,0]
[null,null,null,null,null,null,null,null,null,null,0]
[null,null,null,null,null,null,null,null,null,null,0]
[null,null,null,null,null,null,null,null,null,null,0]
[null,null,null,null,null,null,null,null,null,null,0]
[null,null,null,null,null,null,null,null,null,null,0]
["TOT Jour",null,{"$f":"SUM(C73:C97)","v":0},{"$f":"SUM(D73:D97)","v":0},0,0,0,0,0,0]
["TOT Période",null,{"$f":"SUM(C98:J98)","v":0}]
[{"$f":"Accueil!$B18","v":"Excel"}]
[]
[]
["Période :",{"$f":"Accueil!A28","v":"P3"},{"$f":"Accueil!$B28","v":"du"},{"$f":"Accueil!$C28","v":"2015-01-04"},{"$f":"Accueil!$D28","v":"au"},{"$f":"Accueil!$E28","v":"2015-02-20"}]
["Selectionnez la classe participant à l'atelier :"]
["NOM","Prénom","2014-05-25","2014-05-26","2014-05-27","2014-05-28","2014-05-29","2014-05-30","2014-05-31","2014-06-01","TOT"]
[null,null,null,null,null,null,null,null,null,null,{"$f":"SUM(C106:J106)","v":0}]
[null,null,null,null,null,null,null,null,null,null,{"$f":"SUM(C107:J107)","v":0}]
[null,null,null,null,null,null,null,null,null,null,0]
[null,null,null,null,null,null,null,null,null,null,0]
[null,null,null,null,null,null,null,null,null,null,0]
[null,null,null,null,null,null,null,null,null,null,0]
[null,null,null,null,null,null,null,null,null,null,0]
[null,null,null,null,null,null,null,null,null,null,0]
[null,null,null,null,null,null,null,null,null,null,0]
[null,null,null,null,null,null,null,null,null,null,0]
[null,null,null,null,null,null,null,null,null,null,0]
[null,null,null,null,null,null,null,null,null,null,0]
[null,null,null,null,null,null,null,null,null,null,0]
[null,null,null,null,null,null,null,null,null,null,0]
[null,null,null,null,null,null,null,null,null,null,0]
[null,null,null,null,null,null,null,null,null,null,0]
[null,null,null,null,null,null,null,null,null,null,0]
[null,null,null,null,null,null,null,null,null,null,0]
[null,null,null,null,null,null,null,null,null,null,0]
[null,null,null,null,null,null,null,null,null,null,0]
[null,null,null,null,null,null,null,null,null,null,0]
[null,null,null,null,null,null,null,null,null,null,0]
[null,null,null,null,null,null,null,null,null,null,0]
[null,null,null,null,null,null,null,null,null,null,0]
[null,null,null,null,null,null,null,null,null,null,0]
["TOT Jour",null,{"$f":"SUM(C106:C130)","v":0},{"$f":"SUM(D106:D130)","v":0},0,0,0,0,0,0]
["TOT Période",null,{"$f":"SUM(C131:J131)","v":0}]
[{"$f":"Accueil!$B18","v":"Excel"}]
[]
[]
["Période :",{"$f":"Accueil!A29","v":"P4"},{"$f":"Accueil!$B29","v":"du"},{"$f":"Accueil!$C29","v":"2015-03-08"},{"$f":"Accueil!$D29","v":"au"},{"$f":"Accueil!$E29","v":"2015-04-15"}]
["Selectionnez la classe participant à l'atelier :"]
["NOM","Prénom","2014-05-25","2014-05-26","2014-05-27","2014-05-28","2014-05-29","2014-05-30","2014-05-31","2014-06-01","TOT"]
[null,null,null,null,null,null,null,null,null,null,{"$f":"SUM(C139:J139)","v":0}]
[null,null,null,null,null,null,null,null,null,null,{"$f":"SUM(C140:J140)","v":0}]
[null,null,null,null,null,null,null,null,null,null,0]
[null,null,null,null,null,null,null,null,null,null,0]
[null,null,null,null,null,null,null,null,null,null,0]
[null,null,null,null,null,null,null,null,null,null,0]
[null,null,null,null,null,null,null,null,null,null,0]
[null,null,null,null,null,null,null,null,null,null,0]
[null,null,null,null,null,null,null,null,null,null,0]
[null,null,null,null,null,null,null,null,null,null,0]
[null,null,null,null,null,null,null,null,null,null,0]
[null,null,null,null,null,null,null,null,null,null,0]
[null,null,null,null,null,null,null,null,null,null,0]
[null,null,null,null,null,null,null,null,null,null,0]
[null,null,null,null,null,null,null,null,null,null,0]
[null,null,null,null,null,null,null,null,null,null,0]
[null,null,null,null,null,null,null,null,null,null,0]
[null,null,null,null,null,null,null,null,null,null,0]
[null,null,null,null,null,null,null,null,null,null,0]
[null,null,null,null,null,null,null,null,null,null,0]
[null,null,null,null,null,null,null,null,null,null,0]
[null,null,null,null,null,null,null,null,null,null,0]
[null,null,null,null,null,null,null,null,null,null,0]
[null,null,null,null,null,null,null,null,null,null,0]
[null,null,null,null,null,null,null,null,null,null,0]
["TOT Jour",null,{"$f":"SUM(C139:C163)","v":0},{"$f":"SUM(D139:D163)","v":0},0,0,0,0,0,0]
["TOT Période",null,{"$f":"SUM(C164:J164)","v":0}]
[{"$f":"Accueil!$B18","v":"Excel"}]
[]
[]
["Période :",{"$f":"Accueil!A30","v":"P5"},{"$f":"Accueil!$B30","v":"du"},{"$f":"Accueil!$C30","v":"2015-05-02"},{"$f":"Accueil!$D30","v":"au"},{"$f":"Accueil!$E30","v":"2015-07-03"}]
["Selectionnez la classe participant à l'atelier :"]
["NOM","Prénom","2014-05-25","2014-05-26","2014-05-27","2014-05-28","2014-05-29","2014-05-30","2014-05-31","2014-06-01","TOT"]
[null,null,null,null,null,null,null,null,null,null,{"$f":"SUM(C172:J172)","v":0}]
[null,null,null,null,null,null,null,null,null,null,{"$f":"SUM(C173:J173)","v":0}]
[null,null,null,null,null,null,null,null,null,null,0]
[null,null,null,null,null,null,null,null,null,null,0]
[null,null,null,null,null,null,null,null,null,null,0]
[null,null,null,null,null,null,null,null,null,null,0]
[null,null,null,null,null,null,null,null,null,null,0]
[null,null,null,null,null,null,null,null,null,null,0]
[null,null,null,null,null,null,null,null,null,null,0]
[null,null,null,null,null,null,null,null,null,null,0]
[null,null,null,null,null,null,null,null,null,null,0]
[null,null,null,null,null,null,null,null,null,null,0]
[null,null,null,null,null,null,null,null,null,null,0]
[null,null,null,null,null,null,null,null,null,null,0]
[null,null,null,null,null,null,null,null,null,null,0]
[null,null,null,null,null,null,null,null,null,null,0]
[null,null,null,null,null,null,null,null,null,null,0]
[null,null,null,null,null,null,null,null,null,null,0]
[null,null,null,null,null,null,null,null,null,null,0]
[null,null,null,null,null,null,null,null,null,null,0]
[null,null,null,null,null,null,null,null,null,null,0]
[null,null,null,null,null,null,null,null,null,null,0]
[null,null,null,null,null,null,null,null,null,null,0]
[null,null,null,null,null,null,null,null,null,null,0]
[null,null,null,null,null,null,null,null,null,null,0]
["TOT Jour",null,{"$f":"SUM(C172:C196)","v":0},{"$f":"SUM(D172:D196)","v":0},0,0,0,0,0,0]
["TOT Période",null,{"$f":"SUM(C197:J197)","v":0}]
["Statistiques"]
[]
[]
["Nombre d'heure de fréquentation :"]
[{"$f":"Accueil!$A26","v":"P1"},{"$f":"$C$66*1.5","v":0},"heures de présence pour cet atelier et pour cette période"]
[{"$f":"Accueil!$A27","v":"P2"},{"$f":"$C$99*1.5","v":0},"heures de présence pour cet atelier et pour cette période"]
[{"$f":"Accueil!$A28","v":"P3"},{"$f":"$C$132*1.5","v":0},"heures de présence pour cet atelier et pour cette période"]
[{"$f":"Accueil!$A29","v":"P4"},{"$f":"$C$165*1.5","v":0},"heures de présence pour cet atelier et pour cette période"]
[{"$f":"Accueil!$A30","v":"P5"},{"$f":"$C$198*1.5","v":0},"heures de présence pour cet atelier et pour cette période"]
["TOT",{"$f":"SUM($B$203:$B$207)","v":0},"heures de présence pour cet atelier et pour l'année"]

{"sheet":"Ordinateur","index":13,"n_rows":208,"n_cols":11,"rows_kept":208,"cut":false,"hidden":false,"merged":[[33,0,34,10],[37,0,37,3],[37,4,37,5],[64,0,64,1],[65,0,65,1],[65,2,65,9],[66,0,67,10],[70,0,70,3],[70,4,70,5],[97,0,97,1],[98,0,98,1],[98,2,98,9],[99,0,100,10],[103,0,103,3],[103,4,103,5],[130,0,130,1],[131,0,131,1],[131,2,131,9],[132,0,133,10],[136,0,136,3],[136,4,136,5],[163,0,163,1],[164,0,164,1],[164,2,164,9],[165,0,166,10],[169,0,169,3],[169,4,169,5],[196,0,196,1],[197,0,197,1],[197,2,197,9],[207,2,207,6],[198,0,199,10],[202,2,202,6],[203,2,203,6],[204,2,204,6],[205,2,205,6],[206,2,206,6]]}
[]
[]
[]
[]
[]
[]
[]
[]
[]
[]
[]
[]
[]
[]
[]
[]
[]
[]
[]
[]
[]
[]
[]
[]
[]
[]
[]
[]
[]
[]
[]
[]
[]
[{"$f":"Accueil!$B19","v":"Ordinateur"}]
[]
[]
["Période :",{"$f":"Accueil!$A$26","v":"P1"},{"$f":"Accueil!$B$26","v":"du"},{"$f":"Accueil!$C$26","v":"2014-09-02"},{"$f":"Accueil!$D$26","v":"au"},{"$f":"Accueil!$E$26","v":"2014-10-18"}]
["Selectionnez la classe participant à l'atelier :"]
["NOM","Prénom","2014-09-02","2014-05-26","2014-05-27","2014-05-28","2014-05-29","2014-05-30","2014-05-31","2014-06-01","TOT"]
["MARTIN","Yanis",null,null,null,null,null,null,null,null,{"$f":"SUM(C40:J40)","v":0}]
[null,null,null,null,null,null,null,null,null,null,{"$f":"SUM(C41:J41)","v":0}]
[null,null,null,null,null,null,null,null,null,null,0]
[null,null,null,null,null,null,null,null,null,null,0]
[null,null,null,null,null,null,null,null,null,null,0]
[null,null,null,null,null,null,null,null,null,null,0]
[null,null,null,null,null,null,null,null,null,null,0]
[null,null,null,null,null,null,null,null,null,null,0]
[null,null,null,null,null,null,null,null,null,null,0]
[null,null,null,null,null,null,null,null,null,null,0]
[null,null,null,null,null,null,null,null,null,null,0]
[null,null,null,null,null,null,null,null,null,null,0]
[null,null,null,null,null,null,null,null,null,null,0]
[null,null,null,null,null,null,null,null,null,null,0]
[null,null,null,null,null,null,null,null,null,null,0]
[null,null,null,null,null,null,null,null,null,null,0]
[null,null,null,null,null,null,null,null,null,null,0]
[null,null,null,null,null,null,null,null,null,null,0]
[null,null,null,null,null,null,null,null,null,null,0]
[null,null,null,null,null,null,null,null,null,null,0]
[null,null,null,null,null,null,null,null,null,null,0]
[null,null,null,null,null,null,null,null,null,null,0]
[null,null,null,null,null,null,null,null,null,null,0]
[null,null,null,null,null,null,null,null,null,null,0]
[null,null,null,null,null,null,null,null,null,null,0]
["TOT Jour",null,{"$f":"SUM(C40:C64)","v":0},{"$f":"SUM(D40:D64)","v":0},0,0,0,0,0,0]
["TOT Période",null,{"$f":"SUM(C65:J65)","v":0}]
[{"$f":"Accueil!$B19","v":"Ordinateur"}]
[]
[]
["Période :",{"$f":"Accueil!$A27","v":"P2"},{"$f":"Accueil!$B27","v":"du"},{"$f":"Accueil!$C27","v":"2014-11-02"},{"$f":"Accueil!$D27","v":"au"},{"$f":"Accueil!$E27","v":"2014-12-18"}]
["Selectionnez la classe participant à l'atelier :"]
["NOM","Prénom","2014-05-25","2014-05-26","2014-05-27","2014-05-28","2014-05-29","2014-05-30","2014-05-31","2014-06-01","TOT"]
[null,null,null,null,null,null,null,null,null,null,{"$f":"SUM(C73:J73)","v":0}]
[null,null,null,null,null,null,null,null,null,null,{"$f":"SUM(C74:J74)","v":0}]
[null,null,null,null,null,null,null,null,null,null,0]
[null,null,null,null,null,null,null,null,null,null,0]
[null,null,null,null,null,null,null,null,null,null,0]
[null,null,null,null,null,null,null,null,null,null,0]
[null,null,null,null,null,null,null,null,null,null,0]
[null,null,null,null,null,null,null,null,null,null,0]
[null,null,null,null,null,null,null,null,null,null,0]
[null,null,null,null,null,null,null,null,null,null,0]
[null,null,null,null,null,null,null,null,null,null,0]
[null,null,null,null,null,null,null,null,null,null,0]
[null,null,null,null,null,null,null,null,null,null,0]
[null,null,null,null,null,null,null,null,null,null,0]
[null,null,null,null,null,null,null,null,null,null,0]
[null,null,null,null,null,null,null,null,null,null,0]
[null,null,null,null,null,null,null,null,null,null,0]
[null,null,null,null,null,null,null,null,null,null,0]
[null,null,null,null,null,null,null,null,null,null,0]
[null,null,null,null,null,null,null,null,null,null,0]
[null,null,null,null,null,null,null,null,null,null,0]
[null,null,null,null,null,null,null,null,null,null,0]
[null,null,null,null,null,null,null,null,null,null,0]
[null,null,null,null,null,null,null,null,null,null,0]
[null,null,null,null,null,null,null,null,null,null,0]
["TOT Jour",null,{"$f":"SUM(C73:C97)","v":0},{"$f":"SUM(D73:D97)","v":0},0,0,0,0,0,0]
["TOT Période",null,{"$f":"SUM(C98:J98)","v":0}]
[{"$f":"Accueil!$B19","v":"Ordinateur"}]
[]
[]
["Période :",{"$f":"Accueil!A28","v":"P3"},{"$f":"Accueil!$B28","v":"du"},{"$f":"Accueil!$C28","v":"2015-01-04"},{"$f":"Accueil!$D28","v":"au"},{"$f":"Accueil!$E28","v":"2015-02-20"}]
["Selectionnez la classe participant à l'atelier :"]
["NOM","Prénom","2014-05-25","2014-05-26","2014-05-27","2014-05-28","2014-05-29","2014-05-30","2014-05-31","2014-06-01","TOT"]
[null,null,null,null,null,null,null,null,null,null,{"$f":"SUM(C106:J106)","v":0}]
[null,null,null,null,null,null,null,null,null,null,{"$f":"SUM(C107:J107)","v":0}]
[null,null,null,null,null,null,null,null,null,null,0]
[null,null,null,null,null,null,null,null,null,null,0]
[null,null,null,null,null,null,null,null,null,null,0]
[null,null,null,null,null,null,null,null,null,null,0]
[null,null,null,null,null,null,null,null,null,null,0]
[null,null,null,null,null,null,null,null,null,null,0]
[null,null,null,null,null,null,null,null,null,null,0]
[null,null,null,null,null,null,null,null,null,null,0]
[null,null,null,null,null,null,null,null,null,null,0]
[null,null,null,null,null,null,null,null,null,null,0]
[null,null,null,null,null,null,null,null,null,null,0]
[null,null,null,null,null,null,null,null,null,null,0]
[null,null,null,null,null,null,null,null,null,null,0]
[null,null,null,null,null,null,null,null,null,null,0]
[null,null,null,null,null,null,null,null,null,null,0]
[null,null,null,null,null,null,null,null,null,null,0]
[null,null,null,null,null,null,null,null,null,null,0]
[null,null,null,null,null,null,null,null,null,null,0]
[null,null,null,null,null,null,null,null,null,null,0]
[null,null,null,null,null,null,null,null,null,null,0]
[null,null,null,null,null,null,null,null,null,null,0]
[null,null,null,null,null,null,null,null,null,null,0]
[null,null,null,null,null,null,null,null,null,null,0]
["TOT Jour",null,{"$f":"SUM(C106:C130)","v":0},{"$f":"SUM(D106:D130)","v":0},0,0,0,0,0,0]
["TOT Période",null,{"$f":"SUM(C131:J131)","v":0}]
[{"$f":"Accueil!$B19","v":"Ordinateur"}]
[]
[]
["Période :",{"$f":"Accueil!A29","v":"P4"},{"$f":"Accueil!$B29","v":"du"},{"$f":"Accueil!$C29","v":"2015-03-08"},{"$f":"Accueil!$D29","v":"au"},{"$f":"Accueil!$E29","v":"2015-04-15"}]
["Selectionnez la classe participant à l'atelier :"]
["NOM","Prénom","2014-05-25","2014-05-26","2014-05-27","2014-05-28","2014-05-29","2014-05-30","2014-05-31","2014-06-01","TOT"]
[null,null,null,null,null,null,null,null,null,null,{"$f":"SUM(C139:J139)","v":0}]
[null,null,null,null,null,null,null,null,null,null,{"$f":"SUM(C140:J140)","v":0}]
[null,null,null,null,null,null,null,null,null,null,0]
[null,null,null,null,null,null,null,null,null,null,0]
[null,null,null,null,null,null,null,null,null,null,0]
[null,null,null,null,null,null,null,null,null,null,0]
[null,null,null,null,null,null,null,null,null,null,0]
[null,null,null,null,null,null,null,null,null,null,0]
[null,null,null,null,null,null,null,null,null,null,0]
[null,null,null,null,null,null,null,null,null,null,0]
[null,null,null,null,null,null,null,null,null,null,0]
[null,null,null,null,null,null,null,null,null,null,0]
[null,null,null,null,null,null,null,null,null,null,0]
[null,null,null,null,null,null,null,null,null,null,0]
[null,null,null,null,null,null,null,null,null,null,0]
[null,null,null,null,null,null,null,null,null,null,0]
[null,null,null,null,null,null,null,null,null,null,0]
[null,null,null,null,null,null,null,null,null,null,0]
[null,null,null,null,null,null,null,null,null,null,0]
[null,null,null,null,null,null,null,null,null,null,0]
[null,null,null,null,null,null,null,null,null,null,0]
[null,null,null,null,null,null,null,null,null,null,0]
[null,null,null,null,null,null,null,null,null,null,0]
[null,null,null,null,null,null,null,null,null,null,0]
[null,null,null,null,null,null,null,null,null,null,0]
["TOT Jour",null,{"$f":"SUM(C139:C163)","v":0},{"$f":"SUM(D139:D163)","v":0},0,0,0,0,0,0]
["TOT Période",null,{"$f":"SUM(C164:J164)","v":0}]
[{"$f":"Accueil!$B19","v":"Ordinateur"}]
[]
[]
["Période :",{"$f":"Accueil!A30","v":"P5"},{"$f":"Accueil!$B30","v":"du"},{"$f":"Accueil!$C30","v":"2015-05-02"},{"$f":"Accueil!$D30","v":"au"},{"$f":"Accueil!$E30","v":"2015-07-03"}]
["Selectionnez la classe participant à l'atelier :"]
["NOM","Prénom","2014-05-25","2014-05-26","2014-05-27","2014-05-28","2014-05-29","2014-05-30","2014-05-31","2014-06-01","TOT"]
[null,null,null,null,null,null,null,null,null,null,{"$f":"SUM(C172:J172)","v":0}]
[null,null,null,null,null,null,null,null,null,null,{"$f":"SUM(C173:J173)","v":0}]
[null,null,null,null,null,null,null,null,null,null,0]
[null,null,null,null,null,null,null,null,null,null,0]
[null,null,null,null,null,null,null,null,null,null,0]
[null,null,null,null,null,null,null,null,null,null,0]
[null,null,null,null,null,null,null,null,null,null,0]
[null,null,null,null,null,null,null,null,null,null,0]
[null,null,null,null,null,null,null,null,null,null,0]
[null,null,null,null,null,null,null,null,null,null,0]
[null,null,null,null,null,null,null,null,null,null,0]
[null,null,null,null,null,null,null,null,null,null,0]
[null,null,null,null,null,null,null,null,null,null,0]
[null,null,null,null,null,null,null,null,null,null,0]
[null,null,null,null,null,null,null,null,null,null,0]
[null,null,null,null,null,null,null,null,null,null,0]
[null,null,null,null,null,null,null,null,null,null,0]
[null,null,null,null,null,null,null,null,null,null,0]
[null,null,null,null,null,null,null,null,null,null,0]
[null,null,null,null,null,null,null,null,null,null,0]
[null,null,null,null,null,null,null,null,null,null,0]
[null,null,null,null,null,null,null,null,null,null,0]
[null,null,null,null,null,null,null,null,null,null,0]
[null,null,null,null,null,null,null,null,null,null,0]
[null,null,null,null,null,null,null,null,null,null,0]
["TOT Jour",null,{"$f":"SUM(C172:C196)","v":0},{"$f":"SUM(D172:D196)","v":0},0,0,0,0,0,0]
["TOT Période",null,{"$f":"SUM(C197:J197)","v":0}]
["Statistiques"]
[]
[]
["Nombre d'heure de fréquentation :"]
[{"$f":"Accueil!$A26","v":"P1"},{"$f":"$C$66*1.5","v":0},"heures de présence pour cet atelier et pour cette période"]
[{"$f":"Accueil!$A27","v":"P2"},{"$f":"$C$99*1.5","v":0},"heures de présence pour cet atelier et pour cette période"]
[{"$f":"Accueil!$A28","v":"P3"},{"$f":"$C$132*1.5","v":0},"heures de présence pour cet atelier et pour cette période"]
[{"$f":"Accueil!$A29","v":"P4"},{"$f":"$C$165*1.5","v":0},"heures de présence pour cet atelier et pour cette période"]
[{"$f":"Accueil!$A30","v":"P5"},{"$f":"$C$198*1.5","v":0},"heures de présence pour cet atelier et pour cette période"]
["TOT",{"$f":"SUM($B$203:$B$207)","v":0},"heures de présence pour cet atelier et pour l'année"]

{"sheet":"Piège","index":14,"n_rows":208,"n_cols":11,"rows_kept":208,"cut":false,"hidden":false,"merged":[[33,0,34,10],[37,0,37,3],[37,4,37,5],[64,0,64,1],[65,0,65,1],[65,2,65,9],[66,0,67,10],[70,0,70,3],[70,4,70,5],[97,0,97,1],[98,0,98,1],[98,2,98,9],[99,0,100,10],[103,0,103,3],[103,4,103,5],[130,0,130,1],[131,0,131,1],[131,2,131,9],[132,0,133,10],[136,0,136,3],[136,4,136,5],[163,0,163,1],[164,0,164,1],[164,2,164,9],[165,0,166,10],[169,0,169,3],[169,4,169,5],[196,0,196,1],[197,0,197,1],[197,2,197,9],[207,2,207,6],[198,0,199,10],[202,2,202,6],[203,2,203,6],[204,2,204,6],[205,2,205,6],[206,2,206,6]]}
[]
[]
[]
[]
[]
[]
[]
[]
[]
[]
[]
[]
[]
[]
[]
[]
[]
[]
[]
[]
[]
[]
[]
[]
[]
[]
[]
[]
[]
[]
[]
[]
[]
[{"$f":"Accueil!$B20","v":"Piège"}]
[]
[]
["Période :",{"$f":"Accueil!$A$26","v":"P1"},{"$f":"Accueil!$B$26","v":"du"},{"$f":"Accueil!$C$26","v":"2014-09-02"},{"$f":"Accueil!$D$26","v":"au"},{"$f":"Accueil!$E$26","v":"2014-10-18"}]
["Selectionnez la classe participant à l'atelier :"]
["NOM","Prénom","2014-09-02","2014-05-26","2014-05-27","2014-05-28","2014-05-29","2014-05-30","2014-05-31","2014-06-01","TOT"]
[null,null,null,null,null,null,null,null,null,null,{"$f":"SUM(C40:J40)","v":0}]
[null,null,null,null,null,null,null,null,null,null,{"$f":"SUM(C41:J41)","v":0}]
[null,null,null,null,null,null,null,null,null,null,0]
[null,null,null,null,null,null,null,null,null,null,0]
[null,null,null,null,null,null,null,null,null,null,0]
[null,null,null,null,null,null,null,null,null,null,0]
[null,null,null,null,null,null,null,null,null,null,0]
[null,null,null,null,null,null,null,null,null,null,0]
[null,null,null,null,null,null,null,null,null,null,0]
[null,null,null,null,null,null,null,null,null,null,0]
[null,null,null,null,null,null,null,null,null,null,0]
[null,null,null,null,null,null,null,null,null,null,0]
[null,null,null,null,null,null,null,null,null,null,0]
[null,null,null,null,null,null,null,null,null,null,0]
[null,null,null,null,null,null,null,null,null,null,0]
[null,null,null,null,null,null,null,null,null,null,0]
[null,null,null,null,null,null,null,null,null,null,0]
[null,null,null,null,null,null,null,null,null,null,0]
[null,null,null,null,null,null,null,null,null,null,0]
[null,null,null,null,null,null,null,null,null,null,0]
[null,null,null,null,null,null,null,null,null,null,0]
[null,null,null,null,null,null,null,null,null,null,0]
[null,null,null,null,null,null,null,null,null,null,0]
[null,null,null,null,null,null,null,null,null,null,0]
[null,null,null,null,null,null,null,null,null,null,0]
["TOT Jour",null,{"$f":"SUM(C40:C64)","v":0},{"$f":"SUM(D40:D64)","v":0},0,0,0,0,0,0]
["TOT Période",null,{"$f":"SUM(C65:J65)","v":0}]
[{"$f":"Accueil!$B20","v":"Piège"}]
[]
[]
["Période :",{"$f":"Accueil!$A27","v":"P2"},{"$f":"Accueil!$B27","v":"du"},{"$f":"Accueil!$C27","v":"2014-11-02"},{"$f":"Accueil!$D27","v":"au"},{"$f":"Accueil!$E27","v":"2014-12-18"}]
["Selectionnez la classe participant à l'atelier :"]
["NOM","Prénom","2014-05-25","2014-05-26","2014-05-27","2014-05-28","2014-05-29","2014-05-30","2014-05-31","2014-06-01","TOT"]
[null,null,null,null,null,null,null,null,null,null,{"$f":"SUM(C73:J73)","v":0}]
[null,null,null,null,null,null,null,null,null,null,{"$f":"SUM(C74:J74)","v":0}]
[null,null,null,null,null,null,null,null,null,null,0]
[null,null,null,null,null,null,null,null,null,null,0]
[null,null,null,null,null,null,null,null,null,null,0]
[null,null,null,null,null,null,null,null,null,null,0]
[null,null,null,null,null,null,null,null,null,null,0]
[null,null,null,null,null,null,null,null,null,null,0]
[null,null,null,null,null,null,null,null,null,null,0]
[null,null,null,null,null,null,null,null,null,null,0]
[null,null,null,null,null,null,null,null,null,null,0]
[null,null,null,null,null,null,null,null,null,null,0]
[null,null,null,null,null,null,null,null,null,null,0]
[null,null,null,null,null,null,null,null,null,null,0]
[null,null,null,null,null,null,null,null,null,null,0]
[null,null,null,null,null,null,null,null,null,null,0]
[null,null,null,null,null,null,null,null,null,null,0]
[null,null,null,null,null,null,null,null,null,null,0]
[null,null,null,null,null,null,null,null,null,null,0]
[null,null,null,null,null,null,null,null,null,null,0]
[null,null,null,null,null,null,null,null,null,null,0]
[null,null,null,null,null,null,null,null,null,null,0]
[null,null,null,null,null,null,null,null,null,null,0]
[null,null,null,null,null,null,null,null,null,null,0]
[null,null,null,null,null,null,null,null,null,null,0]
["TOT Jour",null,{"$f":"SUM(C73:C97)","v":0},{"$f":"SUM(D73:D97)","v":0},0,0,0,0,0,0]
["TOT Période",null,{"$f":"SUM(C98:J98)","v":0}]
[{"$f":"Accueil!$B20","v":"Piège"}]
[]
[]
["Période :",{"$f":"Accueil!A28","v":"P3"},{"$f":"Accueil!$B28","v":"du"},{"$f":"Accueil!$C28","v":"2015-01-04"},{"$f":"Accueil!$D28","v":"au"},{"$f":"Accueil!$E28","v":"2015-02-20"}]
["Selectionnez la classe participant à l'atelier :"]
["NOM","Prénom","2014-05-25","2014-05-26","2014-05-27","2014-05-28","2014-05-29","2014-05-30","2014-05-31","2014-06-01","TOT"]
[null,null,null,null,null,null,null,null,null,null,{"$f":"SUM(C106:J106)","v":0}]
[null,null,null,null,null,null,null,null,null,null,{"$f":"SUM(C107:J107)","v":0}]
[null,null,null,null,null,null,null,null,null,null,0]
[null,null,null,null,null,null,null,null,null,null,0]
[null,null,null,null,null,null,null,null,null,null,0]
[null,null,null,null,null,null,null,null,null,null,0]
[null,null,null,null,null,null,null,null,null,null,0]
[null,null,null,null,null,null,null,null,null,null,0]
[null,null,null,null,null,null,null,null,null,null,0]
[null,null,null,null,null,null,null,null,null,null,0]
[null,null,null,null,null,null,null,null,null,null,0]
[null,null,null,null,null,null,null,null,null,null,0]
[null,null,null,null,null,null,null,null,null,null,0]
[null,null,null,null,null,null,null,null,null,null,0]
[null,null,null,null,null,null,null,null,null,null,0]
[null,null,null,null,null,null,null,null,null,null,0]
[null,null,null,null,null,null,null,null,null,null,0]
[null,null,null,null,null,null,null,null,null,null,0]
[null,null,null,null,null,null,null,null,null,null,0]
[null,null,null,null,null,null,null,null,null,null,0]
[null,null,null,null,null,null,null,null,null,null,0]
[null,null,null,null,null,null,null,null,null,null,0]
[null,null,null,null,null,null,null,null,null,null,0]
[null,null,null,null,null,null,null,null,null,null,0]
[null,null,null,null,null,null,null,null,null,null,0]
["TOT Jour",null,{"$f":"SUM(C106:C130)","v":0},{"$f":"SUM(D106:D130)","v":0},0,0,0,0,0,0]
["TOT Période",null,{"$f":"SUM(C131:J131)","v":0}]
[{"$f":"Accueil!$B20","v":"Piège"}]
[]
[]
["Période :",{"$f":"Accueil!A29","v":"P4"},{"$f":"Accueil!$B29","v":"du"},{"$f":"Accueil!$C29","v":"2015-03-08"},{"$f":"Accueil!$D29","v":"au"},{"$f":"Accueil!$E29","v":"2015-04-15"}]
["Selectionnez la classe participant à l'atelier :"]
["NOM","Prénom","2014-05-25","2014-05-26","2014-05-27","2014-05-28","2014-05-29","2014-05-30","2014-05-31","2014-06-01","TOT"]
[null,null,null,null,null,null,null,null,null,null,{"$f":"SUM(C139:J139)","v":0}]
[null,null,null,null,null,null,null,null,null,null,{"$f":"SUM(C140:J140)","v":0}]
[null,null,null,null,null,null,null,null,null,null,0]
[null,null,null,null,null,null,null,null,null,null,0]
[null,null,null,null,null,null,null,null,null,null,0]
[null,null,null,null,null,null,null,null,null,null,0]
[null,null,null,null,null,null,null,null,null,null,0]
[null,null,null,null,null,null,null,null,null,null,0]
[null,null,null,null,null,null,null,null,null,null,0]
[null,null,null,null,null,null,null,null,null,null,0]
[null,null,null,null,null,null,null,null,null,null,0]
[null,null,null,null,null,null,null,null,null,null,0]
[null,null,null,null,null,null,null,null,null,null,0]
[null,null,null,null,null,null,null,null,null,null,0]
[null,null,null,null,null,null,null,null,null,null,0]
[null,null,null,null,null,null,null,null,null,null,0]
[null,null,null,null,null,null,null,null,null,null,0]
[null,null,null,null,null,null,null,null,null,null,0]
[null,null,null,null,null,null,null,null,null,null,0]
[null,null,null,null,null,null,null,null,null,null,0]
[null,null,null,null,null,null,null,null,null,null,0]
[null,null,null,null,null,null,null,null,null,null,0]
[null,null,null,null,null,null,null,null,null,null,0]
[null,null,null,null,null,null,null,null,null,null,0]
[null,null,null,null,null,null,null,null,null,null,0]
["TOT Jour",null,{"$f":"SUM(C139:C163)","v":0},{"$f":"SUM(D139:D163)","v":0},0,0,0,0,0,0]
["TOT Période",null,{"$f":"SUM(C164:J164)","v":0}]
[{"$f":"Accueil!$B20","v":"Piège"}]
[]
[]
["Période :",{"$f":"Accueil!A30","v":"P5"},{"$f":"Accueil!$B30","v":"du"},{"$f":"Accueil!$C30","v":"2015-05-02"},{"$f":"Accueil!$D30","v":"au"},{"$f":"Accueil!$E30","v":"2015-07-03"}]
["Selectionnez la classe participant à l'atelier :"]
["NOM","Prénom","2014-05-25","2014-05-26","2014-05-27","2014-05-28","2014-05-29","2014-05-30","2014-05-31","2014-06-01","TOT"]
[null,null,null,null,null,null,null,null,null,null,{"$f":"SUM(C172:J172)","v":0}]
[null,null,null,null,null,null,null,null,null,null,{"$f":"SUM(C173:J173)","v":0}]
[null,null,null,null,null,null,null,null,null,null,0]
[null,null,null,null,null,null,null,null,null,null,0]
[null,null,null,null,null,null,null,null,null,null,0]
[null,null,null,null,null,null,null,null,null,null,0]
[null,null,null,null,null,null,null,null,null,null,0]
[null,null,null,null,null,null,null,null,null,null,0]
[null,null,null,null,null,null,null,null,null,null,0]
[null,null,null,null,null,null,null,null,null,null,0]
[null,null,null,null,null,null,null,null,null,null,0]
[null,null,null,null,null,null,null,null,null,null,0]
[null,null,null,null,null,null,null,null,null,null,0]
[null,null,null,null,null,null,null,null,null,null,0]
[null,null,null,null,null,null,null,null,null,null,0]
[null,null,null,null,null,null,null,null,null,null,0]
[null,null,null,null,null,null,null,null,null,null,0]
[null,null,null,null,null,null,null,null,null,null,0]
[null,null,null,null,null,null,null,null,null,null,0]
[null,null,null,null,null,null,null,null,null,null,0]
[null,null,null,null,null,null,null,null,null,null,0]
[null,null,null,null,null,null,null,null,null,null,0]
[null,null,null,null,null,null,null,null,null,null,0]
[null,null,null,null,null,null,null,null,null,null,0]
[null,null,null,null,null,null,null,null,null,null,0]
["TOT Jour",null,{"$f":"SUM(C172:C196)","v":0},{"$f":"SUM(D172:D196)","v":0},0,0,0,0,0,0]
["TOT Période",null,{"$f":"SUM(C197:J197)","v":0}]
["Statistiques"]
[]
[]
["Nombre d'heure de fréquentation :"]
[{"$f":"Accueil!$A26","v":"P1"},{"$f":"$C$66*1.5","v":0},"heures de présence pour cet atelier et pour cette période"]
[{"$f":"Accueil!$A27","v":"P2"},{"$f":"$C$99*1.5","v":0},"heures de présence pour cet atelier et pour cette période"]
[{"$f":"Accueil!$A28","v":"P3"},{"$f":"$C$132*1.5","v":0},"heures de présence pour cet atelier et pour cette période"]
[{"$f":"Accueil!$A29","v":"P4"},{"$f":"$C$165*1.5","v":0},"heures de présence pour cet atelier et pour cette période"]
[{"$f":"Accueil!$A30","v":"P5"},{"$f":"$C$198*1.5","v":0},"heures de présence pour cet atelier et pour cette période"]
["TOT",{"$f":"SUM($B$203:$B$207)","v":0},"heures de présence pour cet atelier et pour l'année"]

{"sheet":"Dionée","index":15,"n_rows":208,"n_cols":11,"rows_kept":208,"cut":false,"hidden":false,"merged":[[33,0,34,10],[37,0,37,3],[37,4,37,5],[64,0,64,1],[65,0,65,1],[65,2,65,9],[66,0,67,10],[70,0,70,3],[70,4,70,5],[97,0,97,1],[98,0,98,1],[98,2,98,9],[99,0,100,10],[103,0,103,3],[103,4,103,5],[130,0,130,1],[131,0,131,1],[131,2,131,9],[132,0,133,10],[136,0,136,3],[136,4,136,5],[163,0,163,1],[164,0,164,1],[164,2,164,9],[165,0,166,10],[169,0,169,3],[169,4,169,5],[196,0,196,1],[197,0,197,1],[197,2,197,9],[207,2,207,6],[198,0,199,10],[202,2,202,6],[203,2,203,6],[204,2,204,6],[205,2,205,6],[206,2,206,6]]}
[]
[]
[]
[]
[]
[]
[]
[]
[]
[]
[]
[]
[]
[]
[]
[]
[]
[]
[]
[]
[]
[]
[]
[]
[]
[]
[]
[]
[]
[]
[]
[]
[]
[{"$f":"Accueil!$B21","v":"Dionée"}]
[]
[]
["Période :",{"$f":"Accueil!$A$26","v":"P1"},{"$f":"Accueil!$B$26","v":"du"},{"$f":"Accueil!$C$26","v":"2014-09-02"},{"$f":"Accueil!$D$26","v":"au"},{"$f":"Accueil!$E$26","v":"2014-10-18"}]
["Selectionnez la classe participant à l'atelier :"]
["NOM","Prénom","2014-09-02","2014-05-26","2014-05-27","2014-05-28","2014-05-29","2014-05-30","2014-05-31","2014-06-01","TOT"]
[null,null,null,null,null,null,null,null,null,null,{"$f":"SUM(C40:J40)","v":0}]
[null,null,null,null,null,null,null,null,null,null,{"$f":"SUM(C41:J41)","v":0}]
[null,null,null,null,null,null,null,null,null,null,0]
[null,null,null,null,null,null,null,null,null,null,0]
[null,null,null,null,null,null,null,null,null,null,0]
[null,null,null,null,null,null,null,null,null,null,0]
[null,null,null,null,null,null,null,null,null,null,0]
[null,null,null,null,null,null,null,null,null,null,0]
[null,null,null,null,null,null,null,null,null,null,0]
[null,null,null,null,null,null,null,null,null,null,0]
[null,null,null,null,null,null,null,null,null,null,0]
[null,null,null,null,null,null,null,null,null,null,0]
[null,null,null,null,null,null,null,null,null,null,0]
[null,null,null,null,null,null,null,null,null,null,0]
[null,null,null,null,null,null,null,null,null,null,0]
[null,null,null,null,null,null,null,null,null,null,0]
[null,null,null,null,null,null,null,null,null,null,0]
[null,null,null,null,null,null,null,null,null,null,0]
[null,null,null,null,null,null,null,null,null,null,0]
[null,null,null,null,null,null,null,null,null,null,0]
[null,null,null,null,null,null,null,null,null,null,0]
[null,null,null,null,null,null,null,null,null,null,0]
[null,null,null,null,null,null,null,null,null,null,0]
[null,null,null,null,null,null,null,null,null,null,0]
[null,null,null,null,null,null,null,null,null,null,0]
["TOT Jour",null,{"$f":"SUM(C40:C64)","v":0},{"$f":"SUM(D40:D64)","v":0},0,0,0,0,0,0]
["TOT Période",null,{"$f":"SUM(C65:J65)","v":0}]
[{"$f":"Accueil!$B21","v":"Dionée"}]
[]
[]
["Période :",{"$f":"Accueil!$A27","v":"P2"},{"$f":"Accueil!$B27","v":"du"},{"$f":"Accueil!$C27","v":"2014-11-02"},{"$f":"Accueil!$D27","v":"au"},{"$f":"Accueil!$E27","v":"2014-12-18"}]
["Selectionnez la classe participant à l'atelier :"]
["NOM","Prénom","2014-05-25","2014-05-26","2014-05-27","2014-05-28","2014-05-29","2014-05-30","2014-05-31","2014-06-01","TOT"]
[null,null,null,null,null,null,null,null,null,null,{"$f":"SUM(C73:J73)","v":0}]
[null,null,null,null,null,null,null,null,null,null,{"$f":"SUM(C74:J74)","v":0}]
[null,null,null,null,null,null,null,null,null,null,0]
[null,null,null,null,null,null,null,null,null,null,0]
[null,null,null,null,null,null,null,null,null,null,0]
[null,null,null,null,null,null,null,null,null,null,0]
[null,null,null,null,null,null,null,null,null,null,0]
[null,null,null,null,null,null,null,null,null,null,0]
[null,null,null,null,null,null,null,null,null,null,0]
[null,null,null,null,null,null,null,null,null,null,0]
[null,null,null,null,null,null,null,null,null,null,0]
[null,null,null,null,null,null,null,null,null,null,0]
[null,null,null,null,null,null,null,null,null,null,0]
[null,null,null,null,null,null,null,null,null,null,0]
[null,null,null,null,null,null,null,null,null,null,0]
[null,null,null,null,null,null,null,null,null,null,0]
[null,null,null,null,null,null,null,null,null,null,0]
[null,null,null,null,null,null,null,null,null,null,0]
[null,null,null,null,null,null,null,null,null,null,0]
[null,null,null,null,null,null,null,null,null,null,0]
[null,null,null,null,null,null,null,null,null,null,0]
[null,null,null,null,null,null,null,null,null,null,0]
[null,null,null,null,null,null,null,null,null,null,0]
[null,null,null,null,null,null,null,null,null,null,0]
[null,null,null,null,null,null,null,null,null,null,0]
["TOT Jour",null,{"$f":"SUM(C73:C97)","v":0},{"$f":"SUM(D73:D97)","v":0},0,0,0,0,0,0]
["TOT Période",null,{"$f":"SUM(C98:J98)","v":0}]
[{"$f":"Accueil!$B21","v":"Dionée"}]
[]
[]
["Période :",{"$f":"Accueil!A28","v":"P3"},{"$f":"Accueil!$B28","v":"du"},{"$f":"Accueil!$C28","v":"2015-01-04"},{"$f":"Accueil!$D28","v":"au"},{"$f":"Accueil!$E28","v":"2015-02-20"}]
["Selectionnez la classe participant à l'atelier :"]
["NOM","Prénom","2014-05-25","2014-05-26","2014-05-27","2014-05-28","2014-05-29","2014-05-30","2014-05-31","2014-06-01","TOT"]
[null,null,null,null,null,null,null,null,null,null,{"$f":"SUM(C106:J106)","v":0}]
[null,null,null,null,null,null,null,null,null,null,{"$f":"SUM(C107:J107)","v":0}]
[null,null,null,null,null,null,null,null,null,null,0]
[null,null,null,null,null,null,null,null,null,null,0]
[null,null,null,null,null,null,null,null,null,null,0]
[null,null,null,null,null,null,null,null,null,null,0]
[null,null,null,null,null,null,null,null,null,null,0]
[null,null,null,null,null,null,null,null,null,null,0]
[null,null,null,null,null,null,null,null,null,null,0]
[null,null,null,null,null,null,null,null,null,null,0]
[null,null,null,null,null,null,null,null,null,null,0]
[null,null,null,null,null,null,null,null,null,null,0]
[null,null,null,null,null,null,null,null,null,null,0]
[null,null,null,null,null,null,null,null,null,null,0]
[null,null,null,null,null,null,null,null,null,null,0]
[null,null,null,null,null,null,null,null,null,null,0]
[null,null,null,null,null,null,null,null,null,null,0]
[null,null,null,null,null,null,null,null,null,null,0]
[null,null,null,null,null,null,null,null,null,null,0]
[null,null,null,null,null,null,null,null,null,null,0]
[null,null,null,null,null,null,null,null,null,null,0]
[null,null,null,null,null,null,null,null,null,null,0]
[null,null,null,null,null,null,null,null,null,null,0]
[null,null,null,null,null,null,null,null,null,null,0]
[null,null,null,null,null,null,null,null,null,null,0]
["TOT Jour",null,{"$f":"SUM(C106:C130)","v":0},{"$f":"SUM(D106:D130)","v":0},0,0,0,0,0,0]
["TOT Période",null,{"$f":"SUM(C131:J131)","v":0}]
[{"$f":"Accueil!$B21","v":"Dionée"}]
[]
[]
["Période :",{"$f":"Accueil!A29","v":"P4"},{"$f":"Accueil!$B29","v":"du"},{"$f":"Accueil!$C29","v":"2015-03-08"},{"$f":"Accueil!$D29","v":"au"},{"$f":"Accueil!$E29","v":"2015-04-15"}]
["Selectionnez la classe participant à l'atelier :"]
["NOM","Prénom","2014-05-25","2014-05-26","2014-05-27","2014-05-28","2014-05-29","2014-05-30","2014-05-31","2014-06-01","TOT"]
[null,null,null,null,null,null,null,null,null,null,{"$f":"SUM(C139:J139)","v":0}]
[null,null,null,null,null,null,null,null,null,null,{"$f":"SUM(C140:J140)","v":0}]
[null,null,null,null,null,null,null,null,null,null,0]
[null,null,null,null,null,null,null,null,null,null,0]
[null,null,null,null,null,null,null,null,null,null,0]
[null,null,null,null,null,null,null,null,null,null,0]
[null,null,null,null,null,null,null,null,null,null,0]
[null,null,null,null,null,null,null,null,null,null,0]
[null,null,null,null,null,null,null,null,null,null,0]
[null,null,null,null,null,null,null,null,null,null,0]
[null,null,null,null,null,null,null,null,null,null,0]
[null,null,null,null,null,null,null,null,null,null,0]
[null,null,null,null,null,null,null,null,null,null,0]
[null,null,null,null,null,null,null,null,null,null,0]
[null,null,null,null,null,null,null,null,null,null,0]
[null,null,null,null,null,null,null,null,null,null,0]
[null,null,null,null,null,null,null,null,null,null,0]
[null,null,null,null,null,null,null,null,null,null,0]
[null,null,null,null,null,null,null,null,null,null,0]
[null,null,null,null,null,null,null,null,null,null,0]
[null,null,null,null,null,null,null,null,null,null,0]
[null,null,null,null,null,null,null,null,null,null,0]
[null,null,null,null,null,null,null,null,null,null,0]
[null,null,null,null,null,null,null,null,null,null,0]
[null,null,null,null,null,null,null,null,null,null,0]
["TOT Jour",null,{"$f":"SUM(C139:C163)","v":0},{"$f":"SUM(D139:D163)","v":0},0,0,0,0,0,0]
["TOT Période",null,{"$f":"SUM(C164:J164)","v":0}]
[{"$f":"Accueil!$B21","v":"Dionée"}]
[]
[]
["Période :",{"$f":"Accueil!A30","v":"P5"},{"$f":"Accueil!$B30","v":"du"},{"$f":"Accueil!$C30","v":"2015-05-02"},{"$f":"Accueil!$D30","v":"au"},{"$f":"Accueil!$E30","v":"2015-07-03"}]
["Selectionnez la classe participant à l'atelier :"]
["NOM","Prénom","2014-05-25","2014-05-26","2014-05-27","2014-05-28","2014-05-29","2014-05-30","2014-05-31","2014-06-01","TOT"]
[null,null,null,null,null,null,null,null,null,null,{"$f":"SUM(C172:J172)","v":0}]
[null,null,null,null,null,null,null,null,null,null,{"$f":"SUM(C173:J173)","v":0}]
[null,null,null,null,null,null,null,null,null,null,0]
[null,null,null,null,null,null,null,null,null,null,0]
[null,null,null,null,null,null,null,null,null,null,0]
[null,null,null,null,null,null,null,null,null,null,0]
[null,null,null,null,null,null,null,null,null,null,0]
[null,null,null,null,null,null,null,null,null,null,0]
[null,null,null,null,null,null,null,null,null,null,0]
[null,null,null,null,null,null,null,null,null,null,0]
[null,null,null,null,null,null,null,null,null,null,0]
[null,null,null,null,null,null,null,null,null,null,0]
[null,null,null,null,null,null,null,null,null,null,0]
[null,null,null,null,null,null,null,null,null,null,0]
[null,null,null,null,null,null,null,null,null,null,0]
[null,null,null,null,null,null,null,null,null,null,0]
[null,null,null,null,null,null,null,null,null,null,0]
[null,null,null,null,null,null,null,null,null,null,0]
[null,null,null,null,null,null,null,null,null,null,0]
[null,null,null,null,null,null,null,null,null,null,0]
[null,null,null,null,null,null,null,null,null,null,0]
[null,null,null,null,null,null,null,null,null,null,0]
[null,null,null,null,null,null,null,null,null,null,0]
[null,null,null,null,null,null,null,null,null,null,0]
[null,null,null,null,null,null,null,null,null,null,0]
["TOT Jour",null,{"$f":"SUM(C172:C196)","v":0},{"$f":"SUM(D172:D196)","v":0},0,0,0,0,0,0]
["TOT Période",null,{"$f":"SUM(C197:J197)","v":0}]
["Statistiques"]
[]
[]
["Nombre d'heure de fréquentation :"]
[{"$f":"Accueil!$A26","v":"P1"},{"$f":"$C$66*1.5","v":0},"heures de présence pour cet atelier et pour cette période"]
[{"$f":"Accueil!$A27","v":"P2"},{"$f":"$C$99*1.5","v":0},"heures de présence pour cet atelier et pour cette période"]
[{"$f":"Accueil!$A28","v":"P3"},{"$f":"$C$132*1.5","v":0},"heures de présence pour cet atelier et pour cette période"]
[{"$f":"Accueil!$A29","v":"P4"},{"$f":"$C$165*1.5","v":0},"heures de présence pour cet atelier et pour cette période"]
[{"$f":"Accueil!$A30","v":"P5"},{"$f":"$C$198*1.5","v":0},"heures de présence pour cet atelier et pour cette période"]
["TOT",{"$f":"SUM($B$203:$B$207)","v":0},"heures de présence pour cet atelier et pour l'année"]

{"sheet":"CP Mme VIALE","index":16,"n_rows":28,"n_cols":13,"rows_kept":28,"cut":false,"hidden":false,"merged":[[5,11,5,12],[0,0,1,9],[5,3,5,4],[5,5,5,6],[5,7,5,8],[5,9,5,10]]}
["CP Mme VIALE"]
[]
[]
[]
[]
["Nombre d'enfants",{"$f":"SUM(COUNTA(A8:A28))","v":21},null,"Atelier P1",null,"Atelier P2",null,"Atelier P3",null,"Atelier P4",null,"Atelier P5"]
["NOM","Prénom","Niveau","Lundi","Jeudi","Lundi","Jeudi","Lundi","Jeudi","Lundi","Jeudi","Lundi","Jeudi"]
["MARTIN","Alban","CP","Ordinateur","Lego","Piège","Jeux",null,"Papier"]
["MARTIN","Nathan","CP","Poissons",null,"Anglais"]
["MARTIN","Yoan","CP"]
["MARTIN","Chloé","CP","Mouchoirs"]
["MARTIN","Amélie","CP","Anglais"]
["MARTIN","Johan","CP","Papier"]
["MARTIN","Luke","CP","Anglais"]
["MARTIN","Lucie","CP","Cartons"]
["MARTIN","Noémie","CP","Poissons"]
["MARTIN","Yanis","CP","Ordinateur"]
["MARTIN","Thalia","CP","Météorite"]
["MARTIN","Arthur","CP","Météorite"]
["MARTIN","Woody","CP","Papier"]
["MARTIN","Alyssa","CP","Bijoux"]
["MARTIN","Antonin","CP"]
["MARTIN","Louanne","CP","Jeux"]
["MARTIN","Samia","CP","Jeux"]
["MARTIN","Clarence","CP"]
["MARTIN","Gabriel","CP"]
["MARTIN","Jade","CP"]
["MARTIN","Mathéo","CP"]

{"sheet":"CP-CE1 Mme JEANNET","index":17,"n_rows":27,"n_cols":13,"rows_kept":27,"cut":false,"hidden":false,"merged":[[5,9,5,10],[5,11,5,12],[5,0,5,2],[0,0,1,5],[5,3,5,4],[5,5,5,6],[5,7,5,8]]}
["CP-CE1 Mme JEANNET"]
[]
[]
[]
[]
[{"$f":"SUM(COUNTA(A8:A39))","v":20},null,null,"Atelier P1",null,"Atelier P2",null,"Atelier P3",null,"Atelier P4",null,"Atelier P5"]
["NOM","Prénom","Niveau","Lundi","Jeudi","Lundi","Jeudi","Lundi","Jeudi","Lundi","Jeudi","Lundi","Jeudi"]
["MARTIN","Manon","CP","Jeux","Bijoux"]
["MARTIN","Alexandre","CP"]
["MARTIN","Lukas","CP"]
["MARTIN","Gaëtane","CP"]
["MARTIN","Maïa","CP"]
["MARTIN","Bastien","CP"]
["MARTIN","Nathanaël","CP"]
["MARTIN","Milo","CP"]
["MARTIN","Julie","CP"]
["MARTIN","Lou-Ann","CE1"]
["MARTIN","Lilou","CE1"]
["MARTIN","Cléo","CE1"]
["MARTIN","Alycia","CE1"]
["MARTIN","Emilie","CE1"]
["MARTIN","Lily","CE1"]
["MARTIN","Clara","CE1"]
["MARTIN","Kinsley","CE1"]
["MARTIN","Eloïse","CE1"]
["MARTIN","Killian","CE1"]
["MARTIN","Zoé","CE1"]

{"sheet":"CE1 Mme GUILLOUX","index":18,"n_rows":29,"n_cols":13,"rows_kept":29,"cut":false,"hidden":false,"merged":[[5,9,5,10],[5,11,5,12],[0,0,1,5],[5,0,5,2],[5,3,5,4],[5,5,5,6],[5,7,5,8]]}
["CE1 Mme GUILLOUX"]
[]
[]
[]
[]
[{"$f":"SUM(COUNTA(A8:A39))","v":22},null,null,"Atelier P1",null,"Atelier P2",null,"Atelier P3",null,"Atelier P4",null,"Atelier P5"]
["NOM","Prénom","Niveau","Lundi","Jeudi","Lundi","Jeudi","Lundi","Jeudi","Lundi","Jeudi","Lundi","Jeudi"]
["MARTIN","Marvin","CE1","Papier"]
["MARTIN","Andréa","CE1"]
["MARTIN","Pippa","CE1"]
["MARTIN","Lilou","CE1"]
["MARTIN","Camille","CE1"]
["MARTIN","Savana","CE1"]
["MARTIN","Eloïse","CE1"]
["MARTIN","Maëva","CE1"]
["MARTIN","Jérémie","CE1"]
["MARTIN","Anaïs","CE1"]
["MARTIN","Maria","CE1"]
["MARTIN","Maélice","CE1"]
["MARTIN","Maud","CE1"]
["MARTIN","Bastien","CE1"]
["MARTIN","Clément","CE1"]
["MARTIN","Alexis","CE1"]
["MARTIN","Erwan","CE1"]
["MARTIN","Solaine","CE1"]
["MARTIN","Imanol","CE1"]
["MARTIN","Loli","CE1"]
["MARTIN","Mathéo","CE1"]
["MARTIN","Louna","CE1"]

{"sheet":"CE1-CE2 Mme PINOT","index":19,"n_rows":27,"n_cols":13,"rows_kept":27,"cut":false,"hidden":false,"merged":[[5,9,5,10],[5,11,5,12],[0,0,1,5],[5,0,5,2],[5,3,5,4],[5,5,5,6],[5,7,5,8]]}
["CE1-CE2 Mme PINOT"]
[]
[]
[]
[]
[{"$f":"SUM(COUNTA(A8:A39))","v":20},null,null,"Atelier P1",null,"Atelier P2",null,"Atelier P3",null,"Atelier P4",null,"Atelier P5"]
["NOM","Prénom","Niveau","Lundi","Jeudi","Lundi","Jeudi","Lundi","Jeudi","Lundi","Jeudi","Lundi","Jeudi"]
["MARTIN","Romain","CE1"]
["MARTIN","Soléane","CE1"]
["MARTIN","Léopold","CE1"]
["MARTIN","Gaël","CE1"]
["MARTIN","Maud","CE1"]
["MARTIN","Emma","CE1"]
["MARTIN","Tifenn","CE1"]
["MARTIN","Gabrielle","CE2"]
["MARTIN","Yanis","CE2"]
["MARTIN","Lise","CE2"]
["MARTIN","Léanna","CE2"]
["MARTIN","Logan","CE2"]
["MARTIN","Chloé","CE2"]
["MARTIN","Daisy","CE2"]
["MARTIN","Noah","CE2"]
["MARTIN","Pierre","CE2"]
["MARTIN","Justin","CE2"]
["MARTIN","Ambre","CE2"]
["MARTIN","Antonin","CE2"]
["MARTIN","Mattéo","CE2"]

{"sheet":"CE2 Mme QUERAUD","index":20,"n_rows":33,"n_cols":13,"rows_kept":33,"cut":false,"hidden":false,"merged":[[5,9,5,10],[5,11,5,12],[0,0,1,5],[5,0,5,2],[5,3,5,4],[5,5,5,6],[5,7,5,8]]}
["CE2 Mme QUERAUD"]
[]
[]
[]
[]
[{"$f":"SUM(COUNTA(A8:A39))","v":26},null,null,"Atelier P1",null,"Atelier P2",null,"Atelier P3",null,"Atelier P4",null,"Atelier P5"]
["NOM","Prénom","Niveau","Lundi","Jeudi","Lundi","Jeudi","Lundi","Jeudi","Lundi","Jeudi","Lundi","Jeudi"]
["MARTIN","Simon","CE2"]
["MARTIN","Mathis","CE2"]
["MARTIN","Louis","CE2"]
["MARTIN","Mathéo","CE2"]
["MARTIN","Andy","CE2"]
["MARTIN","Antony","CE2"]
["MARTIN","Justine","CE2"]
["MARTIN","Johanna","CE2"]
["MARTIN","Lucas","CE2"]
["MARTIN","Marie","CE2"]
["MARTIN","Alycia","CE2"]
["MARTIN","Benjamin","CE2"]
["MARTIN","Elouan","CE2"]
["MARTIN","Lucas","CE2"]
["MARTIN","Fanny","CE2"]
["MARTIN","Eva","CE2"]
["MARTIN","Ewan","CE2"]
["MARTIN","Samuel","CE2"]
["MARTIN","Léa","CE2"]
["MARTIN","Lucie","CE2"]
["MARTIN","Maeva","CE2"]
["MARTIN","Louis","CE2"]
["MARTIN","Océane","CE2"]
["MARTIN","Paul","CE2"]
["MARTIN","Mathias","CE2"]
["MARTIN","Lucas","CE2"]

{"sheet":"CM1 M. MILLON","index":21,"n_rows":32,"n_cols":13,"rows_kept":32,"cut":false,"hidden":false,"merged":[[5,9,5,10],[5,11,5,12],[0,0,1,5],[5,0,5,2],[5,3,5,4],[5,5,5,6],[5,7,5,8]]}
["CM1 M. MILLON"]
[]
[]
[]
[]
[{"$f":"SUM(COUNTA(A8:A39))","v":25},null,null,"Atelier P1",null,"Atelier P2",null,"Atelier P3",null,"Atelier P4",null,"Atelier P5"]
["NOM","Prénom","Niveau","Lundi","Jeudi","Lundi","Jeudi","Lundi","Jeudi","Lundi","Jeudi","Lundi","Jeudi"]
["MARTIN","Quentin","CM1"]
["MARTIN","Hugo","CM1"]
["MARTIN","Gabriel","CM1"]
["MARTIN","Tom","CM1"]
["MARTIN","Adrien","CM1"]
["MARTIN","Mathis","CM1"]
["MARTIN","Noémie","CM1"]
["MARTIN","Morgane","CM1"]
["MARTIN","Florian","CM1"]
["MARTIN","Maelys","CM1"]
["MARTIN","Solenn","CM1"]
["MARTIN","Jeanne","CM1"]
["MARTIN","Quentin","CM1"]
["MARTIN","Cornélia","CM1"]
["MARTIN","Rafaël","CM1"]
["MARTIN","Charlotte","CM1"]
["MARTIN","Victor","CM1"]
["MARTIN","Adrien","CM1"]
["MARTIN","Lucie","CM1"]
["MARTIN","Maxime","CM1"]
["MARTIN","Florian","CM1"]
["MARTIN","Agathe","CM1"]
["MARTIN","Ghislain","CM1"]
["MARTIN","Zoé","CM1"]
["MARTIN","Cindy","CM1"]

{"sheet":"CM1-CM2 M. BECHADE","index":22,"n_rows":30,"n_cols":13,"rows_kept":30,"cut":false,"hidden":false,"merged":[[5,9,5,10],[5,11,5,12],[0,0,1,5],[5,0,5,2],[5,3,5,4],[5,5,5,6],[5,7,5,8]]}
["CM1-CM2 M. BECHADE"]
[]
[]
[]
[]
[{"$f":"SUM(COUNTA(A8:A39))","v":23},null,null,"Atelier P1",null,"Atelier P2",null,"Atelier P3",null,"Atelier P4",null,"Atelier P5"]
["NOM","Prénom","Niveau","Lundi","Jeudi","Lundi","Jeudi","Lundi","Jeudi","Lundi","Jeudi","Lundi","Jeudi"]
["MARTIN","Sacha","CM1"]
["MARTIN","Sophie","CM1"]
["MARTIN","Léa","CM1"]
["MARTIN","Eva","CM1"]
["MARTIN","Noa","CM1"]
["MARTIN","Mathis","CM1"]
["MARTIN","Andy","CM1"]
["MARTIN","Manon","CM1"]
["MARTIN","Lucie","CM1"]
["MARTIN","Arthur","CM1"]
["MARTIN","Kalvin","CM2"]
["MARTIN","Clélia","CM2"]
["MARTIN","Eva","CM2"]
["MARTIN","Aléxia","CM2"]
["MARTIN","Maxence","CM2"]
["MARTIN","Justine","CM2"]
["MARTIN","Gaëtan","CM2"]
["MARTIN","Florence","CM2"]
["MARTIN","Océane","CM2"]
["MARTIN","Flore","CM2"]
["MARTIN","Sacha","CM2"]
["MARTIN","Alexis","CM2"]
["MARTIN","Nathan","CM2"]

{"sheet":"CM2 M. SOURY","index":23,"n_rows":32,"n_cols":13,"rows_kept":32,"cut":false,"hidden":false,"merged":[[5,9,5,10],[5,11,5,12],[0,0,1,5],[5,0,5,2],[5,3,5,4],[5,5,5,6],[5,7,5,8]]}
["CM2 M. SOURY"]
[]
[]
[]
[]
[{"$f":"SUM(COUNTA(A8:A39))","v":25},null,null,"Atelier P1",null,"Atelier P2",null,"Atelier P3",null,"Atelier P4",null,"Atelier P5"]
["NOM","Prénom","Niveau","Lundi","Jeudi","Lundi","Jeudi","Lundi","Jeudi","Lundi","Jeudi","Lundi","Jeudi"]
["MARTIN","Manon","CM2"]
["MARTIN","Léo","CM2"]
["MARTIN","Alexandre","CM2"]
["MARTIN","Morgane","CM2"]
["MARTIN","Mathys","CM2"]
["MARTIN","Axel","CM2"]
["MARTIN","Lilian","CM2"]
["MARTIN","Yanis","CM2"]
["MARTIN","Maëva","CM2"]
["MARTIN","Mélina","CM2"]
["MARTIN","Auxane","CM2"]
["MARTIN","Emmy","CM2"]
["MARTIN","Edwin","CM2"]
["MARTIN","Lucas","CM2"]
["MARTIN","Bérénice","CM2"]
["MARTIN","Célinda","CM2"]
["MARTIN","Alexandre","CM2"]
["MARTIN","Axelle","CM2"]
["MARTIN","Théa","CM2"]
["MARTIN","Sarah","CM2"]
["MARTIN","Matea","CM2"]
["MARTIN","Giovany","CM2"]
["MARTIN","Shana","CM2"]
["MARTIN","Antonin","CM2"]
["MARTIN","Clément","CM2"]

{"sheet":"CLIS Mme SANCHEZ","index":24,"n_rows":19,"n_cols":13,"rows_kept":19,"cut":false,"hidden":false,"merged":[[5,9,5,10],[5,11,5,12],[0,0,1,5],[5,0,5,2],[5,3,5,4],[5,5,5,6],[5,7,5,8]]}
["CLIS Mme SANCHEZ"]
[]
[]
[]
[]
[{"$f":"SUM(COUNTA(A8:A39))","v":12},null,null,"Atelier P1",null,"Atelier P2",null,"Atelier P3",null,"Atelier P4",null,"Atelier P5"]
["NOM","Prénom","Niveau","Lundi","Jeudi","Lundi","Jeudi","Lundi","Jeudi","Lundi","Jeudi","Lundi","Jeudi"]
["MARTIN","Pédro","Clis"]
["MARTIN","Laura","Clis"]
["MARTIN","Evan","Clis"]
["MARTIN","Aurélien","Clis"]
["MARTIN","Eléna","Clis"]
["MARTIN","Diego","Clis"]
["MARTIN","Hortanse","Clis"]
["MARTIN","Evan","Clis"]
["MARTIN","Coleen","Clis"]
["MARTIN","Raphaël","Clis"]
["MARTIN","Alison","Clis"]
["MARTIN","Owena","Clis"]

{"sheet":"Statistiques","index":25,"n_rows":0,"n_cols":0,"rows_kept":0,"cut":false,"hidden":false,"merged":[]}